Workbook

Sheet GR
A1: ZH UHR - Grundrechner (GR)
A2: Geschäfts-Nr. [...] - Grunddaten
A3: Position | B3: Quelle | C3: Finanziell weniger leistungsfähiger Elternteil (grds. mit überwiegendem Betreuungsanteil) | L3: Finanziell leistungsfähigerer Elternteil | U3: Quelle
A4: Zivilstand | B4: verheiratet | D4: Elternteil | F4: Kind 1 | G4: Kind 2 | H4: Kind 3 | I4: Kind 4 | K4: Neuer Partner | M4: Elternteil | O4: Kind 1 | P4: Kind 2 | Q4: Kind 3 | R4: Kind 4 | T4: Neuer Partner
A5: Stichtag
A6: Name(n)
A7: Geburtstag(e)
A8: Alter (Jahre) | D8: =IF(AND($B$5<>"",D7<>""),DATEDIF(D7,$B$5,"Y"),IF(D7<>"",DATEDIF(D7,TODAY(),"Y"),"")) ->  | F8: =IF(AND($B$5<>"",F7<>""),DATEDIF(F7,$B$5,"Y"),IF(F7<>"",DATEDIF(F7,TODAY(),"Y"),"")) ->  | G8: =IF(AND($B$5<>"",G7<>""),DATEDIF(G7,$B$5,"Y"),IF(G7<>"",DATEDIF(G7,TODAY(),"Y"),"")) ->  | H8: =IF(AND($B$5<>"",H7<>""),DATEDIF(H7,$B$5,"Y"),IF(H7<>"",DATEDIF(H7,TODAY(),"Y"),"")) ->  | I8: =IF(AND($B$5<>"",I7<>""),DATEDIF(I7,$B$5,"Y"),IF(I7<>"",DATEDIF(I7,TODAY(),"Y"),"")) ->  | K8: =IF(AND($B$5<>"",K7<>""),DATEDIF(K7,$B$5,"Y"),IF(K7<>"",DATEDIF(K7,TODAY(),"Y"),"")) ->  | M8: =IF(AND($B$5<>"",M7<>""),DATEDIF(M7,$B$5,"Y"),IF(M7<>"",DATEDIF(M7,TODAY(),"Y"),"")) ->  | O8: =IF(AND($B$5<>"",O7<>""),DATEDIF(O7,$B$5,"Y"),IF(O7<>"",DATEDIF(O7,TODAY(),"Y"),"")) ->  | P8: =IF(AND($B$5<>"",P7<>""),DATEDIF(P7,$B$5,"Y"),IF(P7<>"",DATEDIF(P7,TODAY(),"Y"),"")) ->  | Q8: =IF(AND($B$5<>"",Q7<>""),DATEDIF(Q7,$B$5,"Y"),IF(Q7<>"",DATEDIF(Q7,TODAY(),"Y"),"")) ->  | R8: =IF(AND($B$5<>"",R7<>""),DATEDIF(R7,$B$5,"Y"),IF(R7<>"",DATEDIF(R7,TODAY(),"Y"),"")) ->  | T8: =IF(AND($B$5<>"",T7<>""),DATEDIF(T7,$B$5,"Y"),IF(T7<>"",DATEDIF(T7,TODAY(),"Y"),"")) -> 
A9: Alter (Monate) | D9: =IF(AND($B$5<>"",D7<>""),DATEDIF(D7,$B$5,"ym"),IF(D7<>"",DATEDIF(D7,TODAY(),"ym"),"")) ->  | F9: =IF(AND($B$5<>"",F$7<>""),DATEDIF(F$7,$B$5,"ym"),IF(F$7<>"",DATEDIF(F$7,TODAY(),"ym"),"")) ->  | G9: =IF(AND($B$5<>"",G$7<>""),DATEDIF(G$7,$B$5,"ym"),IF(G$7<>"",DATEDIF(G$7,TODAY(),"ym"),"")) ->  | H9: =IF(AND($B$5<>"",H$7<>""),DATEDIF(H$7,$B$5,"ym"),IF(H$7<>"",DATEDIF(H$7,TODAY(),"ym"),"")) ->  | I9: =IF(AND($B$5<>"",I$7<>""),DATEDIF(I$7,$B$5,"ym"),IF(I$7<>"",DATEDIF(I$7,TODAY(),"ym"),"")) ->  | K9: =IF(AND($B$5<>"",K7<>""),DATEDIF(K7,$B$5,"ym"),IF(K7<>"",DATEDIF(K7,TODAY(),"ym"),"")) ->  | M9: =IF(AND($B$5<>"",M$7<>""),DATEDIF(M$7,$B$5,"ym"),IF(M$7<>"",DATEDIF(M$7,TODAY(),"ym"),"")) ->  | O9: =IF(AND($B$5<>"",O$7<>""),DATEDIF(O$7,$B$5,"ym"),IF(O$7<>"",DATEDIF(O$7,TODAY(),"ym"),"")) ->  | P9: =IF(AND($B$5<>"",P$7<>""),DATEDIF(P$7,$B$5,"ym"),IF(P$7<>"",DATEDIF(P$7,TODAY(),"ym"),"")) ->  | Q9: =IF(AND($B$5<>"",Q$7<>""),DATEDIF(Q$7,$B$5,"ym"),IF(Q$7<>"",DATEDIF(Q$7,TODAY(),"ym"),"")) ->  | R9: =IF(AND($B$5<>"",R$7<>""),DATEDIF(R$7,$B$5,"ym"),IF(R$7<>"",DATEDIF(R$7,TODAY(),"ym"),"")) ->  | T9: =IF(AND($B$5<>"",T$7<>""),DATEDIF(T$7,$B$5,"ym"),IF(T$7<>"",DATEDIF(T$7,TODAY(),"ym"),"")) -> 
A10: Alter (Tage) | D10: =IF(AND($B$5<>"",D7<>""),DATEDIF(D7,$B$5,"md"),IF(D7<>"",DATEDIF(D7,TODAY(),"md"),"")) ->  | F10: =IF(AND($B$5<>"",F$7<>""),DATEDIF(F$7,$B$5,"md"),IF(F$7<>"",DATEDIF(F$7,TODAY(),"md"),"")) ->  | G10: =IF(AND($B$5<>"",G$7<>""),DATEDIF(G$7,$B$5,"md"),IF(G$7<>"",DATEDIF(G$7,TODAY(),"md"),"")) ->  | H10: =IF(AND($B$5<>"",H$7<>""),DATEDIF(H$7,$B$5,"md"),IF(H$7<>"",DATEDIF(H$7,TODAY(),"md"),"")) ->  | I10: =IF(AND($B$5<>"",I$7<>""),DATEDIF(I$7,$B$5,"md"),IF(I$7<>"",DATEDIF(I$7,TODAY(),"md"),"")) ->  | K10: =IF(AND($B$5<>"",K7<>""),DATEDIF(K7,$B$5,"md"),IF(K7<>"",DATEDIF(K7,TODAY(),"md"),"")) ->  | M10: =IF(AND($B$5<>"",M$7<>""),DATEDIF(M$7,$B$5,"md"),IF(M$7<>"",DATEDIF(M$7,TODAY(),"md"),"")) ->  | O10: =IF(AND($B$5<>"",O$7<>""),DATEDIF(O$7,$B$5,"md"),IF(O$7<>"",DATEDIF(O$7,TODAY(),"md"),"")) ->  | P10: =IF(AND($B$5<>"",P$7<>""),DATEDIF(P$7,$B$5,"md"),IF(P$7<>"",DATEDIF(P$7,TODAY(),"md"),"")) ->  | Q10: =IF(AND($B$5<>"",Q$7<>""),DATEDIF(Q$7,$B$5,"md"),IF(Q$7<>"",DATEDIF(Q$7,TODAY(),"md"),"")) ->  | R10: =IF(AND($B$5<>"",R$7<>""),DATEDIF(R$7,$B$5,"md"),IF(R$7<>"",DATEDIF(R$7,TODAY(),"md"),"")) ->  | T10: =IF(AND($B$5<>"",T$7<>""),DATEDIF(T$7,$B$5,"md"),IF(T$7<>"",DATEDIF(T$7,TODAY(),"md"),"")) -> 
A11: Einkommensberechnung
A12: Erwerbseinkommen
A13: Weiteres Einkommen
A14: Weiteres Einkommen
A15: Weiteres Einkommen
A16: Kinder- und Familienzulagen
A17: Monatl. Einkommen pro Haushalt / Person | C17: =SUM(D17:I17) -> 0 | D17: =IF(SUM(D12:D15)>0,SUM(D12:D15),0) -> 0 | F17: =SUM(F12:F14,F16) -> 0 | G17: =SUM(G12:G14,G16) -> 0 | H17: =SUM(H12:H14,H16) -> 0 | I17: =SUM(I12:I14,I16) -> 0 | K17: =SUM(K12:K14) -> 0 | L17: =SUM(M17:R17) -> 0 | M17: =IF(SUM(M12:M15)>0,SUM(M12:M15),0) -> 0 | O17: =SUM(O12:O14,O16) -> 0 | P17: =SUM(P12:P14,P16) -> 0 | Q17: =SUM(Q12:Q14,Q16) -> 0 | R17: =SUM(R12:R14,R16) -> 0 | T17: =SUM(T12:T14) -> 0
A18: Bedarfsberechnung
B19: Quelle | C19: Kosten pro Haushalt | D19: Bedarf Elternteil | F19: Barbedarfe Kinder | J19: LH-Kosten betr. Person | K19: Bedarf Neuer Partner | L19: Kosten pro Haushalt | M19: Bedarf Elternteil | O19: Barbedarfe Kinder | S19: LH-Kosten betr. Person | T19: Bedarf Neuer Partner | U19: Quelle
A21: Grundbetrag | C21: =SUM(D21:I21) -> 0 | L21: =SUM(M21:R21) -> 0
A22: Wohnkosten | C22: 0 | L22: 0
A23: Hypothekarzins | C23: 0 | L23: 0
A24: Wohnnebenkosten | C24: 0 | L24: 0
A25: Krankenkasse KVG (abz. IPV) | C25: 0 | L25: 0
A26: regelmässige, ungedeckte Gesundheitskosten | C26: 0 | L26: 0
A27: Fremdbetreuungskosten (z.B. Hort/Krippe) | C27: 0 | L27: 0
A28: notwendige Berufs-/Ausbildungsauslagen:
A29: Fahrten zum Arbeitsplatz | C29: =SUM(D29:I29) -> 0 | L29: =SUM(M29:R29) -> 0
A30: Mehrkosten auswärtige Verpflegung | C30: =SUM(D30:I30) -> 0 | L30: =SUM(M30:R30) -> 0
A31: notwendige Weiterbildungs-/Schulkosten | C31: =SUM(D31:I31) -> 0 | L31: =SUM(M31:R31) -> 0
A32: Überdurchschnittlicher Kleider-/Wäscheverbrauch | C32: =SUM(D32:I32) -> 0 | L32: =SUM(M32:R32) -> 0
A34: Unterhaltsverpflichtung(en) | C34: =SUM(D34:I34) -> 0 | L34: =SUM(M34:R34) -> 0
A35: Zusätzliche Bedarfspositionen
A36: laufende Steuern | C36: =SUM(D36:I36) -> 0 | L36: =SUM(M36:R36) -> 0
A37: Radio-/TV | C37: =SUM(D37:I37) -> 0 | L37: 0
A38: Pauschale für Hausrat-/Haftpflichtversicherung | C38: =SUM(D38:I38) -> 0 | L38: 0
A39: Kommunikationskosten (inkl. Internet) | C39: =SUM(D39:I39) -> 0 | L39: 0
A40: Krankenkasse (VVG) | C40: =SUM(D40:I40) -> 0 | L40: 0
A41: Kompensation Vorsorge (nur Scheidung) | C41: =SUM(D41:I41) -> 0 | L41: 0
A42: Abzahlungsraten Schulden | C42: =SUM(D42:I42) -> 0 | L42: 0
A43: regelmässige Sparquote (z.B. 3. Säule, etc.) | C43: =SUM(D43:I43) -> 0 | L43: 0
A44: Manuelle Bedarfspositionen
C45: 0 | L45: =SUM(M45:R45) -> 0
C46: 0 | L46: 0
C47: 0 | L47: 0
C48: 0 | L48: 0
C49: 0 | L49: 0
C50: 0 | L50: 0
C51: 0 | L51: 0
C52: 0 | L52: 0
C53: 0 | L53: 0
A54: Summe | C54: =SUM(C21:C53) -> 0 | D54: =SUM(D$21:D$53) -> 0 | F54: =SUM(F$21:F$53) -> 0 | G54: 0 | H54: 0 | I54: 0 | J54: 0 | K54: 0 | L54: =SUM(L21:L53) -> 0 | M54: =SUM(M$21:M$53) -> 0 | O54: =SUM(O$21:O$53) -> 0 | P54: 0 | Q54: 0 | R54: 0 | S54: 0 | T54: 0
A55: Bedarfszahlen | D55: =SUM(D54,E54) -> 0 | F55: =SUM(F54,G54,H54,I54) -> 0 | M55: =SUM(M54,N54) -> 0 | O55: =SUM(O54,P54,Q54,R54) -> 0
A56: Betreuungsunterhalt
A57: Totale Lebenshaltungskosten | J57: =J$54 -> 0 | S57: =S$54 -> 0
A58: Totale Einkommen | D58: =D$17 -> 0 | M58: =M17 -> 0
A59: Betreuungsunterhalt | C59: =IF(SUM(J$54-D$17)>=0,SUM(J$54-D$17),0) -> 0 | S59: =IF(AND($S$54>0,$T$58="",SUM(S$54-$M$17)>0),SUM(S$54-$M$17),IF(AND($S$54>0,$M$58="",SUM(S$54-$T$17)>0),SUM(S$54-T$17),0)) -> 0 | U59: Betreuungsunterhalt
A60: Übersicht finanzielle Verhältnisse / Verteilung Betreuungsunterhalt und Überschuss
A61: Verfügbare Geldmittel
A62: Gesamteinkommen (inkl. Einkommen Kinder) | B62: =SUM(C62,L62) -> 0 | C62: =SUM(D62,F62:I62) -> 0 | D62: =IF(D17<>"",D17,"") -> 0 | F62: =IF(F17>F54,F54,F17) -> 0 | G62: =IF(G17>G54,G54,G17) -> 0 | H62: =IF(H17>H54,H54,H17) -> 0 | I62: =IF(I17>I54,I54,I17) -> 0 | L62: =SUM(M62,O62:R62) -> 0 | M62: =IF(M17<>"",M17,"") -> 0 | O62: =IF(O17>O54,O54,O17) -> 0 | P62: =IF(P17>P54,P54,P17) -> 0 | Q62: =IF(Q17>Q54,Q54,Q17) -> 0 | R62: =IF(R17>R54,R54,R17) -> 0
A63: abzgl. fam. Notbedarf Eltern | B63: =SUM(C63,L63) -> 0 | C63: =-SUM(D54) -> 0 | D63: =IF(D54<>"",SUM(D54),"") -> 0 | L63: =-SUM(M54) -> 0 | M63: =IF(M54<>"",SUM(M54),"") -> 0
A64: abzgl. Barbedarf Kinder | B64: =SUM(C64,L64) -> 0 | C64: =-SUM(F55:I55) -> 0 | F64: =IF(F54<>"",F54,"") -> 0 | G64: =IF(G54<>"",G54,"") -> 0 | H64: =IF(H54<>"",H54,"") -> 0 | I64: =IF(I54<>"",I54,"") -> 0 | J64: =IF(D64="","",D64) ->  | L64: =-SUM(O64:R64) -> 0 | O64: =IF(O54<>"",O54,"") -> 0 | P64: =IF(P54<>"",P54,"") -> 0 | Q64: =IF(Q54<>"",Q54,"") -> 0 | R64: =IF(R54<>"",R54,"") -> 0
A65: Gesamtüberschuss | B65: =IF((SUM(C62:C64)+SUM(L62:L64))>0,SUM(C62:C64)+SUM(L62:L64),0) -> 0 | C65: =SUM(C62:C64) -> 0 | L65: =SUM(L62:L64) -> 0
A66: ="Überschuss "&IF(GR!$M$6<>"",GR!$M$6,"")&" (ohne Anteil "&IF(GR!$D$6<>"",GR!$D$6,"")&")" -> Überschuss (ohne Anteil ) | B66: =IF(RT!C12>0,B65-RT!C12,B65) -> 0 | J66: =IF(D66="","",D66) -> 
A67: Überschuss über erw. Bedarf | B67: =SUM(C67,L67) -> 0 | J67: =IF(D67="","",D67) -> 
A68: Barunterhalt
A69: Elterneinkommen nach Abzug fam. Notbedarf Eltern | B69: =SUM(C69,L69) -> 0 | C69: =SUM(D17-D54) -> 0 | L69: =SUM(M17-M54) -> 0
A70: abzüglich Barbedarf Kinder | B70: =SUM(C70,L70) -> 0 | C70: =-SUM(F70:I70) -> 0 | F70: =IF(F54<>"",F54,"") -> 0 | G70: =IF(G54<>"",G54,"") -> 0 | H70: =IF(H54<>"",H54,"") -> 0 | I70: =IF(I54<>"",I54,"") -> 0 | L70: =-SUM(O70:R70) -> 0 | O70: =IF(O54<>"",O54,"") -> 0 | P70: =IF(P54<>"",P54,"") -> 0 | Q70: =IF(Q54<>"",Q54,"") -> 0 | R70: =IF(R54<>"",R54,"") -> 0
A71: zzgl. Einkommen Kinder | B71: =SUM(C71,L71) -> 0 | C71: =IF(SUM(F62:I62)>=SUM(F70:I70),SUM(F70:I70),SUM(F62:I62)) -> 0 | F71: =IF(F17<>"",-F17,"") -> 0 | G71: =IF(G17<>"",-G17,"") -> 0 | H71: =IF(H17<>"",-H17,"") -> 0 | I71: =IF(I17<>"",-I17,"") -> 0 | L71: =IF(SUM(O62:R62)>=SUM(O70:R70),SUM(O70:R70),SUM(O62:R62)) -> 0 | O71: =IF(O17<>"",-O17,"") -> 0 | P71: =IF(P17<>"",-P17,"") -> 0 | Q71: =IF(Q17<>"",-Q17,"") -> 0 | R71: =IF(R17<>"",-R17,"") -> 0
A72: Überschuss nach Deckung Barbedarf / Anspruch je Kind | B72: =IF(SUM(C72,L72)>0,SUM(C72,L72),0) -> 0 | C72: =SUM(C69,IF(C70<>"",C70,0),IF(C71<>"",C71,0)) -> 0 | F72: =IF(SUM(F70+F71)>0,SUM(F70+F71),0) -> 0 | G72: =IF(SUM(G70+G71)>0,SUM(G70+G71),0) -> 0 | H72: =IF(SUM(H70+H71)>0,SUM(H70+H71),0) -> 0 | I72: =IF(SUM(I70+I71)>0,SUM(I70+I71),0) -> 0 | L72: =SUM(L69,IF(L70<>"",L70,0),IF(L71<>"",L71,0)) -> 0 | O72: =IF(SUM(O70+O71)>0,SUM(O70+O71),0) -> 0 | P72: =IF(SUM(P70+P71)>0,SUM(P70+P71),0) -> 0 | Q72: =IF(SUM(Q70+Q71)>0,SUM(Q70+Q71),0) -> 0 | R72: =IF(SUM(R70+R71)>0,SUM(R70+R71),0) -> 0
A73: Betreuungsunterhalt
A74: Überschuss nach Abzug Barbedarf | B74: =SUM(B72) -> 0 | F74: =IF(SUM($F75:$I75)<>J75,"! Verteilung prüfen !","") ->  | O74: =IF(SUM(O75:R75)<>S75,"! Verteilung prüfen !","") -> 
A75: Betreuungsunterhalt (Vorschlag / Kind) eingeben | J75: =ROUND(C$59,0) -> 0 | S75: =ROUND(S$59,0) -> 0
A76: Anspruch je Kind | F76: =F75 -> 0 | G76: =SUM(G75) -> 0 | H76: =SUM(H75) -> 0 | I76: =SUM(I75) -> 0 | O76: =SUM(O75) -> 0 | P76: =SUM(P75) -> 0 | Q76: =SUM(Q75) -> 0 | R76: =SUM(R75) -> 0
A77: Überschussaufteilung
N79: =N54 -> 0
A81: =IF(B82<=0,"Kein Überschuss vorhanden",IF(AND(B4="ledig",B80=""),"Verfügbare Geldmittel nach Deckung der Unterhaltsansprüche - Überschussaufteilung (kein Überschussanspruch für Elternteil 1)",IF(AND(B4="ledig",B80=""),"Verfügbare Geldmittel nach Deckung der Unterhaltsansprüche - Überschussaufteilung","Verfügbare Geldmittel nach Deckung der Unterhaltsansprüche - Überschussaufteilung"))) -> Kein Überschuss vorhanden
A82: Überschuss | B82: =IF(GR!B4="ledig",RT!H29,IF(B74>0,B74,0)) -> 0 | C82: ! Verteilung prüfen ! | L82: ! Verteilung prüfen !
A83: Anteil in Prozent eingeben | B83: =ROUND(SUM(C83,L83),2) -> 0 | C83: =ROUND(SUM(D83:I83),2) -> 0 | L83: =ROUND(SUM(M83:R83),2) -> 0
A84: Anteil in Franken | C84: =SUM(D84:I84) -> 0 | D84: =IF(SUM(F84:I84,$M84:$R84)>=$B82,0,IF(AND(D83>0,D83<>""),MIN($B82*D83,$B82-SUM(F84:I84,$M84:$R84)),0)) -> 0 | F84: =$B$82*F83 -> 0 | G84: =$B$82*G83 -> 0 | H84: =$B$82*H83 -> 0 | I84: =$B$82*I83 -> 0 | L84: =SUM(M84:R84) -> 0 | M84: =$B$82*$M$83 -> 0 | O84: =$B$82*O83 -> 0 | P84: =$B$82*P83 -> 0 | Q84: =$B$82*Q83 -> 0 | R84: =$B$82*R83 -> 0

Sheet RT
A1: ZH UHR - Rechnungstool (RT)
A2: Position | B2: =IF(GR!D6<>"",GR!D6,"") ->  | D2: =IF(GR!F6<>"",GR!F6,"") ->  | E2: =IF(GR!G6<>"",GR!G6,"") ->  | F2: =IF(GR!H6<>"",GR!H6,"") ->  | G2: =IF(GR!I6<>"",GR!I6,"") ->  | H2: =IF(GR!M6<>"",GR!M6,"") ->  | J2: =IF(GR!O6<>"",GR!O6,"") ->  | K2: =IF(GR!P6<>"",GR!P6,"") ->  | L2: =IF(GR!Q6<>"",GR!Q6,"") ->  | M2: =IF(GR!R6<>"",GR!R6,"") -> 
A3: Verfügbare Geldmittel
A4: Einkommen Elternteile / Kinder | B4: =IF(GR!D$17<>"",GR!D$17,"") -> 0 | D4: =IF(GR!F$17<>"",GR!F$17,"") -> 0 | E4: =IF(GR!G$17<>"",GR!G$17,"") -> 0 | F4: =IF(GR!H$17<>"",GR!H$17,"") -> 0 | G4: =IF(GR!I$17<>"",GR!I$17,"") -> 0 | H4: =IF(GR!M$17<>"",GR!M$17,"") -> 0 | J4: =IF(GR!O$17<>"",GR!O$17,"") -> 0 | K4: =IF(GR!P$17<>"",GR!P$17,"") -> 0 | L4: =IF(GR!Q$17<>"",GR!Q$17,"") -> 0 | M4: =IF(GR!R$17<>"",GR!R$17,"") -> 0
A5: Fam. Not- bzw. Kindesbedarf | B5: =IF(GR!D$54<>"",GR!D$54,"") -> 0 | D5: =IF(GR!F$54<>"",GR!F$54,"") -> 0 | E5: =IF(GR!G$54<>"",GR!G$54,"") -> 0 | F5: =IF(GR!H$54<>"",GR!H$54,"") -> 0 | G5: =IF(GR!I$54<>"",GR!I$54,"") -> 0 | H5: =IF(GR!M$54<>"",GR!M$54,"") -> 0 | J5: =IF(GR!O$54<>"",GR!O$54,"") -> 0 | K5: =IF(GR!P$54<>"",GR!P$54,"") -> 0 | L5: =IF(GR!Q$54<>"",GR!Q$54,"") -> 0 | M5: =IF(GR!R$54<>"",GR!R$54,"") -> 0
A6: ="Theoretische Leistungsfähigkeit von "&IF(GR!D6<>"",GR!D6,"")&" / "&IF(GR!M6<>"",GR!M6,"") -> Theoretische Leistungsfähigkeit von / | B6: =IF(AND(B$4<>"",B$5<>""),SUM(B$4-B$5),"") -> 0 | H6: =IF(AND(H$4<>"",H$5<>""),H4-H5-(RawData!N6*1*(J5-J4)+RawData!N7*(K5-K4)+RawData!N8*(L5-L4)+RawData!N9*(M5-M4)),"") -> 0 | O6: ! Unzulässige Berechnung (Mankoteilung; vgl. BGer 5A_1031/2019, E 5.1) !
A7: Barunterhalt
A8: Mittel zur Deckung Barunterhalt (theoretisch / effektiv) | B8: =$B$6 -> 0 | C8: =IF(B8>0,B8,0) -> 0 | H8: =IF($H$6>0,$H$6,0) -> 0
A9: Theoretisch geschuldeter Barunterhalt (Einkommen Kinder abgezogen) | D9: =GR!F$72 -> 0 | E9: =GR!G$72 -> 0 | F9: =GR!H$72 -> 0 | G9: =GR!I$72 -> 0 | J9: =GR!O$72 -> 0 | K9: =GR!P$72 -> 0 | L9: =GR!Q$72 -> 0 | M9: =GR!R$72 -> 0
A10: ="Von "&IF(GR!M6<>"",GR!M6,"")&" geschuldeter Barunterhalt ohne Leistungsfähigkeit "&IF(GR!D6<>"",GR!D6,"") -> Von geschuldeter Barunterhalt ohne Leistungsfähigkeit | D10: =IF(AND(RawData!$N$6=0,$H$6-SUM($D$9:$G$9,RawData!$N10*$J$9+RawData!$N11*$K$9+RawData!$N12*$L$9+RawData!$N13*$M$9)>=0),D$9,IF(AND(RawData!$N$6=0,$H$6-SUM($D$9:$G$9,RawData!$N10*$J$9+RawData!$N11*$K$9+RawData!$N12*$L$9+RawData!$N13*$M$9)<0,$H$6>0),$H$6*SUM(D$9/SUM($D$9:$G$9,RawData!$N10*$J$9+RawData!$N11*$K$9+RawData!$N12*$L$9+RawData!$N13*$M$9)),IF(AND(RawData!$N$6=1,$H$6-SUM($D$9:$G$9,RawData!$N10*$J$9+RawData!$N11*$K$9+RawData!$N12*$L$9+RawData!$N13*$M$9)>=0),D$9,IF(AND(RawData!$N$6=1,$H$6-SUM($D$9:$G$9,RawData!$N10*$J$9+RawData!$N11*$K$9+RawData!$N12*$L$9+RawData!$N13*$M$9)<0,$H$6>0),$H$6*SUM(D$9/SUM($D$9:$G$9,RawData!$N10*$J$9+RawData!$N11*$K$9+RawData!$N12*$L$9+RawData!$N13*$M$9)),IF(AND($H$6<=0),0))))) -> 0 | E10: =IF(AND(RawData!$N$7=0,$H$6-SUM($D$9:$G$9,RawData!$N10*$J$9+RawData!$N11*$K$9+RawData!$N12*$L$9+RawData!$N13*$M$9)>=0),E$9,IF(AND(RawData!$N$7=0,$H$6-SUM($D$9:$G$9,RawData!$N10*$J$9+RawData!$N11*$K$9+RawData!$N12*$L$9+RawData!$N13*$M$9)<0,$H$6>0),$H$6*SUM(E$9/SUM($D$9:$G$9,RawData!$N10*$J$9+RawData!$N11*$K$9+RawData!$N12*$L$9+RawData!$N13*$M$9)),IF(AND(RawData!$N$7=1,$H$6-SUM($D$9:$G$9,RawData!$N10*$J$9+RawData!$N11*$K$9+RawData!$N12*$L$9+RawData!$N13*$M$9)>=0),E$9,IF(AND(RawData!$N$7=1,$H$6-SUM($D$9:$G$9,RawData!$N10*$J$9+RawData!$N11*$K$9+RawData!$N12*$L$9+RawData!$N13*$M$9)<0,$H$6>0),$H$6*SUM(E$9/SUM($D$9:$G$9,RawData!$N10*$J$9+RawData!$N11*$K$9+RawData!$N12*$L$9+RawData!$N13*$M$9)),IF(AND($H$6<=0),0))))) -> 0 | F10: =IF(AND(RawData!$N$8=0,$H$6-SUM($D$9:$G$9,RawData!$N10*$J$9+RawData!$N11*$K$9+RawData!$N12*$L$9+RawData!$N13*$M$9)>=0),F$9,IF(AND(RawData!$N$8=0,$H$6-SUM($D$9:$G$9,RawData!$N10*$J$9+RawData!$N11*$K$9+RawData!$N12*$L$9+RawData!$N13*$M$9)<0,$H$6>0),$H$6*SUM(F$9/SUM($D$9:$G$9,RawData!$N10*$J$9+RawData!$N11*$K$9+RawData!$N12*$L$9+RawData!$N13*$M$9)),IF(AND(RawData!$N$8=1,$H$6-SUM($D$9:$G$9,RawData!$N10*$J$9+RawData!$N11*$K$9+RawData!$N12*$L$9+RawData!$N13*$M$9)>=0),F$9,IF(AND(RawData!$N$8=1,$H$6-SUM($D$9:$G$9,RawData!$N10*$J$9+RawData!$N11*$K$9+RawData!$N12*$L$9+RawData!$N13*$M$9)<0,$H$6>0),$H$6*SUM(F$9/SUM($D$9:$G$9,RawData!$N10*$J$9+RawData!$N11*$K$9+RawData!$N12*$L$9+RawData!$N13*$M$9)),IF(AND($H$6<=0),0))))) -> 0 | G10: =IF(AND(RawData!$N$9=0,$H$6-SUM($D$9:$G$9,RawData!$N10*$J$9+RawData!$N11*$K$9+RawData!$N12*$L$9+RawData!$N13*$M$9)>=0),G$9,IF(AND(RawData!$N$9=0,$H$6-SUM($D$9:$G$9,RawData!$N10*$J$9+RawData!$N11*$K$9+RawData!$N12*$L$9+RawData!$N13*$M$9)<0,$H$6>0),$H$6*SUM(G$9/SUM($D$9:$G$9,RawData!$N10*$J$9+RawData!$N11*$K$9+RawData!$N12*$L$9+RawData!$N13*$M$9)),IF(AND(RawData!$N$9=1,$H$6-SUM($D$9:$G$9,RawData!$N10*$J$9+RawData!$N11*$K$9+RawData!$N12*$L$9+RawData!$N13*$M$9)>=0),G$9,IF(AND(RawData!$N$9=1,$H$6-SUM($D$9:$G$9,RawData!$N10*$J$9+RawData!$N11*$K$9+RawData!$N12*$L$9+RawData!$N13*$M$9)<0,$H$6>0),$H$6*SUM(G$9/SUM($D$9:$G$9,RawData!$N10*$J$9+RawData!$N11*$K$9+RawData!$N12*$L$9+RawData!$N13*$M$9)),IF(AND($H$6<=0),0))))) -> 0 | J10: =IF(AND(RawData!$N$6=0,$H$6-SUM($D$9:$G$9,RawData!$N10*$J$9+RawData!$N11*$K$9+RawData!$N12*$L$9+RawData!$N13*$M$9)>=0),J$9,IF(AND(RawData!$N$6=0,$H$6-SUM($D$9:$G$9,RawData!$N10*$J$9+RawData!$N11*$K$9+RawData!$N12*$L$9+RawData!$N13*$M$9)<0,$H$6>0),$H$6*SUM(J$9/SUM($D$9:$G$9,RawData!$N10*$J$9+RawData!$N11*$K$9+RawData!$N12*$L$9+RawData!$N13*$M$9)),IF(RawData!$N$6=1,0,IF(AND($H$6<=0),0)))) -> 0 | K10: =IF(AND(RawData!$N$7=0,$H$6-SUM($D$9:$G$9,RawData!$N10*$J$9+RawData!$N11*$K$9+RawData!$N12*$L$9+RawData!$N13*$M$9)>=0),K$9,IF(AND(RawData!$N$7=0,$H$6-SUM($D$9:$G$9,RawData!$N10*$J$9+RawData!$N11*$K$9+RawData!$N12*$L$9+RawData!$N13*$M$9)<0,$H$6>0),$H$6*SUM(K$9/SUM($D$9:$G$9,RawData!$N10*$J$9+RawData!$N11*$K$9+RawData!$N12*$L$9+RawData!$N13*$M$9)),IF(RawData!$N$7=1,0,IF(AND($H$6<=0),0)))) -> 0 | L10: =IF(AND(RawData!$N$8=0,$H$6-SUM($D$9:$G$9,RawData!$N10*$J$9+RawData!$N11*$K$9+RawData!$N12*$L$9+RawData!$N13*$M$9)>=0),L$9,IF(AND(RawData!$N$8=0,$H$6-SUM($D$9:$G$9,RawData!$N10*$J$9+RawData!$N11*$K$9+RawData!$N12*$L$9+RawData!$N13*$M$9)<0,$H$6>0),$H$6*SUM(L$9/SUM($D$9:$G$9,RawData!$N10*$J$9+RawData!$N11*$K$9+RawData!$N12*$L$9+RawData!$N13*$M$9)),IF(RawData!$N$8=1,0,IF(AND($H$6<=0),0)))) -> 0 | M10: =IF(AND(RawData!$N$9=0,$H$6-SUM($D$9:$G$9,RawData!$N10*$J$9+RawData!$N11*$K$9+RawData!$N12*$L$9+RawData!$N13*$M$9)>=0),M$9,IF(AND(RawData!$N$9=0,$H$6-SUM($D$9:$G$9,RawData!$N10*$J$9+RawData!$N11*$K$9+RawData!$N12*$L$9+RawData!$N13*$M$9)<0,$H$6>0),$H$6*SUM(M$9/SUM($D$9:$G$9,RawData!$N10*$J$9+RawData!$N11*$K$9+RawData!$N12*$L$9+RawData!$N13*$M$9)),IF(RawData!$N$9=1,0,IF(AND($H$6<=0),0)))) -> 0 | O10: Manko Barunterhalt: | P10: =IF(SUM($D$9:$G$9,RawData!$N10*$J$9+RawData!$N11*$K$9+RawData!$N12*$L$9+RawData!$N13*$M$9)>SUM($D$10:$G$10,RawData!$N10*$J$10+RawData!$N11*$K$10+RawData!$N12*$L$10+RawData!N13*$M$10),SUM($D$10:$G$10,RawData!N10*$J$10+RawData!N11*$K$10+RawData!N12*$L$10+RawData!N13*$M$10)-SUM($D$9:$G$9,RawData!$N10*$J$9+RawData!$N11*$K$9+RawData!$N12*$L$9+RawData!$N13*$M$9),0) -> 0
A11: Betreuungsunterhalt
A12: Mittel nach Deckung Barbedarf (theoretisch / effektiv) | B12: =B6 -> 0 | C12: =IF(B12>0,B12,0) -> 0 | H12: =IF(AND($H$6<>"",SUM($H$6-SUM($D$9:$G$9,SUM(RawData!N10*$J$9+RawData!N11*$K$9+RawData!N12*$L$9+RawData!N13*$M$9)))>0),SUM($H$6-SUM($D$9:$G$9,SUM(RawData!N10*$J$9+RawData!N11*$K$9+RawData!N12*$L$9+RawData!N13*$M$9))),0) -> 0
A13: Gem. manueller Verteilung in GR Zeile 75 geschuldeter Betreuungsunterhalt | D13: =GR!F$75 -> 0 | E13: =GR!G$75 -> 0 | F13: =GR!H$75 -> 0 | G13: =GR!I$75 -> 0 | J13: =GR!O$75 -> 0 | K13: =GR!P$75 -> 0 | L13: =GR!Q$75 -> 0 | M13: =GR!R$75 -> 0 | O13: ! Im GR prüfen !
A14: ="Effektiv von "&IF(GR!M6<>"",GR!M6,"")&" geschuldeter Betreuungsunterhalt" -> Effektiv von geschuldeter Betreuungsunterhalt | D14: =IF(AND($H$12>=0,$H$12>=SUM($D$13:$G$13,$J$13:$M$13)),D$13,IF(AND($H$12>0,$H$12<SUM($D$13:$G$13,$J$13:$M$13)),$H$12*SUM(D$13)/SUM($D$13:$G$13,$J$13:$M$13),IF(SUM($D$13:$G$13,$J$13:$M$13)=0,0,IF(AND($H$12<=0),0,0)))) -> 0 | E14: =IF(AND($H$12>=0,$H$12>=SUM($D$13:$G$13,$J$13:$M$13)),E$13,IF(AND($H$12>0,$H$12<SUM($D$13:$G$13,$J$13:$M$13)),$H$12*SUM(E$13)/SUM($D$13:$G$13,$J$13:$M$13),IF(SUM($D$13:$G$13,$J$13:$M$13)=0,0,IF(AND($H$12<=0),0,0)))) -> 0 | F14: =IF(AND($H$12>=0,$H$12>=SUM($D$13:$G$13,$J$13:$M$13)),F$13,IF(AND($H$12>0,$H$12<SUM($D$13:$G$13,$J$13:$M$13)),$H$12*SUM(F$13)/SUM($D$13:$G$13,$J$13:$M$13),IF(SUM($D$13:$G$13,$J$13:$M$13)=0,0,IF(AND($H$12<=0),0,0)))) -> 0 | G14: =IF(AND($H$12>=0,$H$12>=SUM($D$13:$G$13,$J$13:$M$13)),G$13,IF(AND($H$12>0,$H$12<SUM($D$13:$G$13,$J$13:$M$13)),$H$12*SUM(G$13)/SUM($D$13:$G$13,$J$13:$M$13),IF(SUM($D$13:$G$13,$J$13:$M$13)=0,0,IF(AND($H$12<=0),0,0)))) -> 0 | J14: =IF(AND($H$12>=0,$H$12>=SUM($D$13:$G$13,$J$13:$M$13)),J$13,IF(AND($H$12>0,$H$12<SUM($D$13:$G$13,$J$13:$M$13)),$H$12*SUM(J$13)/SUM($D$13:$G$13,$J$13:$M$13),IF(SUM($D$13:$G$13,$J$13:$M$13)=0,0,IF(AND($H$12<=0),0,0)))) -> 0 | K14: =IF(AND($H$12>=0,$H$12>=SUM($D$13:$G$13,$J$13:$M$13)),K$13,IF(AND($H$12>0,$H$12<SUM($D$13:$G$13,$J$13:$M$13)),$H$12*SUM(K$13)/SUM($D$13:$G$13,$J$13:$M$13),IF(SUM($D$13:$G$13,$J$13:$M$13)=0,0,IF(AND($H$12<=0),0,0)))) -> 0 | L14: =IF(AND($H$12>=0,$H$12>=SUM($D$13:$G$13,$J$13:$M$13)),L$13,IF(AND($H$12>0,$H$12<SUM($D$13:$G$13,$J$13:$M$13)),$H$12*SUM(L$13)/SUM($D$13:$G$13,$J$13:$M$13),IF(SUM($D$13:$G$13,$J$13:$M$13)=0,0,IF(AND($H$12<=0),0,0)))) -> 0 | M14: =IF(AND($H$12>=0,$H$12>=SUM($D$13:$G$13,$J$13:$M$13)),M$13,IF(AND($H$12>0,$H$12<SUM($D$13:$G$13,$J$13:$M$13)),$H$12*SUM(M$13)/SUM($D$13:$G$13,$J$13:$M$13),IF(SUM($D$13:$G$13,$J$13:$M$13)=0,0,IF(AND($H$12<=0),0,0)))) -> 0 | O14: Manko Betreuungsunterhalt: | P14: =IF(SUM($D$13:$G$13,$J$13:$M$13)>SUM($D$14:$G$14,$J$14:$M$14),SUM($D$14:$G$14,$J$14:$M$14)-SUM($D$13:$G$13,$J$13:$M$13),0) -> 0
A15: (Nach-)Ehelicher Unterhalt
A16: Mittel nach Deckung Kinderunterhalt | B16: =IF(AND(GR!B4 = "ledig",SUM(B12+SUM($D$14:$G$14)) < 0), 0, SUM(B12+SUM($D$14:$G$14))) -> 0 | H16: =IF($H$12>0,$H$12-SUM(D14:G14,J14:M14),0) -> 0
A17: ="Anspruch "&IF(GR!$D$6<>"",GR!$D$6,"")&" zur Deckung fam. Bedarf (theoretisch / effektiv)" -> Anspruch zur Deckung fam. Bedarf (theoretisch / effektiv) | B17: =IF(B16<0,ABS(B16),0) -> 0 | C17: =IF(SUM($D$13:$G$13)>SUM($D$14:$G$14),0,IF(AND(SUM($D$13:$G$13)=SUM($D$14:$G$14),$B$16>0),0,IF(AND(SUM($D$13:$G$13)=SUM($D$14:$G$14),$B$16<=0,$H$16>0,$H$16>ABS($B$16)),ABS($B$16),IF(AND(SUM($D$13:$G$13)=SUM($D$14:$G$14),$B$16<=0,$H$16<=ABS($B$16)),$H$16,0)))) -> 0 | O17: Manko fam. Bedarf | P17: =IF(B17>C17,C17-B17,0) -> 0
A18: ="Beitrag von "&IF(GR!$D$6<>"",GR!$D$6,"")&" zur Mankodeckung [ = Total "&ROUND(SUM(D19:G19,J19:M19),0)&" / "&ROUND(SUM(D20:G20,J20:M20),0)&" ]" -> Beitrag von zur Mankodeckung [ = Total 0 / 0 ]
A19: ="Beitrag "&IF(GR!$D$6<>"",GR!$D$6,"")&" zur Mankodeckung Barunterhalt Kinder" -> Beitrag zur Mankodeckung Barunterhalt Kinder | D19: =IF($P$10=0,0,IF(AND(RawData!$N6=1,$P$10<0,$B$16>0,D$9>0),MIN(D$9-D$10,$B$16*(D$9/SUM($D$9:$G$9,RawData!$N$10*$J$9+RawData!$N$11*$K$9+RawData!$N$12*$L$9+RawData!$N$13*$M$9))),IF(AND(RawData!$N6=0,$P$10<0,$B$16>0,D$9>0),MIN(D$9-D$10,$B$16*(D$9/SUM($D$9:$G$9,RawData!$N10*$J$9+RawData!$N11*$K$9+RawData!$N12*$L$9+RawData!$N13*$M$9))),0))) -> 0 | E19: =IF($P$10=0,0,IF(AND(RawData!$N7=1,$P$10<0,$B$16>0,E$9>0),MIN(E$9-E$10,$B$16*(E$9/SUM($D$9:$G$9,RawData!$N$10*$J$9+RawData!$N$11*$K$9+RawData!$N$12*$L$9+RawData!$N$13*$M$9))),IF(AND(RawData!$N7=0,$P$10<0,$B$16>0,E$9>0),MIN(E$9-E$10,$B$16*(E$9/SUM($D$9:$G$9,RawData!$N10*$J$9+RawData!$N11*$K$9+RawData!$N12*$L$9+RawData!$N13*$M$9))),0))) -> 0 | F19: =IF($P$10=0,0,IF(AND(RawData!$N7=1,$P$10<0,$B$16>0,F$9>0),MIN(F$9-F$10,$B$16*(F$9/SUM($D$9:$G$9,RawData!$N$10*$J$9+RawData!$N$11*$K$9+RawData!$N$12*$L$9+RawData!$N$13*$M$9))),IF(AND(RawData!$N7=0,$P$10<0,$B$16>0,F$9>0),MIN(F$9-F$10,$B$16*(F$9/SUM($D$9:$G$9,RawData!$N10*$J$9+RawData!$N11*$K$9+RawData!$N12*$L$9+RawData!$N13*$M$9))),0))) -> 0 | G19: =IF($P$10=0,0,IF(AND(RawData!$N7=1,$P$10<0,$B$16>0,G$9>0),MIN(G$9-G$10,$B$16*(G$9/SUM($D$9:$G$9,RawData!$N$10*$J$9+RawData!$N$11*$K$9+RawData!$N$12*$L$9+RawData!$N$13*$M$9))),IF(AND(RawData!$N7=0,$P$10<0,$B$16>0,G$9>0),MIN(G$9-G$10,$B$16*(G$9/SUM($D$9:$G$9,RawData!$N10*$J$9+RawData!$N11*$K$9+RawData!$N12*$L$9+RawData!$N13*$M$9))),0))) -> 0 | J19: =IF($P$10=0,0,IF(AND(RawData!$N6=1,$P$10<0,$B$16>0,J$9>0),0,IF(AND(RawData!$N6=0,$P$10<0,$B$16>0,J$9>0),MIN(J$9-J$10,$B$16*(J$9/SUM($D$9:$G$9,RawData!$N10*$J$9+RawData!$N11*$K$9+RawData!$N12*$L$9+RawData!$N13*$M$9)),0),0))) -> 0 | K19: =IF($P$10=0,0,IF(AND(RawData!$N6=1,$P$10<0,$B$16>0,K$9>0),0,IF(AND(RawData!$N6=0,$P$10<0,$B$16>0,K$9>0),MIN(K$9-K$10,$B$16*(K$9/SUM($D$9:$G$9,RawData!$N10*$J$9+RawData!$N11*$K$9+RawData!$N12*$L$9+RawData!$N13*$M$9)),0),0))) -> 0 | L19: =IF($P$10=0,0,IF(AND(RawData!$N6=1,$P$10<0,$B$16>0,L$9>0),0,IF(AND(RawData!$N6=0,$P$10<0,$B$16>0,L$9>0),MIN(L$9-L$10,$B$16*(L$9/SUM($D$9:$G$9,RawData!$N10*$J$9+RawData!$N11*$K$9+RawData!$N12*$L$9+RawData!$N13*$M$9)),0),0))) -> 0 | M19: =IF($P$10=0,0,IF(AND(RawData!$N6=1,$P$10<0,$B$16>0,M$9>0),0,IF(AND(RawData!$N6=0,$P$10<0,$B$16>0,M$9>0),MIN(M$9-M$10,$B$16*(M$9/SUM($D$9:$G$9,RawData!$N10*$J$9+RawData!$N11*$K$9+RawData!$N12*$L$9+RawData!$N13*$M$9)),0),0))) -> 0
A20: ="Beitrag "&IF(GR!$D$6<>"",GR!$D$6,"")&" zur Mankodeckung Betreuungsunterhalt" -> Beitrag zur Mankodeckung Betreuungsunterhalt | D20: =IF(AND($P$14<0,$B$16-SUM($D$19:$G$19)>0,D$13>0),MIN(D$13/SUM($D$13:$G$13,$J$13:$M$13)*($B$16-SUM($D$19:$G$19,$J$19:$M$19)),(-($P$10+$P$14)-SUM($D19:$G19,$J$19:$M$19))*(D$13/SUM($D$13:$G$13,$J$13:$M$13))),0) -> 0 | E20: =IF(AND($P$14<0,$B$16-SUM($D$19:$G$19)>0,E$13>0),MIN(E$13/SUM($D$13:$G$13,$J$13:$M$13)*($B$16-SUM($D$19:$G$19,$J$19:$M$19)),(-($P$10+$P$14)-SUM($D19:$G19,$J$19:$M$19))*(E$13/SUM($D$13:$G$13,$J$13:$M$13))),0) -> 0 | F20: =IF(AND($P$14<0,$B$16-SUM($D$19:$G$19)>0,F$13>0),MIN(F$13/SUM($D$13:$G$13,$J$13:$M$13)*($B$16-SUM($D$19:$G$19,$J$19:$M$19)),(-($P$10+$P$14)-SUM($D19:$G19,$J$19:$M$19))*(F$13/SUM($D$13:$G$13,$J$13:$M$13))),0) -> 0 | G20: =IF(AND($P$14<0,$B$16-SUM($D$19:$G$19)>0,G$13>0),MIN(G$13/SUM($D$13:$G$13,$J$13:$M$13)*($B$16-SUM($D$19:$G$19,$J$19:$M$19)),(-($P$10+$P$14)-SUM($D19:$G19,$J$19:$M$19))*(G$13/SUM($D$13:$G$13,$J$13:$M$13))),0) -> 0 | J20: =IF(AND($P$14<0,$B$16-SUM($D$19:$G$19)>0,J$13>0),MIN(J$13/SUM($D$13:$G$13,$J$13:$M$13)*($B$16-SUM($D$19:$G$19,$J$19:$M$19)),(-($P$10+$P$14)-SUM($D19:$G19,$J$19:$M$19))*(J$13/SUM($D$13:$G$13,$J$13:$M$13))),0) -> 0 | K20: =IF(AND($P$14<0,$B$16-SUM($D$19:$G$19)>0,K$13>0),MIN(K$13/SUM($D$13:$G$13,$J$13:$M$13)*($B$16-SUM($D$19:$G$19,$J$19:$M$19)),(-($P$10+$P$14)-SUM($D19:$G19,$J$19:$M$19))*(K$13/SUM($D$13:$G$13,$J$13:$M$13))),0) -> 0 | L20: =IF(AND($P$14<0,$B$16-SUM($D$19:$G$19)>0,L$13>0),MIN(L$13/SUM($D$13:$G$13,$J$13:$M$13)*($B$16-SUM($D$19:$G$19,$J$19:$M$19)),(-($P$10+$P$14)-SUM($D19:$G19,$J$19:$M$19))*(L$13/SUM($D$13:$G$13,$J$13:$M$13))),0) -> 0 | M20: =IF(AND($P$14<0,$B$16-SUM($D$19:$G$19)>0,M$13>0),MIN(M$13/SUM($D$13:$G$13,$J$13:$M$13)*($B$16-SUM($D$19:$G$19,$J$19:$M$19)),(-($P$10+$P$14)-SUM($D19:$G19,$J$19:$M$19))*(M$13/SUM($D$13:$G$13,$J$13:$M$13))),0) -> 0
A21: Überschussverteilung
A29: ="Überschuss "&IF(GR!$D$6<>"",GR!$D$6,"")&" / Überschuss "&IF(GR!$M$6<>"",GR!$M$6,"")&"" -> Überschuss / Überschuss | B29: =IF(B16-SUM(D19:G20,J19:M20)>0,B16-SUM(D19:G20,J19:M20),0) -> 0 | H29: =IF(H16-C17>0,H16-C17,0) -> 0 | O29: Gesamtüberschuss: | P29: =B29+H29 -> 0
A30: Anteil am (Gesamt-)Überschuss gem. Verteilung in GR Zeile 83 | B30: =SUM(GR!D$83*GR!$B$82) -> 0 | D30: =SUM(GR!F$83*GR!$B$82) -> 0 | E30: =SUM(GR!G$83*GR!$B$82) -> 0 | F30: =SUM(GR!H$83*GR!$B$82) -> 0 | G30: =SUM(GR!I$83*GR!$B$82) -> 0 | H30: =SUM(GR!M$83*GR!$B$82) -> 0 | J30: =SUM(GR!O$83*GR!$B$82) -> 0 | K30: =SUM(GR!P$83*GR!$B$82) -> 0 | L30: =SUM(GR!Q$83*GR!$B$82) -> 0 | M30: =SUM(GR!R$83*GR!$B$82) -> 0 | O30: ! Im GR prüfen !
A31: ="Überschussbeteiligung von "&IF(GR!$D$6<>"",GR!$D$6,"") -> Überschussbeteiligung von | B31: =IF(OR($B$29<=0,$B30<=0),0,IF(AND($B$29>0,$B$30>0,$B$29<=$B$30),$B$29,IF(AND($B$29>$B$30,$B$30>0,$B$29<=SUM($B$30:$G$30)),$B$30,IF(AND($B$29>$B$30,$B$30>0,$B$29>SUM($B$30:$G$30)),$B$30)))) -> 0 | D31: =IF(OR($B$29<=0,D$30<=0),0,IF(AND($B$29>0,$B$29<=$B$30),0,IF(AND($B$29>$B$30,D$30>0,$B$29<=SUM($B$30:$G$30)),SUM($B$29-$B$30)*(D$30/SUM($D$30:$G$30)),IF(AND($B$29>$B$30,D$30>0,$B$29>SUM($B$30:$G$30)),D$30)))) -> 0 | E31: =IF(OR($B$29<=0,E$30<=0),0,IF(AND($B$29>0,$B$29<=$B$30),0,IF(AND($B$29>$B$30,E$30>0,$B$29<=SUM($B$30:$G$30)),SUM($B$29-$B$30)*(E$30/SUM($D$30:$G$30)),IF(AND($B$29>$B$30,E$30>0,$B$29>SUM($B$30:$G$30)),E$30)))) -> 0 | F31: =IF(OR($B$29<=0,F$30<=0),0,IF(AND($B$29>0,$B$29<=$B$30),0,IF(AND($B$29>$B$30,F$30>0,$B$29<=SUM($B$30:$G$30)),SUM($B$29-$B$30)*(F$30/SUM($D$30:$G$30)),IF(AND($B$29>$B$30,F$30>0,$B$29>SUM($B$30:$G$30)),F$30)))) -> 0 | G31: =IF(OR($B$29<=0,G$30<=0),0,IF(AND($B$29>0,$B$29<=$B$30),0,IF(AND($B$29>$B$30,G$30>0,$B$29<=SUM($B$30:$G$30)),SUM($B$29-$B$30)*(G$30/SUM($D$30:$G$30)),IF(AND($B$29>$B$30,G$30>0,$B$29>SUM($B$30:$G$30)),G$30)))) -> 0 | H31: =IF($H$30<=0,0,IF(AND($H$29>=$H$30,$H$30>0),0,IF(AND($H$29<$H$30,$H$30>0),MIN(SUM($D$10:$G$10),$H30-$H29)))) -> 0 | J31: =IF(J30<=0,0,IF(AND($H$29>$H$30,$H$29>SUM($H$30:$M$30)),0,IF(AND($H$29>$H$30,$H$29<=SUM($H$30:$M$30)),MIN(D$10,($B$29-SUM($B$31:$H$31))*(J$30/SUM($J$30:$M$30))),IF(AND($H29<$H30,D$10>D$30),MIN(D$30,(($B$29-SUM($B31:$I$31)*(J$30/SUM($J$30:$M$30))))),IF(AND($H29<$H30,D$10<=D$30),MIN(D$10,(($B$29-SUM($B31:$I$31)*(J$30/SUM($J$30:$M$30)))))))))) -> 0 | K31: =IF(K30=0,0,IF(AND($H$29>$H$30,$H$29>SUM($H$30:$M$30)),0,IF(AND($H$29>$H$30,$H$29<=SUM($H$30:$M$30)),MIN(E$10,($B$29-SUM($B$31:$H$31))*(K$30/SUM($J$30:$M$30))),IF(AND($H29<$H30,E$10>E$30),MIN(E$30,(($B$29-SUM($B31:$I$31)*(K$30/SUM($J$30:$M$30))))),IF(AND($H29<$H30,E$10<=E$30),MIN(E$10,(($B$29-SUM($B31:$I$31)*(K$30/SUM($J$30:$M$30)))))))))) -> 0 | L31: =IF(L30=0,0,IF(AND($H$29>$H$30,$H$29>SUM($H$30:$M$30)),0,IF(AND($H$29>$H$30,$H$29<=SUM($H$30:$M$30)),MIN(F$10,($B$29-SUM($B$31:$H$31))*(L$30/SUM($J$30:$M$30))),IF(AND($H29<$H30,F$10>F$30),MIN(F$30,(($B$29-SUM($B31:$I$31)*(L$30/SUM($J$30:$M$30))))),IF(AND($H29<$H30,F$10<=F$30),MIN(F$10,(($B$29-SUM($B31:$I$31)*(L$30/SUM($J$30:$M$30)))))))))) -> 0 | M31: =IF(M30=0,0,IF(AND($H$29>$H$30,$H$29>SUM($H$30:$M$30)),0,IF(AND($H$29>$H$30,$H$29<=SUM($H$30:$M$30)),MIN(G$10,($B$29-SUM($B$31:$H$31))*(M$30/SUM($J$30:$M$30))),IF(AND($H29<$H30,G$10>G$30),MIN(G$30,(($B$29-SUM($B31:$I$31)*(M$30/SUM($J$30:$M$30))))),IF(AND($H29<$H30,G$10<=G$30),MIN(G$10,(($B$29-SUM($B31:$I$31)*(M$30/SUM($J$30:$M$30)))))))))) -> 0
A32: ="Überschussbeteiligung von "&IF(GR!$M$6<>"",GR!$M$6,"") -> Überschussbeteiligung von | B32: =IF($B$29=0,B$30,IF(AND($B$29>0,$B$30>0,$B$29<=$B$30),$B$30-$B$31,IF(AND($B$29>$B$30,$B$29<=SUM($B$30:$G$30)),0,IF(AND($B$29>SUM($B$30:$G$30)),B$30-B$31)))) -> 0 | D32: =IF($B$29=0,D$30,IF(AND($B$29>0,$B$29<=$B$30),D$30,IF(AND($B$29>$B$30,$B$29<=SUM($B$30:$G$30)),D$30-D$31,IF(AND($B$29>$B$30,$B$29>SUM($B$30:$G$30)),0)))) -> 0 | E32: =IF($B$29=0,E$30,IF(AND($B$29>0,$B$29<=$B$30),E$30,IF(AND($B$29>$B$30,$B$29<=SUM($B$30:$G$30)),E$30-E$31,IF(AND($B$29>$B$30,$B$29>SUM($B$30:$G$30)),0)))) -> 0 | F32: =IF($B$29=0,F$30,IF(AND($B$29>0,$B$29<=$B$30),F$30,IF(AND($B$29>$B$30,$B$29<=SUM($B$30:$G$30)),F$30-F$31,IF(AND($B$29>$B$30,$B$29>SUM($B$30:$G$30)),0)))) -> 0 | G32: =IF($B$29=0,G$30,IF(AND($B$29>0,$B$29<=$B$30),G$30,IF(AND($B$29>$B$30,$B$29<=SUM($B$30:$G$30)),G$30-G$31,IF(AND($B$29>$B$30,$B$29>SUM($B$30:$G$30)),0)))) -> 0 | H32: =IF($H$29>=$H$30,$H$30,IF(AND($H$29<$H$30,$H$30>0),$H$30-$H$31)) -> 0 | J32: =IF(J30=0,0,IF($H$29>SUM($H$30:$M$30),J$30,IF(AND($H$29>$H$30,$H$29<=SUM($H$30:$M$30)),($H$29-$H30)*(J$30/SUM($J$30:$M$30)),IF($H$29<$H$30,0)))) -> 0 | K32: =IF(K30=0,0,IF($H$29>SUM($H$30:$M$30),K$30,IF(AND($H$29>$H$30,$H$29<=SUM($H$30:$M$30)),($H$29-$H30)*(K$30/SUM($J$30:$M$30)),IF($H$29<$H$30,0)))) -> 0 | L32: =IF(L30=0,0,IF($H$29>SUM($H$30:$M$30),L$30,IF(AND($H$29>$H$30,$H$29<=SUM($H$30:$M$30)),($H$29-$H30)*(L$30/SUM($J$30:$M$30)),IF($H$29<$H$30,0)))) -> 0 | M32: =IF(M30=0,0,IF($H$29>SUM($H$30:$M$30),M$30,IF(AND($H$29>$H$30,$H$29<=SUM($H$30:$M$30)),($H$29-$H30)*(M$30/SUM($J$30:$M$30)),IF($H$29<$H$30,0)))) -> 0
A33: ="Beitrag von "&IF(GR!$D$6<>"",GR!$D$6,"")&" am Barunterhalt der Kinder im eigenen Haushalt (GR Spalten D bis G) [ = Total "&ROUND(SUM(D34:G34),0)&" ]" -> Beitrag von am Barunterhalt der Kinder im eigenen Haushalt (GR Spalten D bis G) [ = Total 0 ]
A34: ="Anteil von "&IF(GR!$D$6<>"",GR!$D$6,"")&" an der Bedarfsdeckung der Kinder in GR Spalte D bis G" -> Anteil von an der Bedarfsdeckung der Kinder in GR Spalte D bis G | D34: =IF($H$29>=SUM($H$30:$M$30),0,IF($H$29<SUM($H$30:$M$30),MIN((D$9/SUM($D$9:$G$9))*(SUM($H$30:$M$30)-SUM($H$32:$M$32)),D$9/SUM($D$9:$G$9)*$H$6),0)) -> 0 | E34: =IF($H$29>=SUM($H$30:$M$30),0,IF($H$29<SUM($H$30:$M$30),MIN((E$9/SUM($D$9:$G$9))*(SUM($H$30:$M$30)-SUM($H$32:$M$32)),E$9/SUM($D$9:$G$9)*$H$6),0)) -> 0 | F34: =IF($H$29>=SUM($H$30:$M$30),0,IF($H$29<SUM($H$30:$M$30),MIN((F$9/SUM($D$9:$G$9))*(SUM($H$30:$M$30)-SUM($H$32:$M$32)),F$9/SUM($D$9:$G$9)*$H$6),0)) -> 0 | G34: =IF($H$29>=SUM($H$30:$M$30),0,IF($H$29<SUM($H$30:$M$30),MIN((G$9/SUM($D$9:$G$9))*(SUM($H$30:$M$30)-SUM($H$32:$M$32)),G$9/SUM($D$9:$G$9)*$H$6),0)) -> 0
A35: Mankos
A36: Theoretische Unterhaltsansprüche | B36: =SUM(B$17,$B$30) -> 0 | D36: =SUM(D$9,D$13,D$30) -> 0 | E36: =SUM(E$9,E$13,E$30) -> 0 | F36: =SUM(F$9,F$13,F$30) -> 0 | G36: =SUM(G$9,G$13,G$30) -> 0 | J36: =IF(AND(RawData!$N6=1),SUM(J$5,J$13,J$30),IF(AND(RawData!$N$6=0),SUM(J$9,J$13,J$30))) -> 0 | K36: =IF(AND(RawData!$N7=1),SUM(K$5,K$13,K$30),IF(AND(RawData!$N7=0),SUM(K$9,K$13,K$30))) -> 0 | L36: =IF(AND(RawData!$N8=1),SUM(L$5,L$13,L$30),IF(AND(RawData!$N8=0),SUM(L$9,L$13,L$30))) -> 0 | M36: =IF(AND(RawData!$N9=1),SUM(M$5,M$13,M$30),IF(AND(RawData!$N9=0),SUM(M$9,M$13,M$30))) -> 0
A37: ="Anteil Unterhaltsbeiträge (ohne Zeile 34) von "&IF(GR!$M$6<>"",GR!$M$6,"") -> Anteil Unterhaltsbeiträge (ohne Zeile 34) von | B37: =SUM($C$17,B$32) -> 0 | D37: =SUM(D$10,D$14,D$32) -> 0 | E37: =SUM(E$10,E$14,E$32) -> 0 | F37: =SUM(F$10,F$14,F$32) -> 0 | G37: =SUM(G$10,G$14,G$32) -> 0 | J37: =IF(AND(RawData!$N6=1,$H$6>=0),SUM(J$5,J$14,J32),IF(AND(RawData!$N$6=0,$H$6>=0),SUM(J$10,J$14,J$32),IF(AND(RawData!$N$6=0,$H$6<0),SUM(J$10,J$14,J$32)))) -> 0 | K37: =IF(AND(RawData!$N7=1,$H$6>=0),SUM(K$5,K$14,K32),IF(AND(RawData!$N$7=0,$H$6>=0),SUM(K$10,K$14,K$32),IF(AND(RawData!$N$7=0,$H$6<0),SUM(J$10,J$14,J$32)))) -> 0 | L37: =IF(AND(RawData!$N8=1,$H$6>=0),SUM(L$5,L$14,L32),IF(AND(RawData!$N$8=0,$H$6>=0),SUM(L$10,L$14,L$32),IF(AND(RawData!$N$8=0,$H$6<0),SUM(J$10,J$14,J$32)))) -> 0 | M37: =IF(AND(RawData!$N9=1,$H$6>=0),SUM(M$5,M$14,M32),IF(AND(RawData!$N$9=0,$H$6>=0),SUM(M$10,M$14,M$32),IF(AND(RawData!$N$9=0,$H$6<0),SUM(J$10,J$14,J$32)))) -> 0
A38: ="Anteil Unterhaltsbeiträge von "&IF(GR!$D$6<>"",GR!$D$6,"") -> Anteil Unterhaltsbeiträge von | B38: =B31 -> 0 | D38: =SUM(D$19,D$20,D$31) -> 0 | E38: =SUM(E$19,E$20,E$31) -> 0 | F38: =SUM(F$19,F$20,F$31) -> 0 | G38: =SUM(G$19,G$20,G$31) -> 0 | J38: =IF(AND(RawData!$N$6=1,$H$6>0),SUM(J$19,J$20,J$31),IF(AND(RawData!$N$6=0,$H$6>=0),SUM(J$19,J$20,J$31),IF(AND(RawData!$N$6=0,$H$6<0),SUM(J$19,J$20,J$31)))) -> 0 | K38: =IF(AND(RawData!$N$7=1,$H$6>0),SUM(K$19,K$20,K$31),IF(AND(RawData!$N$7=0,$H$6>=0),SUM(K$19,K$20,K$31),IF(AND(RawData!$N$7=0,$H$6<0),SUM(K$19,K$20,K$31)))) -> 0 | L38: =IF(AND(RawData!$N$8=1,$H$6>0),SUM(L$19,L$20,L$31),IF(AND(RawData!$N$8=0,$H$6>=0),SUM(L$19,L$20,L$31),IF(AND(RawData!$N$8=0,$H$6<0),SUM(L$19,L$20,L$31)))) -> 0 | M38: =IF(AND(RawData!$N$9=1,$H$6>0),SUM(M$19,M$20,M$31),IF(AND(RawData!$N$9=0,$H$6>=0),SUM(M$19,M$20,M$31),IF(AND(RawData!$N$9=0,$H$6<0),SUM(M$19,M$20,M$31)))) -> 0
A39: Manko pro Person | B39: =IF($B$36-SUM(B$37+B$38)>0,-($B$36-SUM(B$37+B$38)),0) -> 0 | D39: =D$37+D$38-D$36 -> 0 | E39: =E$37+E$38-E$36 -> 0 | F39: =F$37+F$38-F$36 -> 0 | G39: =G$37+G$38-G$36 -> 0 | J39: =J$37+J$38-J$36 -> 0 | K39: =K$37+K$38-K$36 -> 0 | L39: =L$37+L$38-L$36 -> 0 | M39: =M$37+M$38-M$36 -> 0 | O39: Gesamtes Manko: | P39: =SUM(B39:G39,J39:M39) -> 0
A40: ="Effektives Manko "&IF(GR!$D$6<>"",GR!$D$6,"")&" abzgl. Manko Betreuungsunterhalt Kinder" -> Effektives Manko abzgl. Manko Betreuungsunterhalt Kinder | B40: =IF(B$39>=0,0,IF(AND(B$39<0,SUM($D$13:$G$13,$J13:$K$13)-SUM($D$14:$G$14,$J$14:$K$14)>0),ROUND(MIN(B$39+(SUM($D$13:$G$13,$J13:$K$13)-SUM($D$14:$G$14,$J$14:$K$14)),0),1),IF(AND(B$39<=0,SUM($D$13:$G$13,$J13:$K$13)-SUM($D$14:$G$14,$J$14:$K$14)=0),B$39,0))) -> 0 | C40: =IF(C$39>=0,0,IF(AND(C$39<0,SUM($D$13:$G$13,$J13:$K$13)-SUM($D$14:$G$14,$J$14:$K$14)>0),ROUND(MIN(C$39+(SUM($D$13:$G$13,$J13:$K$13)-SUM($D$14:$G$14,$J$14:$K$14)),0),1),IF(AND(C$39<=0,SUM($D$13:$G$13,$J13:$K$13)-SUM($D$14:$G$14,$J$14:$K$14)=0),C$39,0))) -> 0
A41: Unterhaltsbeiträge
A42: Zuzusprechender Unterhalt/Betrag pro Kopf | B42: =IF(B$37>0,B$37,0) -> 0 | D42: =IF(D$37-D34>0,D$37-D34,0) -> 0 | E42: =IF(E$37-E34>0,E$37-E34,0) -> 0 | F42: =IF(F$37-F34>0,F$37-F34,0) -> 0 | G42: =IF(G$37-G34>0,G$37-G34,0) -> 0 | J42: =J$37 -> 0 | K42: =K$37 -> 0 | L42: =L$37 -> 0 | M42: =M$37 -> 0 | O42: ! Leistungsfähigerer Elternteil wohl auf falscher Seite eingetragen !
A43: Zuzusprechender Unterhalt an Gesamthaushalt | B43: =SUM(B42:G42) -> 0 | I43: =I39 -> 0

Sheet StR
A1: ZH UHR - Steuerrechner (StR)
A2: Grunddaten
B3: Unterhaltsgläubiger | H3: Unterhaltsschuldner | AJ3: 33 | AK3: 4 | BK3: 3
A4: Name | B4: =IF(GR!D6<>"",GR!D6,"") ->  | D4: =IF(GR!F6<>"",GR!F6,"") ->  | E4: =IF(GR!G6<>"",GR!G6,"") ->  | F4: =IF(GR!H6<>"",GR!H6,"") ->  | G4: =IF(GR!I6<>"",GR!I6,"") ->  | H4: =IF(GR!M6<>"",GR!M6,"") ->  | J4: =IF(GR!O6<>"",GR!O6,"") ->  | K4: =IF(GR!P6<>"",GR!P6,"") ->  | L4: =IF(GR!Q6<>"",GR!Q6,"") ->  | M4: =IF(GR!R6<>"",GR!R6,"") -> 
A5: Steuerjahr *
A6: Steuertarif * | O6: ! Steuertarife prüfen !
A7: Konfession
A8: Steuergemeinde *
A9: Einkommensberechnung
A10: Position | B10: Staats- und Gemeindesteuer | C10: direkte Bundessteuer | H10: Staats- und Gemeindesteuer | I10: direkte Bundessteuer
A11: Erwerbs-, Renten und Vermögensertrag | B11: =IF((GR!C17-SUM(GR!F12:'GR'!I12))*12>0,(GR!C17-SUM(GR!F12:'GR'!I12))*12,0) -> 0 | C11: =IF((GR!C17-SUM(GR!F12:'GR'!I12))*12>0,(GR!C17-SUM(GR!F12:'GR'!I12))*12,0) -> 0 | H11: =IF((GR!L17-SUM(GR!O12:'GR'!R12))*12>0,(GR!L17-SUM(GR!O12:'GR'!R12))*12,0) -> 0 | I11: =IF((GR!L17-SUM(GR!O12:'GR'!R12))*12>0,(GR!L17-SUM(GR!O12:'GR'!R12))*12,0) -> 0
A12: Unterhaltsbeiträge Eintrag mit Steuerberechnung
A13: Einkünfte aus Liegenschaften
A14: Weitere Position(en)
A15: Total der Einkünfte | B15: =SUM(B11:B14) -> 0 | C15: =SUM(C11:C14) -> 0 | H15: =SUM(H11,H13:H14) -> 0 | I15: =SUM(I11,I13:I14) -> 0
A16: Abzüge
B17: Berufsauslagen | H17: Berufsauslagen
A18: Mobilitätskosten | B18: =IF(GR!$D$29*12<=5000,GR!$D$29*12,5000) -> 0 | C18: =IF(GR!$D$29*12<=3000,GR!$D$29*12,3000) -> 0 | H18: =IF(GR!$M$29*12<=5000,GR!$M$29*12,5000) -> 0 | I18: =IF(GR!$M$29*12<=3000,GR!$M$29*12,3000) -> 0
A19: Verpflegung | B19: =IF(GR!$D$30*12>3200,3200,GR!$D$30*12) -> 0 | C19: =IF(GR!$D$30*12>3200,3200,GR!$D$30*12) -> 0 | H19: =IF(GR!$M$30*12>3200,3200,GR!$M$30*12) -> 0 | I19: =IF(GR!$M$30*12>3200,3200,GR!$M$30*12) -> 0
A20: Weitere Berufskosten | B20: =IF(GR!$D$12*12*0.03>4000,4000,IF(AND(GR!$D$12*12*0.03<4000,GR!$D$12*12*0.03>2000),GR!$D$12*12*0.03,IF(AND(GR!$D$12*12*0.03<2000,GR!$D$12*12>0),2000,IF(GR!$D$12*12=0,0)))) -> 0 | C20: =IF(GR!$D$12*12*0.03>4000,4000,IF(AND(GR!$D$12*12*0.03<4000,GR!$D$12*12*0.03>2000),GR!$D$12*12*0.03,IF(AND(GR!$D$12*12*0.03<2000,GR!$D$12*12>0),2000,IF(GR!$D$12*12=0,0)))) -> 0 | H20: =IF(GR!$M$12*12*0.03>4000,4000,IF(AND(GR!$M$12*12*0.03<4000,GR!$M$12*12*0.03>2000),GR!$M$12*12*0.03,IF(AND(GR!$M$12*12*0.03<2000,GR!$M$12*12>0),2000,IF(GR!$M$12*12=0,0)))) -> 0 | I20: =IF(GR!$M$12*12*0.03>4000,4000,IF(AND(GR!$M$12*12*0.03<4000,GR!$M$12*12*0.03>2000),GR!$M$12*12*0.03,IF(AND(GR!$M$12*12*0.03<2000,GR!$M$12*12>0),2000,IF(GR!$M$12*12=0,0)))) -> 0
A21: Weiterbildungskosten
B22: Weitere Abzüge | H22: Weitere Abzüge
A23: Hypothekarzinsen | B23: =SUM(GR!$D$23:'GR'!$I$23)*12 -> 0 | C23: =SUM(GR!$D$23:'GR'!$I$23)*12 -> 0 | H23: =SUM(GR!$M$23:'GR'!$R$23)*12 -> 0 | I23: =SUM(GR!$M$23:'GR'!$R$23)*12 -> 0
A24: Unterhaltsbeiträge Eintrag mit Steuerberechnung
A25: Aufwendungen für Säule 3a
A26: Versicherungsprämien (Erwachsene) | B26: =IF(SUM(GR!$D$23:'GR'!$E$23,GR!$D$25:'GR'!$E$25,GR!$E$36)*12>2600,2600,SUM(GR!$D$23:'GR'!$E$23,GR!$D$25:'GR'!$E$25,GR!$E$36)*12) -> 0 | C26: =IF(SUM(GR!$D$23:'GR'!$E$23,GR!$D$25:'GR'!$E$25,GR!$E$36)*12>1700,1700,SUM(GR!$D$23:'GR'!$E$23,GR!$D$25:'GR'!$E$25,GR!$E$36)*12) -> 0 | H26: =IF(SUM(GR!$M$23:'GR'!$N$23,GR!$M$25:'GR'!$N$25,GR!$N$36)*12>2600,2600,SUM(GR!$M$23:'GR'!$N$23,GR!$M$25:'GR'!$N$25,GR!$N$36)*12) -> 0 | I26: =IF(SUM(GR!$M$23:'GR'!$N$23,GR!$M$25:'GR'!$N$25,GR!$N$36)*12>1700,1700,SUM(GR!$M$23:'GR'!$N$23,GR!$M$25:'GR'!$N$25,GR!$N$36)*12) -> 0
A27: Versicherungsprämien (Kinder) | B27: =MIN(RawData!$E$4*1300,RawData!$E$4*SUM(GR!$F$25:$I$25)*12) -> 0 | C27: =MIN(RawData!$E$4*700,RawData!$E$4*SUM(GR!$F$25:$I$25)*12) -> 0 | H27: =MIN(1300*RawData!$F$4,RawData!$F$4*SUM(RawData!$N$10*GR!$O$25+RawData!$N$11*GR!$P$25+RawData!$N$12*GR!$Q$25+RawData!$N$13*GR!$R$25)*12) -> 0 | I27: =MIN(700*RawData!$F$4,RawData!$F$4*SUM(RawData!$N$10*GR!$O$25+RawData!$N$11*GR!$P$25+RawData!$N$12*GR!$Q$25+RawData!$N$13*GR!$R$25)*12) -> 0 | O27: Gemeinsame Kinder - Zuteilung Abzüge prüfen
A28: Kosten Fremdbetreuung | B28: =MIN(10100*RawData!$E$4,SUM(GR!$F$27:$I$27)*12) -> 0 | C28: =MIN(10100*RawData!$E$4,SUM(GR!$F$27:$I$27)*12) -> 0 | H28: =MIN(10100*RawData!$F$4,SUM(MIN(10100,RawData!$N$10*GR!$O$27*12)+MIN(10100,RawData!$N$11*GR!$P$27*12)+MIN(10100,RawData!$N$12*GR!$Q$27*12)+MIN(10100,RawData!$N$13*GR!$R$27*12))) -> 0 | I28: =MIN(10100*RawData!$F$4,SUM(MIN(10100,RawData!$N$10*GR!$O$27*12)+MIN(10100,RawData!$N$11*GR!$P$27*12)+MIN(10100,RawData!$N$12*GR!$Q$27*12)+MIN(10100,RawData!$N$13*GR!$R$27*12))) -> 0 | O28: Gemeinsame Kinder - Zuteilung Abzüge prüfen
A29: Kinderabzüge | B29: =COUNTIF(GR!$F$8:$I$8,"<18")*9000 -> 0 | C29: =COUNTIF(GR!$F$8:$I$8,"<18")*6500 -> 0 | H29: =SUM(COUNTIF(GR!$O$8,"<18")*SUM(RawData!$N$10*9000))+COUNTIF(GR!$P$8,"<18")*SUM(RawData!$N$11*9000)+COUNTIF(GR!$Q$8,"<18")*SUM(RawData!$N$12*9000)+COUNTIF(GR!$R$8,"<18")*SUM(RawData!$N$13*9000) -> 0 | I29: =SUM(COUNTIF(GR!$O$8,"<18")*SUM(RawData!$N$10*6500))+COUNTIF(GR!$P$8,"<18")*SUM(RawData!$N$11*6500)+COUNTIF(GR!$Q$8,"<18")*SUM(RawData!$N$12*6500)+COUNTIF(GR!$R$8,"<18")*SUM(RawData!$N$13*6500) -> 0 | O29: Gemeinsame Kinder - Zuteilung Abzüge prüfen
A30: weitere Schuldzinsen
A31: Weitere Position(en)
A32: Total der Abzüge | B32: =SUM(B18:B31) -> 0 | C32: =SUM(C18:C31) -> 0 | H32: =SUM(H18:H31) -> 0 | I32: =SUM(I18:I31) -> 0
A33: Vermögen
A34: Grundstück
A35: Wertschriften
A36: Weitere Position
A37: Vermögen | B37: =SUM(B34:B36) -> 0 | H37: =SUM(H34:H36) -> 0
A38: Steuerdaten
B39: Steuerwerte | H39: Steuerwerte
A40: Steuerbares Einkommen | B40: =IF(B15-B32>0,B15-B32,0) -> 0 | C40: =IF(C15-C32>0,C15-C32,0) -> 0 | H40: =IF(H15-H32>0,H15-H32,0) -> 0 | I40: =IF(I15-I32>0,I15-I32,0) -> 0
A41: Steuerbares Vermögen | B41: =IF(B37>0,B37,0) -> 0 | H41: =IF(H37>0,H37,0) -> 0
B42: Steuerfüsse | H42: Steuerfüsse
A43: Steuerfuss Kanton | B43: =TaxData!B4/100 -> 0 | H43: =TaxData!D4/100 -> 0
A44: Steuerfuss Steuergemeinde | B44: =TaxData!B3/100 -> 0 | H44: =TaxData!D3/100 -> 0
A45: Steuerfuss Kirchgemeinde | B45: =(TaxData!B9-TaxData!B3)/100 -> 0 | H45: =(TaxData!D9-TaxData!D3)/100 -> 0
B46: Einfache Staatsteuer | H46: Einfache Staatsteuer
A47: Einfache Staatssteuer (Einkommen)
A48: Einfache Staatssteuer (Vermögen)
A49: Total Einfache Staatssteuer | B49: =SUM(B47:B48) -> 0 | H49: =SUM(H47:H48) -> 0
A50: Berechnungen
B51: Staats- und Gemeindesteuer | H51: Staats- und Gemeindesteuer
A52: Staatssteuer Kanton
A53: Gemeindesteuer
A54: Kirchensteuer
A55: Personalsteuer (pauschal)
A56: Total Staats- und Gemeindesteuer | B56: =SUM(B52:B55) -> 0 | H56: =SUM(H52:H55) -> 0
B57: Direkte Bundessteuer | H57: Direkte Bundessteuer
A58: Direkte Bundessteuer
A59: Ermässigung Kinderbetreung
A60: Total Direkte Bundessteuer | C60: =IF(SUM(C58-C59)>0,SUM(C58-C59),0) -> 0 | I60: =IF(SUM(I58-I59)>0,SUM(I58-I59),0) -> 0
B61: Verrechnungssteuerguthaben und Bedarf | H61: Verrechnungssteuerguthaben und Bedarf
A62: Abzüglich Verrechnungssteuerguthaben
A63: Gesamter jährlicher Steuerbetrag | B63: =SUM($B$56+$C$60-$B$62) -> 0 | H63: =SUM($H$56+$I$60-$H$62) -> 0
A64: Monatlicher Steuerbetrag/-bedarf | B64: =B63/12 -> 0 | D64: =D63/12 -> 0 | E64: =E63/12 -> 0 | F64: =F63/12 -> 0 | G64: =G63/12 -> 0 | H64: =H63/12 -> 0 | J64: =J63/12 -> 0 | K64: =K63/12 -> 0 | L64: =L63/12 -> 0 | M64: =M63/12 -> 0

Sheet Changes_ToDo (hidden)
A1: Allgemein & Design | B1: UserExperience | C1: Formeln | D1: Kommentare | E1: Rechtliches
A2: Version 4.0f (31.03.2022)
A3: Implementierung StR_Beta (Staats- und Gemeindesteuern für Bezirke Meilen, Horgen, Uster und Zürich. | B3: Rahmen in GR F27 und O27 (Barbedarf) auf linker Seite fehlt | C3: GR Zeile 84: Im Beispiel 8 ergibt sich eine Differenz von Fr. 1.—zwischen GR B84 und GR B82 (verursacht rote Fehleranzeige). Diese Unschönheit wurde dadurch behoben, dass die Anteile in GR Zeile 84 nicht mehr gerundet werden.
A4: Umfassendes Redesing; Straffung und Neuanordnung Buttons, Kommentarfelder etc. | C4: StR_Beta Zeile 26: Gestützt auf Rückmeldungen bin ich der Formel in StR Zeile 26 nachgegangen und habe festgestellt, dass in der neusten Testversion tatsächlich eine leicht veränderte Formel eingetragen ist. Dies erklärt sich dadurch, dass offenbar beim Test des Buttons «Formeln eintragen» für StR Zeile 26 noch eine ältere Version dieser Formel (wieder)eintragen worden ist. Dies wurde nun behoben, auch wurden sämtliche weiteren Formeln in StR Zeilen 18 bis 20, 22 und 25 bis 28 überprüft (stimmen überein). Ohnehin erweist sich auch die jetzige Formel in StR Zeile 26 wohl seit je her als nicht ganz richtig, ich kann dies dann gerne näher ausführen. Jedenfalls bleibt dieser Umstand ohne Einfluss auf die Berechnung von Unterhaltsbeiträgen, hat aber zur Folge, dass die Steuerabzüge in einigen der Beispiele um hohe drei- bis niedrige vierstellige Beträge anders ausfallen. Bevor Du diese Änderung der Formel «absegnest» warte ich noch damit ab, die aktuelle Testversion Dritten zum Test zu Verfügung zu stellen.
A5: Version 4.0g (11.04.2022)
A6: Anpassung Zahlenformat (Feinjustierung noch nöctig) --> keine weitere Anpassung Zahlenformat mit Zusatz ".-" (= benutzerdefiniertes Format) empfehlenswert, da zu grosser Tempoverlust (je sichtbare Formatumwandlung bei jeder Zelleingabe) | B6: Vermeidung doppelte Eingabe "reduzierter Steuertarif" mittels Warnfeld StR_Beta G6 | C6: Gelöscht redundante Formel GR B84 wegen Rundungsproblematiken und Differenz zu B82 (vgl. Beispiel 3) | D6: Neuer Kommentar StR_Beta A6
A7: Anpassung Iterationsablauf, nunmehr wird die Grundberechnung in StR_Beta Zeile 66 eingetragen statt bereits die dreifach iterierten Steuerdaten (abrufbar unter Iteration AN/AUS). Dies gîbt dem Nutzer die Kontrolle zurück. | B7: Änderung Ablauf Steuerberechnung und Iteration (siehe auch E-Mail vom 11.04.2022). | D7: Neuer Kommentar StR_Beta A66
A8: Erweiterung StR_Beta mit kompletten Staats- und Gemeindesteuern; Anpassung Aufbau an kantonalen StR | D8: Neuer Kommentar StR_Beta A61 zu Abzug Kinderbetreuung gem. Art. 36 Abs. 2bis DBG
A9: Version 4.0h (14.04.2022)
A10: Wiederherstellung Iterationsablauf StR_Beta gemäss Version 4.0f | C10: StR_Beta Zeile 26: Anpassung Formel an § 31 lit. g StG ZH. Sowohl die alte Version der Formel als auch die Formulierung seit 4.0f war nicht ganz richtig (an Prüfbedingungen geknüpfte Maximal- statt Pauschalabzüge). | D10: Leichte sprachliche Anpassung Kommentar StR_Beta A61
A11: Automatische Anpassung Druckbereiche im StR_Beta in Abhängigkeit der sichtbaren Zellen | C11: StR_Beta Zeile 28: Kinderabzüge nur bei einem Alter <18 Jahre. | D11: Anpassung Kommentar StR_Beta A66
A12: Vefreinerung Aufbau, Logik und Design Steuerberechnungen | C12: Aufgrund der obigen Änderung mussten bei den Formeln im GR Zeilen 8 bis 10 die Angaben "Jahre" etc. entfernen, ansonsten die aktuelle Funktion für die Berechnung in StR_Beta Zeile 28 (Zulässigkeit Abzug nur bei Minderjährigkeit) nicht korrekt rechnet (Datentypen). | D12: Ergänzung Beschriftung StR_Beta A66
A13: Anpassung der Einblendungen bei Beispielen in RT
A14: Version 4.0i (19.04.2022)
A15: Anpassung der automatisch wieder einsetzbaren Formeln im StR_Beta (siehe rechts unter Spalte "Formeln") | C15: StR_Beta Zeile 26: Anpassung Formel an § 31 lit. g StG ZH. Sowohl die alte Version der Formel als auch die Formulierung seit 4.0f war nicht ganz richtig (an Prüfbedingungen geknüpfte Maximal- statt Pauschalabzüge).
A16: GR Zeilen 8 bis 10 neu eingefärbt, weil automatisch errechnete Werte (keine Nutzereingaben) | C16: StR_Beta Zeile 28: Kinderabzüge nur bei einem Alter <18 Jahre.
C17: Aufgrund der obigen Änderung mussten bei den Formeln im GR Zeilen 8 bis 10 die Angaben "Jahre" etc. entfernen, ansonsten die aktuelle Funktion für die Berechnung in StR_Beta Zeile 28 (Zulässigkeit Abzug nur bei Minderjährigkeit) nicht korrekt rechnet (Datentypen).
A18: Version 4.0j (29.04.2022)
A19: Unterscheidung Leistungsfähigkeit hervorgehoben (z.B. GR Zeile 3) | C19: StR_Beta Zeile 18: Übernahme Bedarfszahlen GR auf gesetzliche Höchstbeträge (Fr. 5'000.- bzw. Fr. 3'000.-) beschränkt. Ebenfalls angepasst bei Formeln wiederherstellen. | D19: Umfassende Anpassung/Ergänzung Kommentare StR_Beta (inkl. Bestimmungen StG ZH). Gleichzeitig auch Check nach Richtigkeit der Abzüge.
A20: Button "Einstellungen" wieder auf allen Tabellenblättern vorhanden | C20: Formeln StR_Beta Zeile 43 an zusätzliche Bedingung (>0) genknüpft, ansonsten negative Resultate in StR_Beta Zeile 43 möglich sind.
A21: Kommentarfelder auch für StR_Beta
A22: StR_Beta berechnet nun auch Beträge im Millionenbereich korrekt.
A23: Optisch: Rahmenproblematik Ein- Ausblenden (wohl) gelöst
A24: Version 4.0k (02.05.2022)
A25: Anpassung Iterationsablauf
A26: Version 4.0l-o (bis 26.05.2022)
A27: Behebung Bugs 4.0k im GR gemäss Bugliste (Stand 4.Mai 2022) S. 1. | C27: Umfangreiche Anpassungen Formeln RT (siehe auch separate E-Mails und Bugliste) | D27: Ergänzung Kommentar StR_Beta A63
C28: Anpassung Formel Steueranteil Kind | D28: Ergänzung Kommentar RT Zeile 18 betr. Betreuungsunterhalt
A29: Version 4.0p-q (bis 02.06.2022)
A30: Anpassung Eingabemaske an kleinere Bildschirme; allgemeine optische Anpassungen | C30: Umfangreiche Anpassungen Formeln RT (siehe auch separate E-Mails und Bugliste)
A31: Version 4.0r (08.06.2022)
A32: Anpassung Warnfelder RT (insbes. Spezifizierungen Manko) | C32: Umfangreiche Anpassungen Formeln RT (siehe auch separate E-Mails und Bugliste) | D32: Anpassung Text RT Zelle A34
A33: Version 4.0s (13.06.2022)
A34: Anpassung Warnfelder RT (insbes. Spezifizierungen Manko)
A35: Version 4.0t (15.06.2022)
A36: Anpassung Warnfelder RT (insbes. Spezifizierungen Manko)
A37: Version 4.0u (16.06.2022)
A38: Anpassung Warnfelder RT (insbes. Spezifizierungen Manko)
A39: Version 4.0v (27.06.2022)
A40: Neuer Button StR zur Auswahl Steuergemeinde
A41: Version 4.0w (13.07.2022)
A42: Entfernung Link GR A21, A26, A38, A39 und A40 | C42: Anpassung Formel StR Zeile 11 | D42: Anpassung Kommentar StR_Beta A11
A43: Komplette Steuerdaten 2018 bis 2022 | C43: Präzisierung Formeln RT Zeile 20
A45: Offene Fragen
A49: Next Steps
A50: Manual --> geschätzter Aufwand (5/5)

Sheet TaxData (hidden)
A1: TaxYear | B1: =StR!B5 -> 0 | D1: =StR!H5 -> 0
A2: Municipality | B2: =RawData!AA1 -> keine Auswahl | D2: =RawData!AA2 -> keine Auswahl
A3: MunicipalityTaxFeet
A4: StateTaxFeet
A5: Confession | B5: =StR!B7 -> 0 | D5: =StR!H7 -> 0
A6: RefTaxFeet
A7: KathTaxFeet
A8: ChrKathTaxFeet
A9: TotalTaxFeet
A10: Status | B10: =StR!B6 -> 0 | D10: =StR!H6 -> 0
A11: TaxBasisSingle | B11: =TaxCalculation!E20 -> 0 | D11: =TaxCalculation!M20 -> 0
A12: TaxBasisMarried | B12: =TaxCalculation!E39 -> 0 | D12: =TaxCalculation!M39 -> 0
A13: FortuneTaxSingle | B13: =TaxCalculation!E52 -> 0 | D13: =TaxCalculation!M52 -> 0
A14: FortuneTaxMarried | B14: =TaxCalculation!E65 -> 0 | D14: =TaxCalculation!M65 -> 0
A15: FederalTaxSingle | B15: =TaxCalculation!F82 -> 0 | D15: =TaxCalculation!N82 -> 0
A16: FederalTaxMarried | B16: =TaxCalculation!F104 -> 0 | D16: =TaxCalculation!N104 -> 0

Sheet RawData (hidden)
A1: Makros | B1: (1) Mankofall | C1: Eingabefenster - MultiPage 0 (Anzahl Kinder etc.) | D1: 0 | G1: Eingabefenster - MultiPage1 (Phasen) | H1: 1 | I1: 1 | K1: Eingabefenster - MultiPage 0 | L1: Ja | M1: Nein | N1: Nein | O1: Eingabefenster - MultiPage1 (Weitere Optionen) | Q1: GR - Fahrtkosten PW | R1: 1 | S1: 1 | T1: 0.1 | V1: GR - ErwBedarf | W1: Erw. Bedarf EIN | X1: Kommentarfelder (GR und StR) | Z1: StR - Steuergemeinde | AA1: keine Auswahl | AB1: StR - ResetFormula | AC1: Zeile 18 - Mobilitätskosten | AF1: Diverses | AI1: Booleans (Gem. Kinder / Wohnsitz) | AJ1: FALSE
B2: (2) Einverdienerehe | D2: 1 | H2: 2 | L2: Nein | R2: 2 | S2: =S1+1 -> 2 | T2: 0.2 | W2: Erw. Bedarf AUS | AA2: keine Auswahl | AC2: Zeile 19 - Verpflegungskosten | AJ2: FALSE
B3: (3) Zuverdienerehe | D3: 2 | H3: 3 | R3: 3 | S3: =S2+1 -> 3 | T3: 0.3 | AC3: Zeile 20 - Berufskosten | AJ3: FALSE
B4: (4) Alternierende Obhut | D4: 3 | E4: 0 | F4: 0 | H4: 4 | R4: 4 | S4: =S3+1 -> 4 | T4: 0.4 | AC4: Zeile 23 - Hypothekarzinsen | AJ4: FALSE
B5: (5) Einstufige Berechnung | D5: 4 | R5: 5 | S5: =S4+1 -> 5 | T5: 0.5 | U5: =IF(AND(U2<>"",U3<>"",U4<>""),SUM(U2*U3*U4),IF(AND(U2<>"",U3<>"",U4=""),SUM(U2*U3),IF(AND(U2<>"",U3="",U4<>""),SUM(U2*U4),IF(AND(U2<>"",U3="",U4=""),U2,IF(AND(U2="",U3<>"",U4<>""),"",IF(AND(U2="",U3="",U4=""),"","")))))) ->  | AC5: Zeile 26 - Versicherungsprämien (Erwachsene)
B6: (6) Mann hat Kind aus neuer Beziehung | N6: 0 | S6: =S5+1 -> 6 | T6: 0.6 | U6: =IF(U1="","",IF(U5="","",SUM(U1*U5))) ->  | AC6: Zeile 27 - Versicherungsprämien (Kinder) | AJ6: TRUE
B7: (7) Frau hat Kind aus neuer Beziehung | D7: verheiratet | N7: 0 | S7: 7 | T7: 0.7 | AC7: Zeile 28 - Kosten Fremdbetreuung | AJ7: TRUE
B8: (8) Kinder leben im Haushalt des leistungsfähigeren Elternteils | D8: ledig | N8: 0 | S8: 8 | T8: 0.8 | AC8: Zeile 29 - Kinderabzüge | AJ8: TRUE
N9: 0 | S9: 9 | T9: 0.9 | AJ9: TRUE
D10: verheiratet | N10: =IF($N$6=1,0,1) -> 1 | S10: 10 | T10: 1
B11: [Beispiele folgen] | N11: =IF($N$7=1,0,1) -> 1 | S11: 11
N12: =IF($N$8=1,0,1) -> 1 | S12: 12
N13: =IF($N$9=1,0,1) -> 1 | S13: 13
S14: 14
S15: 15
S16: 16
S17: 17
S18: 18
S19: 19
S20: 20
S21: 21
A22: Steuerbedarf | S22: 22
A23: Wert StR_Beta | B23: =RT!B43*12 -> 0 | S23: 23
B24: 1 | S24: 24
S25: 25
S26: 26
S27: 27
S28: 28
S29: 29
S30: 30
S31: 31

Sheet TaxCalculation (hidden)
A1: Für den unterhaltsberechtigten Elternteil | I1: Für den unterhaltspflichtigen Elternteil
A3: § 35 Abs. 1 StG: Grundtarif (seit 01.12.2012) | I3: § 35 Abs. 1 StG: Grundtarif (seit 01.12.2012)
A4: Einkommensteil | B4: Einkommensrest | C4: Steuersatz | D4: Steuerteil | E4: Steuersumme | I4: Einkommensteil | J4: Einkommensrest | K4: Steuersatz | L4: Steuerteil | M4: Steuersumme
A5: 0 | B5: =StR!B40 -> 0 | I5: 0 | J5: =StR!H40 -> 0
A6: 6700 | B6: =B5-A6 -> -6700 | C6: 0 | D6: =C6*A6 -> 0 | I6: 6700 | J6: =J5-I6 -> -6700 | K6: 0 | L6: =K6*I6 -> 0
A7: 4700 | B7: -11400 | C7: 0.02 | D7: 94 | E7: =IF(B6>0,IF(B6<A7,B6*C7,D7),0) -> 0 | I7: 4700 | J7: -11400 | K7: 0.02 | L7: 94 | M7: =IF(J6>0,IF(J6<I7,J6*K7,L7),0) -> 0
A8: 4700 | B8: -16100 | C8: 0.03 | D8: 141 | E8: 0 | I8: 4700 | J8: -16100 | K8: 0.03 | L8: 141 | M8: 0
A9: 7600 | B9: -23700 | C9: 0.04 | D9: 304 | E9: 0 | I9: 7600 | J9: -23700 | K9: 0.04 | L9: 304 | M9: 0
A10: 9300 | B10: -33000 | C10: 0.05 | D10: 465 | E10: 0 | I10: 9300 | J10: -33000 | K10: 0.05 | L10: 465 | M10: 0
A11: 10700 | B11: -43700 | C11: 0.06 | D11: 642 | E11: 0 | I11: 10700 | J11: -43700 | K11: 0.06 | L11: 642 | M11: 0
A12: 12400 | B12: -56100 | C12: 0.07 | D12: 868 | E12: 0 | I12: 12400 | J12: -56100 | K12: 0.07 | L12: 868 | M12: 0
A13: 16900 | B13: -73000 | C13: 0.08 | D13: 1352 | E13: 0 | I13: 16900 | J13: -73000 | K13: 0.08 | L13: 1352 | M13: 0
A14: 32500 | B14: -105500 | C14: 0.09 | D14: 2925 | E14: 0 | I14: 32500 | J14: -105500 | K14: 0.09 | L14: 2925 | M14: 0
A15: 32200 | B15: -137700 | C15: 0.1 | D15: 3220 | E15: 0 | I15: 32200 | J15: -137700 | K15: 0.1 | L15: 3220 | M15: 0
A16: 51000 | B16: -188700 | C16: 0.11 | D16: 5610 | E16: 0 | I16: 51000 | J16: -188700 | K16: 0.11 | L16: 5610 | M16: 0
A17: 66200 | B17: -254900 | C17: 0.12 | D17: 7944 | E17: 0 | I17: 66200 | J17: -254900 | K17: 0.12 | L17: 7944 | M17: 0
A18: darüber | B18: =B17 -> -254900 | C18: 0.13 | D18: =IF(B17>0,B17*C18,0) -> 0 | E18: =IF(B17>0,B17*C18,0) -> 0 | I18: darüber | J18: =J17 -> -254900 | K18: 0.13 | L18: =IF(J17>0,J17*K18,0) -> 0 | M18: =IF(J17>0,J17*K18,0) -> 0
D20: Total | E20: =SUM(E6:E19) -> 0 | L20: Total | M20: =SUM(M6:M19) -> 0
A22: § 35 Abs. 1 StG: Elterntarif (seit 01.12.2012) | I22: § 35 Abs. 1 StG: Elterntarif (seit 01.12.2012)
A23: Einkommensteil | B23: Einkommensrest | C23: Steuersatz | D23: Steuerteil | E23: Steuersumme | I23: Einkommensteil | J23: Einkommensrest | K23: Steuersatz | L23: Steuerteil | M23: Steuersumme
A24: 0 | B24: =StR!B40 -> 0 | I24: 0 | J24: =StR!H40 -> 0
A25: 13500 | B25: =B24-A25 -> -13500 | C25: 0 | D25: =C25*A25 -> 0 | I25: 13500 | J25: =J24-I25 -> -13500 | K25: 0 | L25: =K25*I25 -> 0
A26: 6100 | B26: -19600 | C26: 0.02 | D26: =C26*A26 -> 122 | E26: =IF(B25>0,IF(B25<A26,B25*C26,D26),0) -> 0 | I26: 6100 | J26: -19600 | K26: 0.02 | L26: =K26*I26 -> 122 | M26: =IF(J25>0,IF(J25<I26,J25*K26,L26),0) -> 0
A27: 7700 | B27: -27300 | C27: 0.03 | D27: 231 | E27: 0 | I27: 7700 | J27: -27300 | K27: 0.03 | L27: 231 | M27: 0
A28: 9400 | B28: -36700 | C28: 0.04 | D28: 376 | E28: 0 | I28: 9400 | J28: -36700 | K28: 0.04 | L28: 376 | M28: 0
A29: 10700 | B29: -47400 | C29: 0.05 | D29: 535 | E29: 0 | I29: 10700 | J29: -47400 | K29: 0.05 | L29: 535 | M29: 0
A30: 13900 | B30: -61300 | C30: 0.06 | D30: 834 | E30: 0 | I30: 13900 | J30: -61300 | K30: 0.06 | L30: 834 | M30: 0
A31: 30800 | B31: -92100 | C31: 0.07 | D31: 2156 | E31: 0 | I31: 30800 | J31: -92100 | K31: 0.07 | L31: 2156 | M31: 0
A32: 30800 | B32: -122900 | C32: 0.08 | D32: 2464 | E32: 0 | I32: 30800 | J32: -122900 | K32: 0.08 | L32: 2464 | M32: 0
A33: 46400 | B33: -169300 | C33: 0.09 | D33: 4176 | E33: 0 | I33: 46400 | J33: -169300 | K33: 0.09 | L33: 4176 | M33: 0
A34: 55400 | B34: -224700 | C34: 0.1 | D34: 5540 | E34: 0 | I34: 55400 | J34: -224700 | K34: 0.1 | L34: 5540 | M34: 0
A35: 60100 | B35: -284800 | C35: 0.11 | D35: 6611 | E35: 0 | I35: 60100 | J35: -284800 | K35: 0.11 | L35: 6611 | M35: 0
A36: 69300 | B36: -354100 | C36: 0.12 | D36: 8316 | E36: 0 | I36: 69300 | J36: -354100 | K36: 0.12 | L36: 8316 | M36: 0
A37: darüber | B37: =B36 -> -354100 | C37: 0.13 | D37: =IF(B36>0,B36*C37,0) -> 0 | E37: =IF(B36>0,B36*C37,0) -> 0 | I37: darüber | J37: =J36 -> -354100 | K37: 0.13 | L37: =IF(J36>0,J36*K37,0) -> 0 | M37: =IF(J36>0,J36*K37,0) -> 0
D39: Total | E39: =SUM(E25:E38) -> 0 | L39: Total | M39: =SUM(M25:M38) -> 0
A41: § 47 Abs. 1 StG: Grundtarif (seit 01.12.2013) | I41: § 47 Abs. 1 StG: Grundtarif (seit 01.12.2013)
A42: Einkommensteil | B42: Einkommensrest | C42: Steuersatz | D42: Steuerteil | E42: Steuersumme | I42: Einkommensteil | J42: Einkommensrest | K42: Steuersatz | L42: Steuerteil | M42: Steuersumme
A43: 0 | B43: =StR!B37 -> 0 | I43: 0 | J43: =StR!H37 -> 0
A44: 77000 | B44: =B43-A44 -> -77000 | C44: 0 | D44: =C44*A44 -> 0 | I44: 77000 | J44: =J43-I44 -> -77000 | K44: 0 | L44: =K44*I44 -> 0
A45: 231000 | B45: -308000 | C45: 0.0005 | D45: 115.5 | E45: =IF(B44>0,IF(B44<A45,B44*C45,D45),0) -> 0 | I45: 231000 | J45: -308000 | K45: 0.0005 | L45: 115.5 | M45: =IF(J44>0,IF(J44<I45,J44*K45,L45),0) -> 0
A46: 386000 | B46: -694000 | C46: 0.001 | D46: 386 | E46: 0 | I46: 386000 | J46: -694000 | K46: 0.001 | L46: 386 | M46: 0
A47: 616000 | B47: -1310000 | C47: 0.0015 | D47: 924 | E47: 0 | I47: 616000 | J47: -1310000 | K47: 0.0015 | L47: 924 | M47: 0
A48: 925000 | B48: -2235000 | C48: 0.002 | D48: 1850 | E48: 0 | I48: 925000 | J48: -2235000 | K48: 0.002 | L48: 1850 | M48: 0
A49: 923000 | B49: -3158000 | C49: 0.0025 | D49: 2307.5 | E49: 0 | I49: 923000 | J49: -3158000 | K49: 0.0025 | L49: 2307.5 | M49: 0
A50: darüber | B50: =B49 -> -3158000 | C50: 0.003 | D50: =IF(B49>0,ROUNDDOWN(B49/100,0)*100*C50,0) -> 0 | E50: 0 | I50: darüber | J50: =J49 -> -3158000 | K50: 0.003 | L50: =IF(J49>0,ROUNDDOWN(J49/100,0)*100*K50,0) -> 0 | M50: 0
D52: Total | E52: =SUM(E44:E51) -> 0 | L52: Total | M52: =SUM(M44:M51) -> 0
A54: § 47 Abs. 2 StG: Elterntarif (seit 01.12.2013) | I54: § 47 Abs. 2 StG: Elterntarif (seit 01.12.2013)
A55: Einkommensteil | B55: Einkommensrest | C55: Steuersatz | D55: Steuerteil | E55: Steuersumme | I55: Einkommensteil | J55: Einkommensrest | K55: Steuersatz | L55: Steuerteil | M55: Steuersumme
A56: 0 | B56: =StR!B37 -> 0 | I56: 0 | J56: =StR!H37 -> 0
A57: 154000 | B57: =B56-A57 -> -154000 | C57: 0 | D57: =C57*A57 -> 0 | I57: 154000 | J57: =J56-I57 -> -154000 | K57: 0 | L57: =K57*I57 -> 0
A58: 231000 | B58: -385000 | C58: 0.0005 | D58: 115.5 | E58: =IF(B57>0,IF(B57<A58,B57*C58,D58),0) -> 0 | I58: 231000 | J58: -385000 | K58: 0.0005 | L58: 115.5 | M58: =IF(J57>0,IF(J57<I58,J57*K58,L58),0) -> 0
A59: 385000 | B59: -770000 | C59: 0.001 | D59: 385 | E59: 0 | I59: 385000 | J59: -770000 | K59: 0.001 | L59: 385 | M59: 0
A60: 616000 | B60: -1386000 | C60: 0.0015 | D60: 924 | E60: 0 | I60: 616000 | J60: -1386000 | K60: 0.0015 | L60: 924 | M60: 0
A61: 925000 | B61: -2311000 | C61: 0.002 | D61: 1850 | E61: 0 | I61: 925000 | J61: -2311000 | K61: 0.002 | L61: 1850 | M61: 0 | P61: WENN(K81>0;ABRUNDEN(K81/100;0)*100*L82;0)
A62: 924000 | B62: -3235000 | C62: 0.0025 | D62: 2310 | E62: 0 | I62: 924000 | J62: -3235000 | K62: 0.0025 | L62: 2310 | M62: 0
A63: darüber | B63: =B62 -> -3235000 | C63: 0.003 | D63: =IF(B62>0,ROUNDDOWN(B62/100,0)*100*C63,0) -> 0 | E63: 0 | I63: darüber | J63: =J62 -> -3235000 | K63: 0.003 | L63: =IF(J62>0,ROUNDDOWN(J62/100,0)*100*K63,0) -> 0 | M63: 0
D65: Total | E65: =SUM(E57:E64) -> 0 | L65: Total | M65: =SUM(M57:M64) -> 0
B67: Art. 36 Abs. 1 DBG (Schwellen seit 01.01.2014) | J67: Art. 36 Abs. 1 DBG (Schwellen seit 01.01.2014)
A68: Schwellen | B68: Einkommensteil | C68: Einkommensrest | D68: Steuersatz | E68: Steuerteil | F68: Steuersumme | G68: Prüfung | I68: Schwellen | J68: Einkommensteil | K68: Einkommensrest | L68: Steuersatz | M68: Steuerteil | N68: Steuersumme | O68: Prüfung
A69: 0 | B69: 0 | C69: =StR!C40 -> 0 | I69: 0 | J69: 0 | K69: =StR!I40 -> 0
A70: 14500 | B70: 14500 | C70: =C69-B70 -> -14500 | D70: 0 | E70: =D70*B70 -> 0 | G70: =E70 -> 0 | I70: 14500 | J70: 14500 | K70: =K69-J70 -> -14500 | L70: 0 | M70: =L70*J70 -> 0 | O70: =M70 -> 0
A71: 31600 | B71: =A71-A70 -> 17100 | C71: -31600 | D71: 0.0077 | E71: 131.67 | F71: =IF(C70>0,IF(C70<B71,100*ROUNDDOWN(C70/100,0)*D71,E71),0) -> 0 | G71: =E71 -> 131.67 | I71: 31600 | J71: =I71-I70 -> 17100 | K71: -31600 | L71: 0.0077 | M71: 131.67 | N71: =IF(K70>0,IF(K70<J71,100*ROUNDDOWN(K70/100,0)*L71,M71),0) -> 0 | O71: =M71 -> 131.67
A72: 41400 | B72: 9800 | C72: -41400 | D72: 0.0088 | E72: 86.24 | F72: 0 | G72: =E71+E72 -> 217.91 | I72: 41400 | J72: 9800 | K72: -41400 | L72: 0.0088 | M72: 86.24 | N72: 0 | O72: =M71+M72 -> 217.91
A73: 55200 | B73: 13800 | C73: -55200 | D73: 0.0264 | E73: 364.32 | F73: 0 | G73: =G72+E73 -> 582.23 | I73: 55200 | J73: 13800 | K73: -55200 | L73: 0.0264 | M73: 364.32 | N73: 0 | O73: =O72+M73 -> 582.23
A74: 72500 | B74: 17300 | C74: -72500 | D74: 0.0297 | E74: 513.81 | F74: 0 | G74: 1096.04 | I74: 72500 | J74: 17300 | K74: -72500 | L74: 0.0297 | M74: 513.81 | N74: 0 | O74: 1096.04
A75: 78100 | B75: 5600 | C75: -78100 | D75: 0.0594 | E75: 332.64 | F75: 0 | G75: 1428.68 | I75: 78100 | J75: 5600 | K75: -78100 | L75: 0.0594 | M75: 332.64 | N75: 0 | O75: 1428.68
A76: 103600 | B76: 25500 | C76: -103600 | D76: 0.066 | E76: 1683 | F76: 0 | G76: 3111.68 | I76: 103600 | J76: 25500 | K76: -103600 | L76: 0.066 | M76: 1683 | N76: 0 | O76: 3111.68
A77: 134600 | B77: 31000 | C77: -134600 | D77: 0.088 | E77: 2728 | F77: 0 | G77: 5839.68 | I77: 134600 | J77: 31000 | K77: -134600 | L77: 0.088 | M77: 2728 | N77: 0 | O77: 5839.68
A78: 176000 | B78: 41400 | C78: -176000 | D78: 0.11 | E78: 4554 | F78: 0 | G78: 10393.68 | I78: 176000 | J78: 41400 | K78: -176000 | L78: 0.11 | M78: 4554 | N78: 0 | O78: 10393.68
A79: 755200 | B79: 579200 | C79: -755200 | D79: 0.132 | E79: 76454.4 | F79: 0 | G79: 86848.08 | I79: 755200 | J79: 579200 | K79: -755200 | L79: 0.132 | M79: 76454.4 | N79: 0 | O79: 86848.08
A80: darüber | C80: =C79 -> -755200 | D80: 0.115 | E80: =IF(C79>0,ROUNDDOWN(C79/100,0)*100*D80,0) -> 0 | F80: =IF(C79>0,ROUNDDOWN(C79/100,0)*100*D80,0) -> 0 | I80: darüber | K80: =K79 -> -755200 | L80: 0.115 | M80: =IF(K79>0,ROUNDDOWN(K79/100,0)*100*L80,0) -> 0 | N80: =IF(K79>0,ROUNDDOWN(K79/100,0)*100*L80,0) -> 0
E82: Total | F82: =IF(SUM(F70:F80)>25,SUM(F70:F80),0) -> 0 | M82: Total | N82: =IF(SUM(N70:N80)>25,SUM(N70:N80),0) -> 0
B84: Art. 36 Abs. 2 und Abs. 2bis DBG (Schwellen seit 01.01.2014) | J84: Art. 36 Abs. 2 und Abs. 2bis DBG (Schwellen seit 01.01.2014)
A85: Schwellen | B85: Einkommensteil | C85: Einkommensrest | D85: Steuersatz | E85: Steuerteil | F85: Steuersumme | G85: Prüfung | I85: Schwellen | J85: Einkommensteil | K85: Einkommensrest | L85: Steuersatz | M85: Steuerteil | N85: Steuersumme | O85: Prüfung
B86: 0 | C86: =StR!C40 -> 0 | J86: 0 | K86: =StR!I40 -> 0
A87: 28300 | B87: 28300 | C87: =C86-B87 -> -28300 | D87: 0 | E87: =D87*B87 -> 0 | G87: =E87 -> 0 | I87: 28300 | J87: 28300 | K87: =K86-J87 -> -28300 | L87: 0 | M87: =L87*J87 -> 0 | O87: =M87 -> 0
A88: 50900 | B88: =A88-A87 -> 22600 | C88: -50900 | D88: 0.01 | E88: 226 | F88: =IF(C87>0,IF(C87<B88,100*ROUNDDOWN(C87/100,0)*D88,E88),0) -> 0 | G88: =E88 -> 226 | I88: 50900 | J88: =I88-I87 -> 22600 | K88: -50900 | L88: 0.01 | M88: 226 | N88: =IF(K87>0,IF(K87<J88,100*ROUNDDOWN(K87/100,0)*L88,M88),0) -> 0 | O88: =M88 -> 226
A89: 58400 | B89: 7500 | C89: -58400 | D89: 0.02 | E89: 150 | F89: 0 | G89: =E88+E89 -> 376 | I89: 58400 | J89: 7500 | K89: -58400 | L89: 0.02 | M89: 150 | N89: 0 | O89: =M88+M89 -> 376
A90: 75300 | B90: 16900 | C90: -75300 | D90: 0.03 | E90: 507 | F90: 0 | G90: =G89+E90 -> 883 | I90: 75300 | J90: 16900 | K90: -75300 | L90: 0.03 | M90: 507 | N90: 0 | O90: =O89+M90 -> 883
A91: 90300 | B91: 15000 | C91: -90300 | D91: 0.04 | E91: 600 | F91: 0 | G91: 1483 | I91: 90300 | J91: 15000 | K91: -90300 | L91: 0.04 | M91: 600 | N91: 0 | O91: 1483
A92: 103400 | B92: 13100 | C92: -103400 | D92: 0.05 | E92: 655 | F92: 0 | G92: 2138 | I92: 103400 | J92: 13100 | K92: -103400 | L92: 0.05 | M92: 655 | N92: 0 | O92: 2138
A93: 114700 | B93: 11300 | C93: -114700 | D93: 0.06 | E93: 678 | F93: 0 | G93: 2816 | I93: 114700 | J93: 11300 | K93: -114700 | L93: 0.06 | M93: 678 | N93: 0 | O93: 2816
A94: 124200 | B94: 9500 | C94: -124200 | D94: 0.07 | E94: 665 | F94: 0 | G94: 3481 | I94: 124200 | J94: 9500 | K94: -124200 | L94: 0.07 | M94: 665 | N94: 0 | O94: 3481
A95: 131700 | B95: 7500 | C95: -131700 | D95: 0.08 | E95: 600 | F95: 0 | G95: 4081 | I95: 131700 | J95: 7500 | K95: -131700 | L95: 0.08 | M95: 600 | N95: 0 | O95: 4081
A96: 137300 | B96: 5600 | C96: -137300 | D96: 0.09 | E96: 504 | F96: 0 | G96: 4585 | I96: 137300 | J96: 5600 | K96: -137300 | L96: 0.09 | M96: 504 | N96: 0 | O96: 4585
A97: 141200 | B97: 3900 | C97: -141200 | D97: 0.1 | E97: 390 | F97: 0 | G97: 4975 | I97: 141200 | J97: 3900 | K97: -141200 | L97: 0.1 | M97: 390 | N97: 0 | O97: 4975
A98: 143100 | B98: 1900 | C98: -143100 | D98: 0.11 | E98: 209 | F98: 0 | G98: 5184 | I98: 143100 | J98: 1900 | K98: -143100 | L98: 0.11 | M98: 209 | N98: 0 | O98: 5184
A99: 145000 | B99: 1900 | C99: -145000 | D99: 0.12 | E99: 228 | F99: 0 | G99: 5412 | I99: 145000 | J99: 1900 | K99: -145000 | L99: 0.12 | M99: 228 | N99: 0 | O99: 5412
A100: 895800 | B100: 750800 | C100: -895800 | D100: 0.13 | E100: 97604 | F100: 0 | G100: 103016 | I100: 895800 | J100: 750800 | K100: -895800 | L100: 0.13 | M100: 97604 | N100: 0 | O100: 103016
A101: 895900 | B101: 100 | C101: -895900 | D101: 0.13 | E101: 13 | F101: 0 | G101: 103029 | I101: 895900 | J101: 100 | K101: -895900 | L101: 0.13 | M101: 13 | N101: 0 | O101: 103029
A102: darüber | C102: =C101 -> -895900 | D102: 0.115 | E102: =IF(C101>0,ROUNDDOWN(C79/100,0)*100*D102,0) -> 0 | F102: =IF(C101>0,ROUNDDOWN(C79/100,0)*100*D102,0) -> 0 | I102: darüber | K102: =K101 -> -895900 | L102: 0.115 | M102: =IF(K101>0,ROUNDDOWN(K79/100,0)*100*L102,0) -> 0 | N102: =IF(K101>0,ROUNDDOWN(K79/100,0)*100*L102,0) -> 0
E104: Total | F104: =IF(SUM(F87:F102)>25,SUM(F87:F102),0) -> 0 | M104: Total | N104: =IF(SUM(N87:N102)>25,SUM(N87:N102),0) -> 0

Sheet TaxFeetMunicipalities2018 (hidden)
A1: BFS | B1: Gemeinde | C1: andere | D1: reformiert | E1: katholisch | F1: christ-katholisch
A2: 21 | B2: Adlikon | C2: 124 | D2: 136 | E2: 138 | F2: 138
A3: 131 | B3: Adliswil | C3: 100 | D3: 110 | E3: 108 | F3: 114
A4: 241 | B4: Aesch | C4: 87 | D4: 98 | E4: 98 | F4: 101
A5: 1 | B5: Aeugst a.A. | C5: 95 | D5: 107 | E5: 108 | F5: 109
A6: 2 | B6: Affoltern a.A. | C6: 124 | D6: 136 | E6: 137 | F6: 138
A7: 211 | B7: Altikon | C7: 114 | D7: 126 | E7: 127 | F7: 128
A8: 30 | B8: Andelfingen | C8: 112 | D8: 124 | E8: 126 | F8: 126
A9: 51 | B9: Bachenbülach | C9: 106 | D9: 116 | E9: 117 | F9: 120
A10: 81 | B10: Bachs | C10: 127 | D10: 141 | E10: 138 | F10: 141
A11: 111 | B11: Bäretswil | C11: 102 | D11: 116 | E11: 116 | F11: 116
A12: 52 | B12: Bassersdorf | C12: 109 | D12: 121 | E12: 118 | F12: 123
A13: 297 | B13: Bauma | C13: 120 | D13: 134 | E13: 134 | F13: 134
A14: 22 | B14: Benken | C14: 114 | D14: 128 | E14: 128 | F14: 128
A15: 23 | B15: Berg a.I. | C15: 98 | D15: 110 | E15: 111 | F15: 112
A16: 242 | B16: Birmensdorf | C16: 110 | D16: 121 | E16: 121 | F16: 124
A17: 3 | B17: Bonstetten | C17: 109 | D17: 122 | E17: 120 | F17: 123
A18: 82 | B18: Boppelsen | C18: 94 | D18: 107 | E18: 104 | F18: 108
A19: 213 | B19: Brütten | C19: 89 | D19: 102 | E19: 102 | F19: 103
A20: 112 | B20: Bubikon | C20: 118 | D20: 130 | E20: 131 | F20: 132
A21: 24 | B21: Buch a.I. | C21: 106 | D21: 118 | E21: 119 | F21: 120
A22: 83 | B22: Buchs | C22: 110 | D22: 121 | E22: 120 | F22: 124
A23: 53 | B23: Bülach | C23: 110 | D23: 120 | E23: 121 | F23: 124
A24: 25 | B24: Dachsen | C24: 109 | D24: 121 | E24: 123 | F24: 123
A25: 214 | B25: Dägerlen | C25: 117 | D25: 131 | E25: 130 | F25: 131
A26: 84 | B26: Dällikon | C26: 108 | D26: 119 | E26: 118 | F26: 122
A27: 85 | B27: Dänikon | C27: 120 | D27: 131 | E27: 130 | F27: 134
A28: 215 | B28: Dättlikon | C28: 114 | D28: 128 | E28: 127 | F28: 128
A29: 86 | B29: Dielsdorf | C29: 105 | D29: 116 | E29: 116 | F29: 119
A30: 243 | B30: Dietikon | C30: 123 | D30: 135 | E30: 136 | F30: 137
A31: 54 | B31: Dietlikon | C31: 98 | D31: 110 | E31: 106 | F31: 112
A32: 216 | B32: Dinhard | C32: 87 | D32: 99 | E32: 100 | F32: 101
A33: 26 | B33: Dorf | C33: 109 | D33: 123 | E33: 122 | F33: 123
A34: 191 | B34: Dübendorf | C34: 99 | D34: 110 | E34: 109 | F34: 113
A35: 113 | B35: Dürnten | C35: 115 | D35: 129 | E35: 128 | F35: 129
A36: 192 | B36: Egg | C36: 98 | D36: 110 | E36: 107 | F36: 112
A37: 55 | B37: Eglisau | C37: 113 | D37: 127 | E37: 126 | F37: 127
A38: 294 | B38: Elgg | C38: 117 | D38: 131 | E38: 131 | F38: 131
A39: 218 | B39: Ellikon a.d.Th. | C39: 119 | D39: 131 | E39: 132 | F39: 133
A40: 219 | B40: Elsau | C40: 118 | D40: 132 | E40: 131 | F40: 132
A41: 56 | B41: Embrach | C41: 118 | D41: 130 | E41: 131 | F41: 132
A42: 151 | B42: Erlenbach | C42: 79 | D42: 88 | E42: 86 | F42: 93
A43: 193 | B43: Fällanden | C43: 103 | D43: 114 | E43: 113 | F43: 117
A44: 172 | B44: Fehraltorf | C44: 107 | D44: 120 | E44: 120 | F44: 121
A45: 27 | B45: Feuerthalen | C45: 114 | D45: 128 | E45: 128 | F45: 128
A46: 114 | B46: Fischenthal | C46: 124 | D46: 138 | E46: 138 | F46: 138
A47: 28 | B47: Flaach | C47: 107 | D47: 119 | E47: 120 | F47: 121
A48: 29 | B48: Flurlingen | C48: 112 | D48: 124 | E48: 126 | F48: 126
A49: 57 | B49: Freienstein-Teufen | C49: 99 | D49: 113 | E49: 112 | F49: 113
A50: 244 | B50: Geroldswil | C50: 108 | D50: 119 | E50: 117 | F50: 122
A51: 58 | B51: Glattfelden | C51: 120 | D51: 134 | E51: 133 | F51: 134
A52: 115 | B52: Gossau | C52: 119 | D52: 133 | E52: 133 | F52: 133
A53: 194 | B53: Greifensee | C53: 94 | D53: 105 | E53: 104 | F53: 108
A54: 116 | B54: Grüningen | C54: 113 | D54: 127 | E54: 126 | F54: 127
A55: 220 | B55: Hagenbuch | C55: 114 | D55: 128 | E55: 128 | F55: 128
A56: 4 | B56: Hausen a.A. | C56: 112 | D56: 126 | E56: 126 | F56: 126
A57: 5 | B57: Hedingen | C57: 105 | D57: 117 | E57: 118 | F57: 119
A58: 31 | B58: Henggart | C58: 100 | D58: 114 | E58: 113 | F58: 114
A59: 152 | B59: Herrliberg | C59: 78 | D59: 87 | E59: 86 | F59: 92
A60: 221 | B60: Hettlingen | C60: 96 | D60: 109 | E60: 109 | F60: 110
A61: 117 | B61: Hinwil | C61: 112 | D61: 124 | E61: 128 | F61: 126
A62: 173 | B62: Hittnau | C62: 116 | D62: 130 | E62: 129 | F62: 130
A63: 59 | B63: Hochfelden | C63: 116 | D63: 126 | E63: 127 | F63: 130
A64: 153 | B64: Hombrechtikon | C64: 119 | D64: 133 | E64: 132 | F64: 133
A65: 295 | B65: Horgen | C65: 87 | D65: 97 | E65: 95 | F65: 101
A66: 60 | B66: Höri | C66: 117 | D66: 127 | E66: 128 | F66: 131
A67: 32 | B67: Humlikon | C67: 123 | D67: 135 | E67: 137 | F67: 137
A68: 61 | B68: Hüntwangen | C68: 104 | D68: 118 | E68: 117 | F68: 118
A69: 87 | B69: Hüttikon | C69: 119 | D69: 132 | E69: 129 | F69: 133
A70: 296 | B70: Illnau-Effretikon | C70: 110 | D70: 123 | E70: 123 | F70: 124
A71: 6 | B71: Kappel a.A. | C71: 102 | D71: 116 | E71: 116 | F71: 116
A72: 135 | B72: Kilchberg | C72: 72 | D72: 81 | E72: 78 | F72: 86
A73: 33 | B73: Kleinandelfingen | C73: 110 | D73: 122 | E73: 124 | F73: 124
A74: 62 | B74: Kloten | C74: 103 | D74: 113 | E74: 112 | F74: 117
A75: 7 | B75: Knonau | C75: 117 | D75: 131 | E75: 131 | F75: 131
A76: 154 | B76: Küsnacht | C76: 77 | D76: 84 | E76: 84 | F76: 91
A77: 136 | B77: Langnau a.A. | C77: 106 | D77: 116 | E77: 120 | F77: 120
A78: 34 | B78: Laufen-Uhwiesen | C78: 102 | D78: 114 | E78: 116 | F78: 116
A79: 176 | B79: Lindau | C79: 108 | D79: 120 | E79: 121 | F79: 122
A80: 63 | B80: Lufingen | C80: 89 | D80: 101 | E80: 102 | F80: 103
A81: 155 | B81: Männedorf | C81: 95 | D81: 107 | E81: 106 | F81: 109
A82: 35 | B82: Marthalen | C82: 109 | D82: 123 | E82: 123 | F82: 123
A83: 8 | B83: Maschwanden | C83: 129 | D83: 143 | E83: 143 | F83: 143
A84: 195 | B84: Maur | C84: 87 | D84: 96 | E84: 96 | F84: 101
A85: 156 | B85: Meilen | C85: 84 | D85: 93 | E85: 91 | F85: 98
A86: 9 | B86: Mettmenstetten | C86: 99 | D86: 111 | E86: 113 | F86: 113
A87: 196 | B87: Mönchaltorf | C87: 111 | D87: 124 | E87: 120 | F87: 125
A88: 88 | B88: Neerach | C88: 76 | D88: 88 | E88: 87 | F88: 90
A89: 223 | B89: Neftenbach | C89: 107 | D89: 116 | E89: 120 | F89: 121
A90: 89 | B90: Niederglatt | C90: 107 | D90: 120 | E90: 118 | F90: 121
A91: 90 | B91: Niederhasli | C91: 116 | D91: 129 | E91: 127 | F91: 130
A92: 91 | B92: Niederweningen | C92: 104 | D92: 114 | E92: 115 | F92: 118
A93: 64 | B93: Nürensdorf | C93: 90 | D93: 102 | E93: 99 | F93: 104
A94: 65 | B94: Oberembrach | C94: 117 | D94: 129 | E94: 130 | F94: 131
A95: 245 | B95: Oberengstringen | C95: 112 | D95: 122 | E95: 125 | F95: 126
A96: 92 | B96: Oberglatt | C96: 122 | D96: 135 | E96: 133 | F96: 136
A97: 137 | B97: Oberrieden | C97: 88 | D97: 100 | E97: 99 | F97: 102
A98: 93 | B98: Oberweningen | C98: 98 | D98: 108 | E98: 109 | F98: 112
A99: 10 | B99: Obfelden | C99: 121 | D99: 133 | E99: 134 | F99: 135
A100: 246 | B100: Oetwil a.d.L. | C100: 103 | D100: 114 | E100: 112 | F100: 117
A101: 157 | B101: Oetwil a.S. | C101: 119 | D101: 133 | E101: 128 | F101: 133
A102: 66 | B102: Opfikon | C102: 94 | D102: 102 | E102: 101 | F102: 108
A103: 37 | B103: Ossingen | C103: 99 | D103: 113 | E103: 113 | F103: 113
A104: 94 | B104: Otelfingen | C104: 110 | D104: 123 | E104: 120 | F104: 124
A105: 11 | B105: Ottenbach | C105: 117 | D105: 131 | E105: 130 | F105: 131
A106: 177 | B106: Pfäffikon | C106: 113 | D106: 125 | E106: 126 | F106: 127
A107: 224 | B107: Pfungen | C107: 117 | D107: 129 | E107: 130 | F107: 131
A108: 67 | B108: Rafz | C108: 113 | D108: 127 | E108: 126 | F108: 127
A109: 95 | B109: Regensberg | C109: 106 | D109: 120 | E109: 117 | F109: 120
A110: 96 | B110: Regensdorf | C110: 118 | D110: 129 | E110: 128 | F110: 132
A111: 38 | B111: Rheinau | C111: 118 | D111: 132 | E111: 132 | F111: 132
A112: 138 | B112: Richterswil | C112: 101 | D112: 113 | E112: 116 | F112: 115
A113: 225 | B113: Rickenbach | C113: 106 | D113: 118 | E113: 119 | F113: 120
A114: 12 | B114: Rifferswil | C114: 125 | D114: 139 | E114: 139 | F114: 139
A115: 68 | B115: Rorbas | C115: 103 | D115: 117 | E115: 116 | F115: 117
A116: 97 | B116: Rümlang | C116: 109 | D116: 123 | E116: 120 | F116: 123
A117: 139 | B117: Rüschlikon | C117: 73 | D117: 83 | E117: 83 | F117: 87
A118: 178 | B118: Russikon | C118: 113 | D118: 125 | E118: 126 | F118: 127
A119: 118 | B119: Rüti | C119: 121 | D119: 135 | E119: 134 | F119: 135
A120: 226 | B120: Schlatt | C120: 125 | D120: 139 | E120: 137 | F120: 139
A121: 98 | B121: Schleinikon | C121: 110 | D121: 120 | E121: 121 | F121: 124
A122: 247 | B122: Schlieren | C122: 111 | D122: 122 | E122: 123 | F122: 125
A123: 99 | B123: Schöfflisdorf | C123: 101 | D123: 111 | E123: 112 | F123: 115
A124: 197 | B124: Schwerzenbach | C124: 99 | D124: 110 | E124: 109 | F124: 113
A125: 119 | B125: Seegräben | C125: 115 | D125: 127 | E125: 129 | F125: 129
A126: 227 | B126: Seuzach | C126: 99 | D126: 111 | E126: 112 | F126: 113
A127: 100 | B127: Stadel | C127: 110 | D127: 124 | E127: 123 | F127: 124
A128: 158 | B128: Stäfa | C128: 88 | D128: 99 | E128: 100 | F128: 102
A129: 13 | B129: Stallikon | C129: 101 | D129: 109 | E129: 112 | F129: 115
A130: 292 | B130: Stammheim | C130: 124 | D130: 138 | E130: 138 | F130: 138
A131: 101 | B131: Steinmaur | C131: 114 | D131: 126 | E131: 125 | F131: 128
A132: 39 | B132: Thalheim a.d.Th. | C132: 102 | D132: 114 | E132: 115 | F132: 116
A133: 141 | B133: Thalwil | C133: 85 | D133: 95 | E133: 95 | F133: 99
A134: 40 | B134: Trüllikon | C134: 114 | D134: 128 | E134: 128 | F134: 128
A135: 41 | B135: Truttikon | C135: 118 | D135: 132 | E135: 132 | F135: 132
A136: 228 | B136: Turbenthal | C136: 126 | D136: 140 | E136: 139 | F136: 140
A137: 159 | B137: Uetikon a.S. | C137: 87 | D137: 98 | E137: 98 | F137: 101
A138: 248 | B138: Uitikon | C138: 80 | D138: 90 | E138: 91 | F138: 94
A139: 249 | B139: Unterengstringen | C139: 100 | D139: 111 | E139: 113 | F139: 114
A140: 250 | B140: Urdorf | C140: 118 | D140: 128 | E140: 129 | F140: 132
A141: 198 | B141: Uster | C141: 112 | D141: 123 | E141: 122 | F141: 126
A142: 43 | B142: Volken | C142: 111 | D142: 123 | E142: 124 | F142: 125
A143: 199 | B143: Volketswil | C143: 103 | D143: 112 | E143: 113 | F143: 117
A144: 293 | B144: Wädenswil | C144: 105 | D144: 116 | E144: 117 | F144: 119
A145: 120 | B145: Wald | C145: 122 | D145: 136 | E145: 138 | F145: 136
A146: 69 | B146: Wallisellen | C146: 97 | D146: 105 | E146: 105 | F146: 111
A147: 200 | B147: Wangen-Brüttisellen | C147: 101 | D147: 112 | E147: 109 | F147: 115
A148: 70 | B148: Wasterkingen | C148: 116 | D148: 130 | E148: 129 | F148: 130
A149: 102 | B149: Weiach | C149: 89 | D149: 100 | E149: 102 | F149: 103
A150: 251 | B150: Weiningen | C150: 103 | D150: 114 | E150: 112 | F150: 117
A151: 180 | B151: Weisslingen | C151: 106 | D151: 119 | E151: 118 | F151: 120
A152: 14 | B152: Wettswil a.A. | C152: 85 | D152: 93 | E152: 96 | F152: 99
A153: 121 | B153: Wetzikon | C153: 119 | D153: 133 | E153: 133 | F153: 133
A154: 298 | B154: Wiesendangen | C154: 90 | D154: 104 | E154: 103 | F154: 104
A155: 71 | B155: Wil | C155: 106 | D155: 120 | E155: 119 | F155: 120
A156: 181 | B156: Wila | C156: 129 | D156: 143 | E156: 142 | F156: 143
A157: 182 | B157: Wildberg | C157: 129 | D157: 143 | E157: 142 | F157: 143
A158: 72 | B158: Winkel | C158: 76 | D158: 86 | E158: 87 | F158: 90
A159: 230 | B159: Winterthur | C159: 125 | D159: 138 | E159: 141 | F159: 139
A160: 231 | B160: Zell | C160: 118 | D160: 132 | E160: 130 | F160: 132
A161: 161 | B161: Zollikon | C161: 85 | D161: 93 | E161: 94 | F161: 99
A162: 160 | B162: Zumikon | C162: 85 | D162: 94 | E162: 94 | F162: 99
A163: 261 | B163: Zürich | C163: 119 | D163: 129 | E163: 129 | F163: 133

Sheet ListMunicipalities (hidden)
A1: Gemeinde | B1: s | C1: Excel Dropdown mit Suchfunktion erstellen - durchsuchbare Dropdownliste (Autovervollständigung) - YouTube
A2: Adlikon | B2: =SEARCH($B$1,Gemeinde) ->  | C2: Excel # 425 - Datenüberprüfung mit Suche - Dropdown mit Suchfunktion - Teil 1 - YouTube | K2: Teil 1
A3: Adliswil | B3: 5 | C3: Excel # 426 - Dropdown mit Suchfunktion - Teil 2 - Leerzeilen vermeiden - YouTube | K3: Teil 2
A4: Aesch | B4: 3
A5: Aeugst a.A. | B5: 5
A6: Affoltern a.A.
A7: Altikon
A8: Andelfingen
A9: Bachenbülach
A10: Bachs | B10: 5
A11: Bäretswil | B11: 6
A12: Bassersdorf | B12: 3
A13: Bauma
A14: Benken
A15: Berg a.I.
A16: Birmensdorf | B16: 7
A17: Bonstetten | B17: 4
A18: Boppelsen | B18: 7
A19: Brütten
A20: Bubikon
A21: Buch a.I.
A22: Buchs | B22: 5
A23: Bülach
A24: Dachsen | B24: 5
A25: Dägerlen
A26: Dällikon
A27: Dänikon
A28: Dättlikon
A29: Dielsdorf | B29: 5
A30: Dietikon
A31: Dietlikon
A32: Dinhard
A33: Dorf
A34: Dübendorf | B34: =SEARCH($B$1,Gemeinde) -> 
A35: Dürnten
A36: Egg
A37: Eglisau | B37: 5
A38: Elgg
A39: Ellikon a.d.Th.
A40: Elsau | B40: 3
A41: Embrach
A42: Erlenbach
A43: Fällanden
A44: Fehraltorf
A45: Feuerthalen
A46: Fischenthal | B46: 3
A47: Flaach
A48: Flurlingen
A49: Freienstein-Teufen | B49: 7
A50: Geroldswil | B50: 7
A51: Glattfelden
A52: Gossau | B52: 3
A53: Greifensee | B53: 8
A54: Grüningen
A55: Hagenbuch
A56: Hausen a.A. | B56: 4
A57: Hedingen
A58: Henggart
A59: Herrliberg
A60: Hettlingen
A61: Hinwil
A62: Hittnau
A63: Hochfelden
A64: Hombrechtikon
A65: Horgen
A66: Höri | B66: =SEARCH($B$1,Gemeinde) -> 
A67: Humlikon
A68: Hüntwangen
A69: Hüttikon
A70: Illnau-Effretikon
A71: Kappel a.A.
A72: Kilchberg
A73: Kleinandelfingen
A74: Kloten
A75: Knonau
A76: Küsnacht | B76: 3
A77: Langnau a.A.
A78: Laufen-Uhwiesen | B78: 13
A79: Lindau
A80: Lufingen
A81: Männedorf
A82: Marthalen
A83: Maschwanden | B83: 3
A84: Maur
A85: Meilen
A86: Mettmenstetten | B86: 8
A87: Mönchaltorf
A88: Neerach
A89: Neftenbach
A90: Niederglatt
A91: Niederhasli | B91: 9
A92: Niederweningen
A93: Nürensdorf | B93: 6
A94: Oberembrach
A95: Oberengstringen | B95: 8
A96: Oberglatt
A97: Oberrieden
A98: Oberweningen | B98: =SEARCH($B$1,Gemeinde) -> 
A99: Obfelden
A100: Oetwil a.d.L.
A101: Oetwil a.S. | B101: 10
A102: Opfikon
A103: Ossingen | B103: 2
A104: Otelfingen
A105: Ottenbach
A106: Pfäffikon
A107: Pfungen
A108: Rafz
A109: Regensberg | B109: 6
A110: Regensdorf | B110: 6
A111: Rheinau
A112: Richterswil | B112: 8
A113: Rickenbach
A114: Rifferswil | B114: 7
A115: Rorbas | B115: 6
A116: Rümlang
A117: Rüschlikon | B117: 3
A118: Russikon | B118: 3
A119: Rüti
A120: Schlatt | B120: 1
A121: Schleinikon | B121: 1
A122: Schlieren | B122: 1
A123: Schöfflisdorf | B123: 1
A124: Schwerzenbach | B124: 1
A125: Seegräben | B125: 1
A126: Seuzach | B126: 1
A127: Stadel | B127: 1
A128: Stäfa | B128: 1
A129: Stallikon | B129: 1
A130: Stammheim | B130: =SEARCH($B$1,Gemeinde) -> 1
A131: Steinmaur | B131: 1
A132: Thalheim a.d.Th.
A133: Thalwil
A134: Trüllikon
A135: Truttikon
A136: Turbenthal
A137: Uetikon a.S. | B137: 11
A138: Uitikon
A139: Unterengstringen | B139: 9
A140: Urdorf
A141: Uster | B141: 2
A142: Volken
A143: Volketswil | B143: 7
A144: Wädenswil | B144: 6
A145: Wald
A146: Wallisellen | B146: 6
A147: Wangen-Brüttisellen | B147: 14
A148: Wasterkingen | B148: 3
A149: Weiach
A150: Weiningen
A151: Weisslingen | B151: 4
A152: Wettswil a.A. | B152: 5
A153: Wetzikon
A154: Wiesendangen | B154: 4
A155: Wil
A156: Wila
A157: Wildberg
A158: Winkel
A159: Winterthur
A160: Zell
A161: Zollikon
A162: Zumikon
A163: Zürich

Sheet TaxFeetMunicipalities2019 (hidden)
A1: BFS | B1: Gemeinde | C1: andere | D1: reformiert | E1: katholisch | F1: christ-katholisch
A2: 21 | B2: Adlikon | C2: 124 | D2: 136 | E2: 138 | F2: 138
A3: 131 | B3: Adliswil | C3: 100 | D3: 110 | E3: 108 | F3: 114
A4: 241 | B4: Aesch | C4: 87 | D4: 98 | E4: 98 | F4: 101
A5: 1 | B5: Aeugst a.A. | C5: 95 | D5: 107 | E5: 108 | F5: 109
A6: 2 | B6: Affoltern a.A. | C6: 124 | D6: 136 | E6: 137 | F6: 138
A7: 211 | B7: Altikon | C7: 114 | D7: 126 | E7: 127 | F7: 128
A8: 30 | B8: Andelfingen | C8: 112 | D8: 124 | E8: 126 | F8: 126
A9: 51 | B9: Bachenbülach | C9: 106 | D9: 116 | E9: 117 | F9: 120
A10: 81 | B10: Bachs | C10: 127 | D10: 141 | E10: 138 | F10: 141
A11: 111 | B11: Bäretswil | C11: 102 | D11: 116 | E11: 116 | F11: 116
A12: 52 | B12: Bassersdorf | C12: 109 | D12: 121 | E12: 118 | F12: 123
A13: 297 | B13: Bauma | C13: 120 | D13: 134 | E13: 134 | F13: 134
A14: 22 | B14: Benken | C14: 114 | D14: 128 | E14: 128 | F14: 128
A15: 23 | B15: Berg a.I. | C15: 98 | D15: 110 | E15: 111 | F15: 112
A16: 242 | B16: Birmensdorf | C16: 110 | D16: 121 | E16: 121 | F16: 124
A17: 3 | B17: Bonstetten | C17: 109 | D17: 122 | E17: 120 | F17: 123
A18: 82 | B18: Boppelsen | C18: 94 | D18: 107 | E18: 104 | F18: 108
A19: 213 | B19: Brütten | C19: 89 | D19: 102 | E19: 102 | F19: 103
A20: 112 | B20: Bubikon | C20: 118 | D20: 130 | E20: 131 | F20: 132
A21: 24 | B21: Buch a.I. | C21: 106 | D21: 118 | E21: 119 | F21: 120
A22: 83 | B22: Buchs | C22: 110 | D22: 121 | E22: 120 | F22: 124
A23: 53 | B23: Bülach | C23: 110 | D23: 120 | E23: 121 | F23: 124
A24: 25 | B24: Dachsen | C24: 109 | D24: 121 | E24: 123 | F24: 123
A25: 214 | B25: Dägerlen | C25: 117 | D25: 131 | E25: 130 | F25: 131
A26: 84 | B26: Dällikon | C26: 108 | D26: 119 | E26: 118 | F26: 122
A27: 85 | B27: Dänikon | C27: 120 | D27: 131 | E27: 130 | F27: 134
A28: 215 | B28: Dättlikon | C28: 114 | D28: 128 | E28: 127 | F28: 128
A29: 86 | B29: Dielsdorf | C29: 105 | D29: 116 | E29: 116 | F29: 119
A30: 243 | B30: Dietikon | C30: 123 | D30: 135 | E30: 136 | F30: 137
A31: 54 | B31: Dietlikon | C31: 98 | D31: 110 | E31: 106 | F31: 112
A32: 216 | B32: Dinhard | C32: 87 | D32: 99 | E32: 100 | F32: 101
A33: 26 | B33: Dorf | C33: 109 | D33: 123 | E33: 122 | F33: 123
A34: 191 | B34: Dübendorf | C34: 99 | D34: 110 | E34: 109 | F34: 113
A35: 113 | B35: Dürnten | C35: 115 | D35: 129 | E35: 128 | F35: 129
A36: 192 | B36: Egg | C36: 98 | D36: 110 | E36: 107 | F36: 112
A37: 55 | B37: Eglisau | C37: 113 | D37: 127 | E37: 126 | F37: 127
A38: 294 | B38: Elgg | C38: 117 | D38: 131 | E38: 131 | F38: 131
A39: 218 | B39: Ellikon a.d.Th. | C39: 119 | D39: 131 | E39: 132 | F39: 133
A40: 219 | B40: Elsau | C40: 118 | D40: 132 | E40: 131 | F40: 132
A41: 56 | B41: Embrach | C41: 118 | D41: 130 | E41: 131 | F41: 132
A42: 151 | B42: Erlenbach | C42: 79 | D42: 88 | E42: 86 | F42: 93
A43: 193 | B43: Fällanden | C43: 103 | D43: 114 | E43: 113 | F43: 117
A44: 172 | B44: Fehraltorf | C44: 107 | D44: 120 | E44: 120 | F44: 121
A45: 27 | B45: Feuerthalen | C45: 114 | D45: 128 | E45: 128 | F45: 128
A46: 114 | B46: Fischenthal | C46: 124 | D46: 138 | E46: 138 | F46: 138
A47: 28 | B47: Flaach | C47: 107 | D47: 119 | E47: 120 | F47: 121
A48: 29 | B48: Flurlingen | C48: 112 | D48: 124 | E48: 126 | F48: 126
A49: 57 | B49: Freienstein-Teufen | C49: 99 | D49: 113 | E49: 112 | F49: 113
A50: 244 | B50: Geroldswil | C50: 108 | D50: 119 | E50: 117 | F50: 122
A51: 58 | B51: Glattfelden | C51: 120 | D51: 134 | E51: 133 | F51: 134
A52: 115 | B52: Gossau | C52: 119 | D52: 133 | E52: 133 | F52: 133
A53: 194 | B53: Greifensee | C53: 94 | D53: 105 | E53: 104 | F53: 108
A54: 116 | B54: Grüningen | C54: 113 | D54: 127 | E54: 126 | F54: 127
A55: 220 | B55: Hagenbuch | C55: 114 | D55: 128 | E55: 128 | F55: 128
A56: 4 | B56: Hausen a.A. | C56: 112 | D56: 126 | E56: 126 | F56: 126
A57: 5 | B57: Hedingen | C57: 105 | D57: 117 | E57: 118 | F57: 119
A58: 31 | B58: Henggart | C58: 100 | D58: 114 | E58: 113 | F58: 114
A59: 152 | B59: Herrliberg | C59: 78 | D59: 87 | E59: 86 | F59: 92
A60: 221 | B60: Hettlingen | C60: 96 | D60: 109 | E60: 109 | F60: 110
A61: 117 | B61: Hinwil | C61: 112 | D61: 124 | E61: 128 | F61: 126
A62: 173 | B62: Hittnau | C62: 116 | D62: 130 | E62: 129 | F62: 130
A63: 59 | B63: Hochfelden | C63: 116 | D63: 126 | E63: 127 | F63: 130
A64: 153 | B64: Hombrechtikon | C64: 119 | D64: 133 | E64: 132 | F64: 133
A65: 295 | B65: Horgen | C65: 87 | D65: 97 | E65: 95 | F65: 101
A66: 60 | B66: Höri | C66: 117 | D66: 127 | E66: 128 | F66: 131
A67: 32 | B67: Humlikon | C67: 123 | D67: 135 | E67: 137 | F67: 137
A68: 61 | B68: Hüntwangen | C68: 104 | D68: 118 | E68: 117 | F68: 118
A69: 87 | B69: Hüttikon | C69: 119 | D69: 132 | E69: 129 | F69: 133
A70: 296 | B70: Illnau-Effretikon | C70: 110 | D70: 123 | E70: 123 | F70: 124
A71: 6 | B71: Kappel a.A. | C71: 102 | D71: 116 | E71: 116 | F71: 116
A72: 135 | B72: Kilchberg | C72: 72 | D72: 81 | E72: 78 | F72: 86
A73: 33 | B73: Kleinandelfingen | C73: 110 | D73: 122 | E73: 124 | F73: 124
A74: 62 | B74: Kloten | C74: 103 | D74: 113 | E74: 112 | F74: 117
A75: 7 | B75: Knonau | C75: 117 | D75: 131 | E75: 131 | F75: 131
A76: 154 | B76: Küsnacht | C76: 77 | D76: 84 | E76: 84 | F76: 91
A77: 136 | B77: Langnau a.A. | C77: 106 | D77: 116 | E77: 120 | F77: 120
A78: 34 | B78: Laufen-Uhwiesen | C78: 102 | D78: 114 | E78: 116 | F78: 116
A79: 176 | B79: Lindau | C79: 108 | D79: 120 | E79: 121 | F79: 122
A80: 63 | B80: Lufingen | C80: 89 | D80: 101 | E80: 102 | F80: 103
A81: 155 | B81: Männedorf | C81: 95 | D81: 107 | E81: 106 | F81: 109
A82: 35 | B82: Marthalen | C82: 109 | D82: 123 | E82: 123 | F82: 123
A83: 8 | B83: Maschwanden | C83: 129 | D83: 143 | E83: 143 | F83: 143
A84: 195 | B84: Maur | C84: 87 | D84: 96 | E84: 96 | F84: 101
A85: 156 | B85: Meilen | C85: 84 | D85: 93 | E85: 91 | F85: 98
A86: 9 | B86: Mettmenstetten | C86: 99 | D86: 111 | E86: 113 | F86: 113
A87: 196 | B87: Mönchaltorf | C87: 111 | D87: 124 | E87: 120 | F87: 125
A88: 88 | B88: Neerach | C88: 76 | D88: 88 | E88: 87 | F88: 90
A89: 223 | B89: Neftenbach | C89: 107 | D89: 116 | E89: 120 | F89: 121
A90: 89 | B90: Niederglatt | C90: 107 | D90: 120 | E90: 118 | F90: 121
A91: 90 | B91: Niederhasli | C91: 116 | D91: 129 | E91: 127 | F91: 130
A92: 91 | B92: Niederweningen | C92: 104 | D92: 114 | E92: 115 | F92: 118
A93: 64 | B93: Nürensdorf | C93: 90 | D93: 102 | E93: 99 | F93: 104
A94: 65 | B94: Oberembrach | C94: 117 | D94: 129 | E94: 130 | F94: 131
A95: 245 | B95: Oberengstringen | C95: 112 | D95: 122 | E95: 125 | F95: 126
A96: 92 | B96: Oberglatt | C96: 122 | D96: 135 | E96: 133 | F96: 136
A97: 137 | B97: Oberrieden | C97: 88 | D97: 100 | E97: 99 | F97: 102
A98: 93 | B98: Oberweningen | C98: 98 | D98: 108 | E98: 109 | F98: 112
A99: 10 | B99: Obfelden | C99: 121 | D99: 133 | E99: 134 | F99: 135
A100: 246 | B100: Oetwil a.d.L. | C100: 103 | D100: 114 | E100: 112 | F100: 117
A101: 157 | B101: Oetwil a.S. | C101: 119 | D101: 133 | E101: 128 | F101: 133
A102: 66 | B102: Opfikon | C102: 94 | D102: 102 | E102: 101 | F102: 108
A103: 37 | B103: Ossingen | C103: 99 | D103: 113 | E103: 113 | F103: 113
A104: 94 | B104: Otelfingen | C104: 110 | D104: 123 | E104: 120 | F104: 124
A105: 11 | B105: Ottenbach | C105: 117 | D105: 131 | E105: 130 | F105: 131
A106: 177 | B106: Pfäffikon | C106: 113 | D106: 125 | E106: 126 | F106: 127
A107: 224 | B107: Pfungen | C107: 117 | D107: 129 | E107: 130 | F107: 131
A108: 67 | B108: Rafz | C108: 113 | D108: 127 | E108: 126 | F108: 127
A109: 95 | B109: Regensberg | C109: 106 | D109: 120 | E109: 117 | F109: 120
A110: 96 | B110: Regensdorf | C110: 118 | D110: 129 | E110: 128 | F110: 132
A111: 38 | B111: Rheinau | C111: 118 | D111: 132 | E111: 132 | F111: 132
A112: 138 | B112: Richterswil | C112: 101 | D112: 113 | E112: 116 | F112: 115
A113: 225 | B113: Rickenbach | C113: 106 | D113: 118 | E113: 119 | F113: 120
A114: 12 | B114: Rifferswil | C114: 125 | D114: 139 | E114: 139 | F114: 139
A115: 68 | B115: Rorbas | C115: 103 | D115: 117 | E115: 116 | F115: 117
A116: 97 | B116: Rümlang | C116: 109 | D116: 123 | E116: 120 | F116: 123
A117: 139 | B117: Rüschlikon | C117: 73 | D117: 83 | E117: 83 | F117: 87
A118: 178 | B118: Russikon | C118: 113 | D118: 125 | E118: 126 | F118: 127
A119: 118 | B119: Rüti | C119: 121 | D119: 135 | E119: 134 | F119: 135
A120: 226 | B120: Schlatt | C120: 125 | D120: 139 | E120: 137 | F120: 139
A121: 98 | B121: Schleinikon | C121: 110 | D121: 120 | E121: 121 | F121: 124
A122: 247 | B122: Schlieren | C122: 111 | D122: 122 | E122: 123 | F122: 125
A123: 99 | B123: Schöfflisdorf | C123: 101 | D123: 111 | E123: 112 | F123: 115
A124: 197 | B124: Schwerzenbach | C124: 99 | D124: 110 | E124: 109 | F124: 113
A125: 119 | B125: Seegräben | C125: 115 | D125: 127 | E125: 129 | F125: 129
A126: 227 | B126: Seuzach | C126: 99 | D126: 111 | E126: 112 | F126: 113
A127: 100 | B127: Stadel | C127: 110 | D127: 124 | E127: 123 | F127: 124
A128: 158 | B128: Stäfa | C128: 88 | D128: 99 | E128: 100 | F128: 102
A129: 13 | B129: Stallikon | C129: 101 | D129: 109 | E129: 112 | F129: 115
A130: 292 | B130: Stammheim | C130: 124 | D130: 138 | E130: 138 | F130: 138
A131: 101 | B131: Steinmaur | C131: 114 | D131: 126 | E131: 125 | F131: 128
A132: 39 | B132: Thalheim a.d.Th. | C132: 102 | D132: 114 | E132: 115 | F132: 116
A133: 141 | B133: Thalwil | C133: 85 | D133: 95 | E133: 95 | F133: 99
A134: 40 | B134: Trüllikon | C134: 114 | D134: 128 | E134: 128 | F134: 128
A135: 41 | B135: Truttikon | C135: 118 | D135: 132 | E135: 132 | F135: 132
A136: 228 | B136: Turbenthal | C136: 126 | D136: 140 | E136: 139 | F136: 140
A137: 159 | B137: Uetikon a.S. | C137: 87 | D137: 98 | E137: 98 | F137: 101
A138: 248 | B138: Uitikon | C138: 80 | D138: 90 | E138: 91 | F138: 94
A139: 249 | B139: Unterengstringen | C139: 100 | D139: 111 | E139: 113 | F139: 114
A140: 250 | B140: Urdorf | C140: 118 | D140: 128 | E140: 129 | F140: 132
A141: 198 | B141: Uster | C141: 112 | D141: 123 | E141: 122 | F141: 126
A142: 43 | B142: Volken | C142: 111 | D142: 123 | E142: 124 | F142: 125
A143: 199 | B143: Volketswil | C143: 103 | D143: 112 | E143: 113 | F143: 117
A144: 293 | B144: Wädenswil | C144: 105 | D144: 116 | E144: 117 | F144: 119
A145: 120 | B145: Wald | C145: 122 | D145: 136 | E145: 138 | F145: 136
A146: 69 | B146: Wallisellen | C146: 97 | D146: 105 | E146: 105 | F146: 111
A147: 200 | B147: Wangen-Brüttisellen | C147: 101 | D147: 112 | E147: 109 | F147: 115
A148: 70 | B148: Wasterkingen | C148: 116 | D148: 130 | E148: 129 | F148: 130
A149: 102 | B149: Weiach | C149: 89 | D149: 100 | E149: 102 | F149: 103
A150: 251 | B150: Weiningen | C150: 103 | D150: 114 | E150: 112 | F150: 117
A151: 180 | B151: Weisslingen | C151: 106 | D151: 119 | E151: 118 | F151: 120
A152: 14 | B152: Wettswil a.A. | C152: 85 | D152: 93 | E152: 96 | F152: 99
A153: 121 | B153: Wetzikon | C153: 119 | D153: 133 | E153: 133 | F153: 133
A154: 298 | B154: Wiesendangen | C154: 90 | D154: 104 | E154: 103 | F154: 104
A155: 71 | B155: Wil | C155: 106 | D155: 120 | E155: 119 | F155: 120
A156: 181 | B156: Wila | C156: 129 | D156: 143 | E156: 142 | F156: 143
A157: 182 | B157: Wildberg | C157: 129 | D157: 143 | E157: 142 | F157: 143
A158: 72 | B158: Winkel | C158: 76 | D158: 86 | E158: 87 | F158: 90
A159: 230 | B159: Winterthur | C159: 125 | D159: 138 | E159: 141 | F159: 139
A160: 231 | B160: Zell | C160: 118 | D160: 132 | E160: 130 | F160: 132
A161: 161 | B161: Zollikon | C161: 85 | D161: 93 | E161: 94 | F161: 99
A162: 160 | B162: Zumikon | C162: 85 | D162: 94 | E162: 94 | F162: 99
A163: 261 | B163: Zürich | C163: 119 | D163: 129 | E163: 129 | F163: 133

Sheet TaxFeetMunicipalities2020 (hidden)
A1: BFS | B1: Gemeinde | C1: andere | D1: reformiert | E1: katholisch | F1: christ-katholisch
A2: 1 | B2: Aeugst a.A. | C2: 95 | D2: 107 | E2: 108 | F2: 109
A3: 2 | B3: Affoltern a.A. | C3: 124 | D3: 136 | E3: 137 | F3: 138
A4: 3 | B4: Bonstetten | C4: 109 | D4: 122 | E4: 120 | F4: 123
A5: 4 | B5: Hausen a.A. | C5: 112 | D5: 126 | E5: 126 | F5: 126
A6: 5 | B6: Hedingen | C6: 105 | D6: 117 | E6: 118 | F6: 119
A7: 6 | B7: Kappel a.A. | C7: 102 | D7: 116 | E7: 116 | F7: 116
A8: 7 | B8: Knonau | C8: 117 | D8: 131 | E8: 131 | F8: 131
A9: 8 | B9: Maschwanden | C9: 129 | D9: 143 | E9: 143 | F9: 143
A10: 9 | B10: Mettmenstetten | C10: 99 | D10: 111 | E10: 113 | F10: 113
A11: 10 | B11: Obfelden | C11: 121 | D11: 133 | E11: 134 | F11: 135
A12: 11 | B12: Ottenbach | C12: 117 | D12: 131 | E12: 130 | F12: 131
A13: 12 | B13: Rifferswil | C13: 125 | D13: 139 | E13: 139 | F13: 139
A14: 13 | B14: Stallikon | C14: 101 | D14: 109 | E14: 112 | F14: 115
A15: 14 | B15: Wettswil a.A. | C15: 85 | D15: 93 | E15: 96 | F15: 99
A16: 21 | B16: Adlikon | C16: 124 | D16: 136 | E16: 138 | F16: 138
A17: 22 | B17: Benken | C17: 114 | D17: 128 | E17: 128 | F17: 128
A18: 23 | B18: Berg a.I. | C18: 98 | D18: 110 | E18: 111 | F18: 112
A19: 24 | B19: Buch a.I. | C19: 106 | D19: 118 | E19: 119 | F19: 120
A20: 25 | B20: Dachsen | C20: 109 | D20: 121 | E20: 123 | F20: 123
A21: 26 | B21: Dorf | C21: 109 | D21: 123 | E21: 122 | F21: 123
A22: 27 | B22: Feuerthalen | C22: 114 | D22: 128 | E22: 128 | F22: 128
A23: 28 | B23: Flaach | C23: 107 | D23: 119 | E23: 120 | F23: 121
A24: 29 | B24: Flurlingen | C24: 112 | D24: 124 | E24: 126 | F24: 126
A25: 30 | B25: Andelfingen | C25: 112 | D25: 124 | E25: 126 | F25: 126
A26: 31 | B26: Henggart | C26: 100 | D26: 114 | E26: 113 | F26: 114
A27: 32 | B27: Humlikon | C27: 123 | D27: 135 | E27: 137 | F27: 137
A28: 33 | B28: Kleinandelfingen | C28: 110 | D28: 122 | E28: 124 | F28: 124
A29: 34 | B29: Laufen-Uhwiesen | C29: 102 | D29: 114 | E29: 116 | F29: 116
A30: 35 | B30: Marthalen | C30: 109 | D30: 123 | E30: 123 | F30: 123
A31: 37 | B31: Ossingen | C31: 99 | D31: 113 | E31: 113 | F31: 113
A32: 38 | B32: Rheinau | C32: 118 | D32: 132 | E32: 132 | F32: 132
A33: 39 | B33: Thalheim a.d.Th. | C33: 102 | D33: 114 | E33: 115 | F33: 116
A34: 40 | B34: Trüllikon | C34: 114 | D34: 128 | E34: 128 | F34: 128
A35: 41 | B35: Truttikon | C35: 118 | D35: 132 | E35: 132 | F35: 132
A36: 43 | B36: Volken | C36: 111 | D36: 123 | E36: 124 | F36: 125
A37: 51 | B37: Bachenbülach | C37: 106 | D37: 116 | E37: 117 | F37: 120
A38: 52 | B38: Bassersdorf | C38: 109 | D38: 121 | E38: 118 | F38: 123
A39: 53 | B39: Bülach | C39: 110 | D39: 120 | E39: 121 | F39: 124
A40: 54 | B40: Dietlikon | C40: 98 | D40: 110 | E40: 106 | F40: 112
A41: 55 | B41: Eglisau | C41: 113 | D41: 127 | E41: 126 | F41: 127
A42: 56 | B42: Embrach | C42: 118 | D42: 130 | E42: 131 | F42: 132
A43: 57 | B43: Freienstein-Teufen | C43: 99 | D43: 113 | E43: 112 | F43: 113
A44: 58 | B44: Glattfelden | C44: 120 | D44: 134 | E44: 133 | F44: 134
A45: 59 | B45: Hochfelden | C45: 116 | D45: 126 | E45: 127 | F45: 130
A46: 60 | B46: Höri | C46: 117 | D46: 127 | E46: 128 | F46: 131
A47: 61 | B47: Hüntwangen | C47: 104 | D47: 118 | E47: 117 | F47: 118
A48: 62 | B48: Kloten | C48: 103 | D48: 113 | E48: 112 | F48: 117
A49: 63 | B49: Lufingen | C49: 89 | D49: 101 | E49: 102 | F49: 103
A50: 64 | B50: Nürensdorf | C50: 90 | D50: 102 | E50: 99 | F50: 104
A51: 65 | B51: Oberembrach | C51: 117 | D51: 129 | E51: 130 | F51: 131
A52: 66 | B52: Opfikon | C52: 94 | D52: 102 | E52: 101 | F52: 108
A53: 67 | B53: Rafz | C53: 113 | D53: 127 | E53: 126 | F53: 127
A54: 68 | B54: Rorbas | C54: 103 | D54: 117 | E54: 116 | F54: 117
A55: 69 | B55: Wallisellen | C55: 97 | D55: 105 | E55: 105 | F55: 111
A56: 70 | B56: Wasterkingen | C56: 116 | D56: 130 | E56: 129 | F56: 130
A57: 71 | B57: Wil | C57: 106 | D57: 120 | E57: 119 | F57: 120
A58: 72 | B58: Winkel | C58: 76 | D58: 86 | E58: 87 | F58: 90
A59: 81 | B59: Bachs | C59: 127 | D59: 141 | E59: 138 | F59: 141
A60: 82 | B60: Boppelsen | C60: 94 | D60: 107 | E60: 104 | F60: 108
A61: 83 | B61: Buchs | C61: 110 | D61: 121 | E61: 120 | F61: 124
A62: 84 | B62: Dällikon | C62: 108 | D62: 119 | E62: 118 | F62: 122
A63: 85 | B63: Dänikon | C63: 120 | D63: 131 | E63: 130 | F63: 134
A64: 86 | B64: Dielsdorf | C64: 105 | D64: 116 | E64: 116 | F64: 119
A65: 87 | B65: Hüttikon | C65: 119 | D65: 132 | E65: 129 | F65: 133
A66: 88 | B66: Neerach | C66: 76 | D66: 88 | E66: 87 | F66: 90
A67: 89 | B67: Niederglatt | C67: 107 | D67: 120 | E67: 118 | F67: 121
A68: 90 | B68: Niederhasli | C68: 116 | D68: 129 | E68: 127 | F68: 130
A69: 91 | B69: Niederweningen | C69: 104 | D69: 114 | E69: 115 | F69: 118
A70: 92 | B70: Oberglatt | C70: 122 | D70: 135 | E70: 133 | F70: 136
A71: 93 | B71: Oberweningen | C71: 98 | D71: 108 | E71: 109 | F71: 112
A72: 94 | B72: Otelfingen | C72: 110 | D72: 123 | E72: 120 | F72: 124
A73: 95 | B73: Regensberg | C73: 106 | D73: 120 | E73: 117 | F73: 120
A74: 96 | B74: Regensdorf | C74: 118 | D74: 129 | E74: 128 | F74: 132
A75: 97 | B75: Rümlang | C75: 109 | D75: 123 | E75: 120 | F75: 123
A76: 98 | B76: Schleinikon | C76: 110 | D76: 120 | E76: 121 | F76: 124
A77: 99 | B77: Schöfflisdorf | C77: 101 | D77: 111 | E77: 112 | F77: 115
A78: 100 | B78: Stadel | C78: 110 | D78: 124 | E78: 123 | F78: 124
A79: 101 | B79: Steinmaur | C79: 114 | D79: 126 | E79: 125 | F79: 128
A80: 102 | B80: Weiach | C80: 89 | D80: 100 | E80: 102 | F80: 103
A81: 111 | B81: Bäretswil | C81: 102 | D81: 116 | E81: 116 | F81: 116
A82: 112 | B82: Bubikon | C82: 118 | D82: 130 | E82: 131 | F82: 132
A83: 113 | B83: Dürnten | C83: 115 | D83: 129 | E83: 128 | F83: 129
A84: 114 | B84: Fischenthal | C84: 124 | D84: 138 | E84: 138 | F84: 138
A85: 115 | B85: Gossau | C85: 119 | D85: 133 | E85: 133 | F85: 133
A86: 116 | B86: Grüningen | C86: 113 | D86: 127 | E86: 126 | F86: 127
A87: 117 | B87: Hinwil | C87: 112 | D87: 124 | E87: 128 | F87: 126
A88: 118 | B88: Rüti | C88: 121 | D88: 135 | E88: 134 | F88: 135
A89: 119 | B89: Seegräben | C89: 115 | D89: 127 | E89: 129 | F89: 129
A90: 120 | B90: Wald | C90: 122 | D90: 136 | E90: 138 | F90: 136
A91: 121 | B91: Wetzikon | C91: 119 | D91: 133 | E91: 133 | F91: 133
A92: 131 | B92: Adliswil | C92: 100 | D92: 110 | E92: 108 | F92: 114
A93: 135 | B93: Kilchberg | C93: 72 | D93: 81 | E93: 78 | F93: 86
A94: 136 | B94: Langnau a.A. | C94: 106 | D94: 116 | E94: 120 | F94: 120
A95: 137 | B95: Oberrieden | C95: 88 | D95: 100 | E95: 99 | F95: 102
A96: 138 | B96: Richterswil | C96: 101 | D96: 113 | E96: 116 | F96: 115
A97: 139 | B97: Rüschlikon | C97: 73 | D97: 83 | E97: 83 | F97: 87
A98: 141 | B98: Thalwil | C98: 85 | D98: 95 | E98: 95 | F98: 99
A99: 151 | B99: Erlenbach | C99: 79 | D99: 88 | E99: 86 | F99: 93
A100: 152 | B100: Herrliberg | C100: 78 | D100: 87 | E100: 86 | F100: 92
A101: 153 | B101: Hombrechtikon | C101: 119 | D101: 133 | E101: 132 | F101: 133
A102: 154 | B102: Küsnacht | C102: 77 | D102: 84 | E102: 84 | F102: 91
A103: 155 | B103: Männedorf | C103: 95 | D103: 107 | E103: 106 | F103: 109
A104: 156 | B104: Meilen | C104: 84 | D104: 93 | E104: 91 | F104: 98
A105: 157 | B105: Oetwil a.S. | C105: 119 | D105: 133 | E105: 128 | F105: 133
A106: 158 | B106: Stäfa | C106: 88 | D106: 99 | E106: 100 | F106: 102
A107: 159 | B107: Uetikon a.S. | C107: 87 | D107: 98 | E107: 98 | F107: 101
A108: 160 | B108: Zumikon | C108: 85 | D108: 94 | E108: 94 | F108: 99
A109: 161 | B109: Zollikon | C109: 85 | D109: 93 | E109: 94 | F109: 99
A110: 172 | B110: Fehraltorf | C110: 107 | D110: 120 | E110: 120 | F110: 121
A111: 173 | B111: Hittnau | C111: 116 | D111: 130 | E111: 129 | F111: 130
A112: 176 | B112: Lindau | C112: 108 | D112: 120 | E112: 121 | F112: 122
A113: 177 | B113: Pfäffikon | C113: 113 | D113: 125 | E113: 126 | F113: 127
A114: 178 | B114: Russikon | C114: 113 | D114: 125 | E114: 126 | F114: 127
A115: 180 | B115: Weisslingen | C115: 106 | D115: 119 | E115: 118 | F115: 120
A116: 181 | B116: Wila | C116: 129 | D116: 143 | E116: 142 | F116: 143
A117: 182 | B117: Wildberg | C117: 129 | D117: 143 | E117: 142 | F117: 143
A118: 191 | B118: Dübendorf | C118: 99 | D118: 110 | E118: 109 | F118: 113
A119: 192 | B119: Egg | C119: 98 | D119: 110 | E119: 107 | F119: 112
A120: 193 | B120: Fällanden | C120: 103 | D120: 114 | E120: 113 | F120: 117
A121: 194 | B121: Greifensee | C121: 94 | D121: 105 | E121: 104 | F121: 108
A122: 195 | B122: Maur | C122: 87 | D122: 96 | E122: 96 | F122: 101
A123: 196 | B123: Mönchaltorf | C123: 111 | D123: 124 | E123: 120 | F123: 125
A124: 197 | B124: Schwerzenbach | C124: 99 | D124: 110 | E124: 109 | F124: 113
A125: 198 | B125: Uster | C125: 112 | D125: 123 | E125: 122 | F125: 126
A126: 199 | B126: Volketswil | C126: 103 | D126: 112 | E126: 113 | F126: 117
A127: 200 | B127: Wangen-Brüttisellen | C127: 101 | D127: 112 | E127: 109 | F127: 115
A128: 211 | B128: Altikon | C128: 114 | D128: 126 | E128: 127 | F128: 128
A129: 213 | B129: Brütten | C129: 89 | D129: 102 | E129: 102 | F129: 103
A130: 214 | B130: Dägerlen | C130: 117 | D130: 131 | E130: 130 | F130: 131
A131: 215 | B131: Dättlikon | C131: 114 | D131: 128 | E131: 127 | F131: 128
A132: 216 | B132: Dinhard | C132: 87 | D132: 99 | E132: 100 | F132: 101
A133: 218 | B133: Ellikon a.d.Th. | C133: 119 | D133: 131 | E133: 132 | F133: 133
A134: 219 | B134: Elsau | C134: 118 | D134: 132 | E134: 131 | F134: 132
A135: 220 | B135: Hagenbuch | C135: 114 | D135: 128 | E135: 128 | F135: 128
A136: 221 | B136: Hettlingen | C136: 96 | D136: 109 | E136: 109 | F136: 110
A137: 223 | B137: Neftenbach | C137: 107 | D137: 116 | E137: 120 | F137: 121
A138: 224 | B138: Pfungen | C138: 117 | D138: 129 | E138: 130 | F138: 131
A139: 225 | B139: Rickenbach | C139: 106 | D139: 118 | E139: 119 | F139: 120
A140: 226 | B140: Schlatt | C140: 125 | D140: 139 | E140: 137 | F140: 139
A141: 227 | B141: Seuzach | C141: 99 | D141: 111 | E141: 112 | F141: 113
A142: 228 | B142: Turbenthal | C142: 126 | D142: 140 | E142: 139 | F142: 140
A143: 230 | B143: Winterthur | C143: 125 | D143: 138 | E143: 141 | F143: 139
A144: 231 | B144: Zell | C144: 118 | D144: 132 | E144: 130 | F144: 132
A145: 241 | B145: Aesch | C145: 87 | D145: 98 | E145: 98 | F145: 101
A146: 242 | B146: Birmensdorf | C146: 110 | D146: 121 | E146: 121 | F146: 124
A147: 243 | B147: Dietikon | C147: 123 | D147: 135 | E147: 136 | F147: 137
A148: 244 | B148: Geroldswil | C148: 108 | D148: 119 | E148: 117 | F148: 122
A149: 245 | B149: Oberengstringen | C149: 112 | D149: 122 | E149: 125 | F149: 126
A150: 246 | B150: Oetwil a.d.L. | C150: 103 | D150: 114 | E150: 112 | F150: 117
A151: 247 | B151: Schlieren | C151: 111 | D151: 122 | E151: 123 | F151: 125
A152: 248 | B152: Uitikon | C152: 80 | D152: 90 | E152: 91 | F152: 94
A153: 249 | B153: Unterengstringen | C153: 100 | D153: 111 | E153: 113 | F153: 114
A154: 250 | B154: Urdorf | C154: 118 | D154: 128 | E154: 129 | F154: 132
A155: 251 | B155: Weiningen | C155: 103 | D155: 114 | E155: 112 | F155: 117
A156: 261 | B156: Zürich | C156: 119 | D156: 129 | E156: 129 | F156: 133
A157: 292 | B157: Stammheim | C157: 124 | D157: 138 | E157: 138 | F157: 138
A158: 293 | B158: Wädenswil | C158: 105 | D158: 116 | E158: 117 | F158: 119
A159: 294 | B159: Elgg | C159: 117 | D159: 131 | E159: 131 | F159: 131
A160: 295 | B160: Horgen | C160: 87 | D160: 97 | E160: 95 | F160: 101
A161: 296 | B161: Illnau-Effretikon | C161: 110 | D161: 123 | E161: 123 | F161: 124
A162: 297 | B162: Bauma | C162: 120 | D162: 134 | E162: 134 | F162: 134
A163: 298 | B163: Wiesendangen | C163: 90 | D163: 104 | E163: 103 | F163: 104

Sheet TaxFeetMunicipalities2021 (hidden)
A1: BFS | B1: Gemeinde | C1: andere | D1: reformiert | E1: katholisch | F1: christ-katholisch
A2: 21 | B2: Adlikon | C2: 124 | D2: 136 | E2: 138 | F2: 138
A3: 131 | B3: Adliswil | C3: 100 | D3: 110 | E3: 108 | F3: 114
A4: 241 | B4: Aesch | C4: 87 | D4: 98 | E4: 98 | F4: 101
A5: 1 | B5: Aeugst a.A. | C5: 95 | D5: 107 | E5: 108 | F5: 109
A6: 2 | B6: Affoltern a.A. | C6: 124 | D6: 136 | E6: 137 | F6: 138
A7: 211 | B7: Altikon | C7: 114 | D7: 126 | E7: 127 | F7: 128
A8: 30 | B8: Andelfingen | C8: 112 | D8: 124 | E8: 126 | F8: 126
A9: 51 | B9: Bachenbülach | C9: 106 | D9: 116 | E9: 117 | F9: 120
A10: 81 | B10: Bachs | C10: 127 | D10: 141 | E10: 138 | F10: 141
A11: 111 | B11: Bäretswil | C11: 102 | D11: 116 | E11: 116 | F11: 116
A12: 52 | B12: Bassersdorf | C12: 109 | D12: 121 | E12: 118 | F12: 123
A13: 297 | B13: Bauma | C13: 120 | D13: 134 | E13: 134 | F13: 134
A14: 22 | B14: Benken | C14: 114 | D14: 128 | E14: 128 | F14: 128
A15: 23 | B15: Berg a.I. | C15: 98 | D15: 110 | E15: 111 | F15: 112
A16: 242 | B16: Birmensdorf | C16: 110 | D16: 121 | E16: 121 | F16: 124
A17: 3 | B17: Bonstetten | C17: 109 | D17: 122 | E17: 120 | F17: 123
A18: 82 | B18: Boppelsen | C18: 94 | D18: 107 | E18: 104 | F18: 108
A19: 213 | B19: Brütten | C19: 89 | D19: 102 | E19: 102 | F19: 103
A20: 112 | B20: Bubikon | C20: 118 | D20: 130 | E20: 131 | F20: 132
A21: 24 | B21: Buch a.I. | C21: 106 | D21: 118 | E21: 119 | F21: 120
A22: 83 | B22: Buchs | C22: 110 | D22: 121 | E22: 120 | F22: 124
A23: 53 | B23: Bülach | C23: 110 | D23: 120 | E23: 121 | F23: 124
A24: 25 | B24: Dachsen | C24: 109 | D24: 121 | E24: 123 | F24: 123
A25: 214 | B25: Dägerlen | C25: 117 | D25: 131 | E25: 130 | F25: 131
A26: 84 | B26: Dällikon | C26: 108 | D26: 119 | E26: 118 | F26: 122
A27: 85 | B27: Dänikon | C27: 120 | D27: 131 | E27: 130 | F27: 134
A28: 215 | B28: Dättlikon | C28: 114 | D28: 128 | E28: 127 | F28: 128
A29: 86 | B29: Dielsdorf | C29: 105 | D29: 116 | E29: 116 | F29: 119
A30: 243 | B30: Dietikon | C30: 123 | D30: 135 | E30: 136 | F30: 137
A31: 54 | B31: Dietlikon | C31: 98 | D31: 110 | E31: 106 | F31: 112
A32: 216 | B32: Dinhard | C32: 87 | D32: 99 | E32: 100 | F32: 101
A33: 26 | B33: Dorf | C33: 109 | D33: 123 | E33: 122 | F33: 123
A34: 191 | B34: Dübendorf | C34: 99 | D34: 110 | E34: 109 | F34: 113
A35: 113 | B35: Dürnten | C35: 115 | D35: 129 | E35: 128 | F35: 129
A36: 192 | B36: Egg | C36: 98 | D36: 110 | E36: 107 | F36: 112
A37: 55 | B37: Eglisau | C37: 113 | D37: 127 | E37: 126 | F37: 127
A38: 294 | B38: Elgg | C38: 117 | D38: 131 | E38: 131 | F38: 131
A39: 218 | B39: Ellikon a.d.Th. | C39: 119 | D39: 131 | E39: 132 | F39: 133
A40: 219 | B40: Elsau | C40: 118 | D40: 132 | E40: 131 | F40: 132
A41: 56 | B41: Embrach | C41: 118 | D41: 130 | E41: 131 | F41: 132
A42: 151 | B42: Erlenbach | C42: 79 | D42: 88 | E42: 86 | F42: 93
A43: 193 | B43: Fällanden | C43: 103 | D43: 114 | E43: 113 | F43: 117
A44: 172 | B44: Fehraltorf | C44: 107 | D44: 120 | E44: 120 | F44: 121
A45: 27 | B45: Feuerthalen | C45: 114 | D45: 128 | E45: 128 | F45: 128
A46: 114 | B46: Fischenthal | C46: 124 | D46: 138 | E46: 138 | F46: 138
A47: 28 | B47: Flaach | C47: 107 | D47: 119 | E47: 120 | F47: 121
A48: 29 | B48: Flurlingen | C48: 112 | D48: 124 | E48: 126 | F48: 126
A49: 57 | B49: Freienstein-Teufen | C49: 99 | D49: 113 | E49: 112 | F49: 113
A50: 244 | B50: Geroldswil | C50: 108 | D50: 119 | E50: 117 | F50: 122
A51: 58 | B51: Glattfelden | C51: 120 | D51: 134 | E51: 133 | F51: 134
A52: 115 | B52: Gossau | C52: 119 | D52: 133 | E52: 133 | F52: 133
A53: 194 | B53: Greifensee | C53: 94 | D53: 105 | E53: 104 | F53: 108
A54: 116 | B54: Grüningen | C54: 113 | D54: 127 | E54: 126 | F54: 127
A55: 220 | B55: Hagenbuch | C55: 114 | D55: 128 | E55: 128 | F55: 128
A56: 4 | B56: Hausen a.A. | C56: 112 | D56: 126 | E56: 126 | F56: 126
A57: 5 | B57: Hedingen | C57: 105 | D57: 117 | E57: 118 | F57: 119
A58: 31 | B58: Henggart | C58: 100 | D58: 114 | E58: 113 | F58: 114
A59: 152 | B59: Herrliberg | C59: 78 | D59: 87 | E59: 86 | F59: 92
A60: 221 | B60: Hettlingen | C60: 96 | D60: 109 | E60: 109 | F60: 110
A61: 117 | B61: Hinwil | C61: 112 | D61: 124 | E61: 128 | F61: 126
A62: 173 | B62: Hittnau | C62: 116 | D62: 130 | E62: 129 | F62: 130
A63: 59 | B63: Hochfelden | C63: 116 | D63: 126 | E63: 127 | F63: 130
A64: 153 | B64: Hombrechtikon | C64: 119 | D64: 133 | E64: 132 | F64: 133
A65: 295 | B65: Horgen | C65: 87 | D65: 97 | E65: 95 | F65: 101
A66: 60 | B66: Höri | C66: 117 | D66: 127 | E66: 128 | F66: 131
A67: 32 | B67: Humlikon | C67: 123 | D67: 135 | E67: 137 | F67: 137
A68: 61 | B68: Hüntwangen | C68: 104 | D68: 118 | E68: 117 | F68: 118
A69: 87 | B69: Hüttikon | C69: 119 | D69: 132 | E69: 129 | F69: 133
A70: 296 | B70: Illnau-Effretikon | C70: 110 | D70: 123 | E70: 123 | F70: 124
A71: 6 | B71: Kappel a.A. | C71: 102 | D71: 116 | E71: 116 | F71: 116
A72: 135 | B72: Kilchberg | C72: 72 | D72: 81 | E72: 78 | F72: 86
A73: 33 | B73: Kleinandelfingen | C73: 110 | D73: 122 | E73: 124 | F73: 124
A74: 62 | B74: Kloten | C74: 103 | D74: 113 | E74: 112 | F74: 117
A75: 7 | B75: Knonau | C75: 117 | D75: 131 | E75: 131 | F75: 131
A76: 154 | B76: Küsnacht | C76: 77 | D76: 84 | E76: 84 | F76: 91
A77: 136 | B77: Langnau a.A. | C77: 106 | D77: 116 | E77: 120 | F77: 120
A78: 34 | B78: Laufen-Uhwiesen | C78: 102 | D78: 114 | E78: 116 | F78: 116
A79: 176 | B79: Lindau | C79: 108 | D79: 120 | E79: 121 | F79: 122
A80: 63 | B80: Lufingen | C80: 89 | D80: 101 | E80: 102 | F80: 103
A81: 155 | B81: Männedorf | C81: 95 | D81: 107 | E81: 106 | F81: 109
A82: 35 | B82: Marthalen | C82: 109 | D82: 123 | E82: 123 | F82: 123
A83: 8 | B83: Maschwanden | C83: 129 | D83: 143 | E83: 143 | F83: 143
A84: 195 | B84: Maur | C84: 87 | D84: 96 | E84: 96 | F84: 101
A85: 156 | B85: Meilen | C85: 84 | D85: 93 | E85: 91 | F85: 98
A86: 9 | B86: Mettmenstetten | C86: 99 | D86: 111 | E86: 113 | F86: 113
A87: 196 | B87: Mönchaltorf | C87: 111 | D87: 124 | E87: 120 | F87: 125
A88: 88 | B88: Neerach | C88: 76 | D88: 88 | E88: 87 | F88: 90
A89: 223 | B89: Neftenbach | C89: 107 | D89: 116 | E89: 120 | F89: 121
A90: 89 | B90: Niederglatt | C90: 107 | D90: 120 | E90: 118 | F90: 121
A91: 90 | B91: Niederhasli | C91: 116 | D91: 129 | E91: 127 | F91: 130
A92: 91 | B92: Niederweningen | C92: 104 | D92: 114 | E92: 115 | F92: 118
A93: 64 | B93: Nürensdorf | C93: 90 | D93: 102 | E93: 99 | F93: 104
A94: 65 | B94: Oberembrach | C94: 117 | D94: 129 | E94: 130 | F94: 131
A95: 245 | B95: Oberengstringen | C95: 112 | D95: 122 | E95: 125 | F95: 126
A96: 92 | B96: Oberglatt | C96: 122 | D96: 135 | E96: 133 | F96: 136
A97: 137 | B97: Oberrieden | C97: 88 | D97: 100 | E97: 99 | F97: 102
A98: 93 | B98: Oberweningen | C98: 98 | D98: 108 | E98: 109 | F98: 112
A99: 10 | B99: Obfelden | C99: 121 | D99: 133 | E99: 134 | F99: 135
A100: 246 | B100: Oetwil a.d.L. | C100: 103 | D100: 114 | E100: 112 | F100: 117
A101: 157 | B101: Oetwil a.S. | C101: 119 | D101: 133 | E101: 128 | F101: 133
A102: 66 | B102: Opfikon | C102: 94 | D102: 102 | E102: 101 | F102: 108
A103: 37 | B103: Ossingen | C103: 99 | D103: 113 | E103: 113 | F103: 113
A104: 94 | B104: Otelfingen | C104: 110 | D104: 123 | E104: 120 | F104: 124
A105: 11 | B105: Ottenbach | C105: 117 | D105: 131 | E105: 130 | F105: 131
A106: 177 | B106: Pfäffikon | C106: 113 | D106: 125 | E106: 126 | F106: 127
A107: 224 | B107: Pfungen | C107: 117 | D107: 129 | E107: 130 | F107: 131
A108: 67 | B108: Rafz | C108: 113 | D108: 127 | E108: 126 | F108: 127
A109: 95 | B109: Regensberg | C109: 106 | D109: 120 | E109: 117 | F109: 120
A110: 96 | B110: Regensdorf | C110: 118 | D110: 129 | E110: 128 | F110: 132
A111: 38 | B111: Rheinau | C111: 118 | D111: 132 | E111: 132 | F111: 132
A112: 138 | B112: Richterswil | C112: 101 | D112: 113 | E112: 116 | F112: 115
A113: 225 | B113: Rickenbach | C113: 106 | D113: 118 | E113: 119 | F113: 120
A114: 12 | B114: Rifferswil | C114: 125 | D114: 139 | E114: 139 | F114: 139
A115: 68 | B115: Rorbas | C115: 103 | D115: 117 | E115: 116 | F115: 117
A116: 97 | B116: Rümlang | C116: 109 | D116: 123 | E116: 120 | F116: 123
A117: 139 | B117: Rüschlikon | C117: 73 | D117: 83 | E117: 83 | F117: 87
A118: 178 | B118: Russikon | C118: 113 | D118: 125 | E118: 126 | F118: 127
A119: 118 | B119: Rüti | C119: 121 | D119: 135 | E119: 134 | F119: 135
A120: 226 | B120: Schlatt | C120: 125 | D120: 139 | E120: 137 | F120: 139
A121: 98 | B121: Schleinikon | C121: 110 | D121: 120 | E121: 121 | F121: 124
A122: 247 | B122: Schlieren | C122: 111 | D122: 122 | E122: 123 | F122: 125
A123: 99 | B123: Schöfflisdorf | C123: 101 | D123: 111 | E123: 112 | F123: 115
A124: 197 | B124: Schwerzenbach | C124: 99 | D124: 110 | E124: 109 | F124: 113
A125: 119 | B125: Seegräben | C125: 115 | D125: 127 | E125: 129 | F125: 129
A126: 227 | B126: Seuzach | C126: 99 | D126: 111 | E126: 112 | F126: 113
A127: 100 | B127: Stadel | C127: 110 | D127: 124 | E127: 123 | F127: 124
A128: 158 | B128: Stäfa | C128: 88 | D128: 99 | E128: 100 | F128: 102
A129: 13 | B129: Stallikon | C129: 101 | D129: 109 | E129: 112 | F129: 115
A130: 292 | B130: Stammheim | C130: 124 | D130: 138 | E130: 138 | F130: 138
A131: 101 | B131: Steinmaur | C131: 114 | D131: 126 | E131: 125 | F131: 128
A132: 39 | B132: Thalheim a.d.Th. | C132: 102 | D132: 114 | E132: 115 | F132: 116
A133: 141 | B133: Thalwil | C133: 85 | D133: 95 | E133: 95 | F133: 99
A134: 40 | B134: Trüllikon | C134: 114 | D134: 128 | E134: 128 | F134: 128
A135: 41 | B135: Truttikon | C135: 118 | D135: 132 | E135: 132 | F135: 132
A136: 228 | B136: Turbenthal | C136: 126 | D136: 140 | E136: 139 | F136: 140
A137: 159 | B137: Uetikon a.S. | C137: 87 | D137: 98 | E137: 98 | F137: 101
A138: 248 | B138: Uitikon | C138: 80 | D138: 90 | E138: 91 | F138: 94
A139: 249 | B139: Unterengstringen | C139: 100 | D139: 111 | E139: 113 | F139: 114
A140: 250 | B140: Urdorf | C140: 118 | D140: 128 | E140: 129 | F140: 132
A141: 198 | B141: Uster | C141: 112 | D141: 123 | E141: 122 | F141: 126
A142: 43 | B142: Volken | C142: 111 | D142: 123 | E142: 124 | F142: 125
A143: 199 | B143: Volketswil | C143: 103 | D143: 112 | E143: 113 | F143: 117
A144: 293 | B144: Wädenswil | C144: 105 | D144: 116 | E144: 117 | F144: 119
A145: 120 | B145: Wald | C145: 122 | D145: 136 | E145: 138 | F145: 136
A146: 69 | B146: Wallisellen | C146: 97 | D146: 105 | E146: 105 | F146: 111
A147: 200 | B147: Wangen-Brüttisellen | C147: 101 | D147: 112 | E147: 109 | F147: 115
A148: 70 | B148: Wasterkingen | C148: 116 | D148: 130 | E148: 129 | F148: 130
A149: 102 | B149: Weiach | C149: 89 | D149: 100 | E149: 102 | F149: 103
A150: 251 | B150: Weiningen | C150: 103 | D150: 114 | E150: 112 | F150: 117
A151: 180 | B151: Weisslingen | C151: 106 | D151: 119 | E151: 118 | F151: 120
A152: 14 | B152: Wettswil a.A. | C152: 85 | D152: 93 | E152: 96 | F152: 99
A153: 121 | B153: Wetzikon | C153: 119 | D153: 133 | E153: 133 | F153: 133
A154: 298 | B154: Wiesendangen | C154: 90 | D154: 104 | E154: 103 | F154: 104
A155: 71 | B155: Wil | C155: 106 | D155: 120 | E155: 119 | F155: 120
A156: 181 | B156: Wila | C156: 129 | D156: 143 | E156: 142 | F156: 143
A157: 182 | B157: Wildberg | C157: 129 | D157: 143 | E157: 142 | F157: 143
A158: 72 | B158: Winkel | C158: 76 | D158: 86 | E158: 87 | F158: 90
A159: 230 | B159: Winterthur | C159: 125 | D159: 138 | E159: 141 | F159: 139
A160: 231 | B160: Zell | C160: 118 | D160: 132 | E160: 130 | F160: 132
A161: 161 | B161: Zollikon | C161: 85 | D161: 93 | E161: 94 | F161: 99
A162: 160 | B162: Zumikon | C162: 85 | D162: 94 | E162: 94 | F162: 99
A163: 261 | B163: Zürich | C163: 119 | D163: 129 | E163: 129 | F163: 133

Sheet TaxFeetMunicipalities2022 (hidden)
A1: BFS | B1: keine Auswahl | C1: andere | D1: reformiert | E1: katholisch | F1: christ-katholisch
A2: 21 | B2: Adlikon | C2: 126 | D2: 138 | E2: 140 | F2: 140
A3: 131 | B3: Adliswil | C3: 102 | D3: 112 | E3: 110 | F3: 116
A4: 241 | B4: Aesch | C4: 89 | D4: 100 | E4: 100 | F4: 103
A5: 1 | B5: Aeugst a.A. | C5: 95 | D5: 107 | E5: 108 | F5: 109
A6: 2 | B6: Affoltern a.A. | C6: 124 | D6: 136 | E6: 137 | F6: 138
A7: 211 | B7: Altikon | C7: 114 | D7: 126 | E7: 127 | F7: 128
A8: 30 | B8: Andelfingen | C8: 114 | D8: 126 | E8: 128 | F8: 128
A9: 51 | B9: Bachenbülach | C9: 106 | D9: 116 | E9: 117 | F9: 120
A10: 81 | B10: Bachs | C10: 127 | D10: 141 | E10: 138 | F10: 141
A11: 111 | B11: Bäretswil | C11: 106 | D11: 120 | E11: 119 | F11: 120
A12: 52 | B12: Bassersdorf | C12: 114 | D12: 126 | E12: 123 | F12: 128
A13: 297 | B13: Bauma | C13: 120 | D13: 134 | E13: 133 | F13: 134
A14: 22 | B14: Benken | C14: 114 | D14: 128 | E14: 128 | F14: 128
A15: 23 | B15: Berg a.I. | C15: 98 | D15: 110 | E15: 111 | F15: 112
A16: 242 | B16: Birmensdorf | C16: 112 | D16: 123 | E16: 123 | F16: 126
A17: 3 | B17: Bonstetten | C17: 109 | D17: 121 | E17: 120 | F17: 123
A18: 82 | B18: Boppelsen | C18: 94 | D18: 107 | E18: 104 | F18: 108
A19: 213 | B19: Brütten | C19: 89 | D19: 102 | E19: 102 | F19: 103
A20: 112 | B20: Bubikon | C20: 118 | D20: 130 | E20: 131 | F20: 132
A21: 24 | B21: Buch a.I. | C21: 106 | D21: 118 | E21: 119 | F21: 120
A22: 83 | B22: Buchs | C22: 110 | D22: 121 | E22: 120 | F22: 124
A23: 53 | B23: Bülach | C23: 110 | D23: 120 | E23: 121 | F23: 124
A24: 25 | B24: Dachsen | C24: 112 | D24: 124 | E24: 126 | F24: 126
A25: 214 | B25: Dägerlen | C25: 117 | D25: 131 | E25: 130 | F25: 131
A26: 84 | B26: Dällikon | C26: 108 | D26: 119 | E26: 118 | F26: 122
A27: 85 | B27: Dänikon | C27: 120 | D27: 131 | E27: 130 | F27: 134
A28: 215 | B28: Dättlikon | C28: 116 | D28: 130 | E28: 129 | F28: 130
A29: 86 | B29: Dielsdorf | C29: 105 | D29: 117 | E29: 116 | F29: 119
A30: 243 | B30: Dietikon | C30: 123 | D30: 135 | E30: 136 | F30: 137
A31: 54 | B31: Dietlikon | C31: 102 | D31: 114 | E31: 110 | F31: 116
A32: 216 | B32: Dinhard | C32: 87 | D32: 99 | E32: 100 | F32: 101
A33: 26 | B33: Dorf | C33: 109 | D33: 123 | E33: 122 | F33: 123
A34: 191 | B34: Dübendorf | C34: 99 | D34: 110 | E34: 109 | F34: 113
A35: 113 | B35: Dürnten | C35: 115 | D35: 129 | E35: 128 | F35: 129
A36: 192 | B36: Egg | C36: 101 | D36: 113 | E36: 110 | F36: 115
A37: 55 | B37: Eglisau | C37: 113 | D37: 126 | E37: 126 | F37: 127
A38: 294 | B38: Elgg | C38: 115 | D38: 129 | E38: 129 | F38: 129
A39: 218 | B39: Ellikon a.d.Th. | C39: 119 | D39: 131 | E39: 132 | F39: 133
A40: 219 | B40: Elsau | C40: 120 | D40: 134 | E40: 133 | F40: 134
A41: 56 | B41: Embrach | C41: 118 | D41: 130 | E41: 131 | F41: 132
A42: 151 | B42: Erlenbach | C42: 79 | D42: 88 | E42: 86 | F42: 93
A43: 193 | B43: Fällanden | C43: 103 | D43: 114 | E43: 113 | F43: 117
A44: 172 | B44: Fehraltorf | C44: 107 | D44: 120 | E44: 119 | F44: 121
A45: 27 | B45: Feuerthalen | C45: 114 | D45: 127 | E45: 128 | F45: 128
A46: 114 | B46: Fischenthal | C46: 124 | D46: 138 | E46: 137 | F46: 138
A47: 28 | B47: Flaach | C47: 107 | D47: 119 | E47: 120 | F47: 121
A48: 29 | B48: Flurlingen | C48: 112 | D48: 124 | E48: 126 | F48: 126
A49: 57 | B49: Freienstein-Teufen | C49: 99 | D49: 113 | E49: 112 | F49: 113
A50: 244 | B50: Geroldswil | C50: 110 | D50: 121 | E50: 119 | F50: 124
A51: 58 | B51: Glattfelden | C51: 120 | D51: 134 | E51: 133 | F51: 134
A52: 115 | B52: Gossau | C52: 119 | D52: 133 | E52: 133 | F52: 133
A53: 194 | B53: Greifensee | C53: 94 | D53: 105 | E53: 104 | F53: 108
A54: 116 | B54: Grüningen | C54: 113 | D54: 127 | E54: 126 | F54: 127
A55: 220 | B55: Hagenbuch | C55: 116 | D55: 130 | E55: 130 | F55: 130
A56: 4 | B56: Hausen a.A. | C56: 112 | D56: 124 | E56: 126 | F56: 126
A57: 5 | B57: Hedingen | C57: 105 | D57: 117 | E57: 118 | F57: 119
A58: 31 | B58: Henggart | C58: 102 | D58: 116 | E58: 115 | F58: 116
A59: 152 | B59: Herrliberg | C59: 78 | D59: 87 | E59: 86 | F59: 92
A60: 221 | B60: Hettlingen | C60: 96 | D60: 109 | E60: 109 | F60: 110
A61: 117 | B61: Hinwil | C61: 112 | D61: 124 | E61: 128 | F61: 126
A62: 173 | B62: Hittnau | C62: 116 | D62: 130 | E62: 128 | F62: 130
A63: 59 | B63: Hochfelden | C63: 116 | D63: 126 | E63: 127 | F63: 130
A64: 153 | B64: Hombrechtikon | C64: 119 | D64: 130 | E64: 132 | F64: 133
A65: 295 | B65: Horgen | C65: 90 | D65: 100 | E65: 98 | F65: 104
A66: 60 | B66: Höri | C66: 115 | D66: 125 | E66: 126 | F66: 129
A67: 32 | B67: Humlikon | C67: 125 | D67: 137 | E67: 139 | F67: 139
A68: 61 | B68: Hüntwangen | C68: 108 | D68: 122 | E68: 121 | F68: 122
A69: 87 | B69: Hüttikon | C69: 115 | D69: 128 | E69: 125 | F69: 129
A70: 296 | B70: Illnau-Effretikon | C70: 110 | D70: 123 | E70: 123 | F70: 124
A71: 6 | B71: Kappel a.A. | C71: 102 | D71: 116 | E71: 116 | F71: 116
A72: 135 | B72: Kilchberg | C72: 72 | D72: 81 | E72: 78 | F72: 86
A73: 33 | B73: Kleinandelfingen | C73: 112 | D73: 124 | E73: 126 | F73: 126
A74: 62 | B74: Kloten | C74: 103 | D74: 113 | E74: 112 | F74: 117
A75: 7 | B75: Knonau | C75: 117 | D75: 131 | E75: 131 | F75: 131
A76: 154 | B76: Küsnacht | C76: 75 | D76: 82 | E76: 82 | F76: 89
A77: 136 | B77: Langnau a.A. | C77: 106 | D77: 116 | E77: 120 | F77: 120
A78: 34 | B78: Laufen-Uhwiesen | C78: 102 | D78: 114 | E78: 116 | F78: 116
A79: 176 | B79: Lindau | C79: 108 | D79: 120 | E79: 121 | F79: 122
A80: 63 | B80: Lufingen | C80: 89 | D80: 101 | E80: 102 | F80: 103
A81: 155 | B81: Männedorf | C81: 95 | D81: 107 | E81: 106 | F81: 109
A82: 35 | B82: Marthalen | C82: 105 | D82: 119 | E82: 119 | F82: 119
A83: 8 | B83: Maschwanden | C83: 130 | D83: 142 | E83: 144 | F83: 144
A84: 195 | B84: Maur | C84: 87 | D84: 96 | E84: 96 | F84: 101
A85: 156 | B85: Meilen | C85: 84 | D85: 93 | E85: 91 | F85: 98
A86: 9 | B86: Mettmenstetten | C86: 99 | D86: 111 | E86: 113 | F86: 113
A87: 196 | B87: Mönchaltorf | C87: 111 | D87: 124 | E87: 120 | F87: 125
A88: 88 | B88: Neerach | C88: 76 | D88: 88 | E88: 87 | F88: 90
A89: 223 | B89: Neftenbach | C89: 107 | D89: 116 | E89: 120 | F89: 121
A90: 89 | B90: Niederglatt | C90: 107 | D90: 120 | E90: 118 | F90: 121
A91: 90 | B91: Niederhasli | C91: 116 | D91: 129 | E91: 127 | F91: 130
A92: 91 | B92: Niederweningen | C92: 104 | D92: 114 | E92: 115 | F92: 118
A93: 64 | B93: Nürensdorf | C93: 90 | D93: 102 | E93: 99 | F93: 104
A94: 65 | B94: Oberembrach | C94: 117 | D94: 129 | E94: 130 | F94: 131
A95: 245 | B95: Oberengstringen | C95: 112 | D95: 122 | E95: 125 | F95: 126
A96: 92 | B96: Oberglatt | C96: 122 | D96: 135 | E96: 133 | F96: 136
A97: 137 | B97: Oberrieden | C97: 88 | D97: 100 | E97: 99 | F97: 102
A98: 93 | B98: Oberweningen | C98: 98 | D98: 108 | E98: 109 | F98: 112
A99: 10 | B99: Obfelden | C99: 121 | D99: 133 | E99: 134 | F99: 135
A100: 246 | B100: Oetwil a.d.L. | C100: 108 | D100: 119 | E100: 117 | F100: 122
A101: 157 | B101: Oetwil a.S. | C101: 119 | D101: 133 | E101: 128 | F101: 133
A102: 66 | B102: Opfikon | C102: 94 | D102: 102 | E102: 101 | F102: 108
A103: 37 | B103: Ossingen | C103: 99 | D103: 113 | E103: 113 | F103: 113
A104: 94 | B104: Otelfingen | C104: 110 | D104: 123 | E104: 120 | F104: 124
A105: 11 | B105: Ottenbach | C105: 117 | D105: 129 | E105: 130 | F105: 131
A106: 177 | B106: Pfäffikon | C106: 113 | D106: 125 | E106: 125 | F106: 127
A107: 224 | B107: Pfungen | C107: 117 | D107: 129 | E107: 130 | F107: 131
A108: 67 | B108: Rafz | C108: 113 | D108: 127 | E108: 126 | F108: 127
A109: 95 | B109: Regensberg | C109: 106 | D109: 120 | E109: 117 | F109: 120
A110: 96 | B110: Regensdorf | C110: 118 | D110: 129 | E110: 128 | F110: 132
A111: 38 | B111: Rheinau | C111: 118 | D111: 132 | E111: 132 | F111: 132
A112: 138 | B112: Richterswil | C112: 101 | D112: 113 | E112: 116 | F112: 115
A113: 225 | B113: Rickenbach | C113: 106 | D113: 118 | E113: 119 | F113: 120
A114: 12 | B114: Rifferswil | C114: 125 | D114: 137 | E114: 139 | F114: 139
A115: 68 | B115: Rorbas | C115: 103 | D115: 117 | E115: 116 | F115: 117
A116: 97 | B116: Rümlang | C116: 109 | D116: 123 | E116: 120 | F116: 123
A117: 139 | B117: Rüschlikon | C117: 75 | D117: 85 | E117: 85 | F117: 89
A118: 178 | B118: Russikon | C118: 113 | D118: 125 | E118: 125 | F118: 127
A119: 118 | B119: Rüti | C119: 121 | D119: 135 | E119: 134 | F119: 135
A120: 226 | B120: Schlatt | C120: 125 | D120: 139 | E120: 137 | F120: 139
A121: 98 | B121: Schleinikon | C121: 110 | D121: 120 | E121: 121 | F121: 124
A122: 247 | B122: Schlieren | C122: 111 | D122: 122 | E122: 123 | F122: 125
A123: 99 | B123: Schöfflisdorf | C123: 101 | D123: 111 | E123: 112 | F123: 115
A124: 197 | B124: Schwerzenbach | C124: 101 | D124: 112 | E124: 111 | F124: 115
A125: 119 | B125: Seegräben | C125: 115 | D125: 127 | E125: 129 | F125: 129
A126: 227 | B126: Seuzach | C126: 99 | D126: 111 | E126: 112 | F126: 113
A127: 100 | B127: Stadel | C127: 112 | D127: 126 | E127: 125 | F127: 126
A128: 158 | B128: Stäfa | C128: 80 | D128: 91 | E128: 92 | F128: 94
A129: 13 | B129: Stallikon | C129: 101 | D129: 109 | E129: 112 | F129: 115
A130: 292 | B130: Stammheim | C130: 119 | D130: 133 | E130: 133 | F130: 133
A131: 101 | B131: Steinmaur | C131: 114 | D131: 126 | E131: 125 | F131: 128
A132: 39 | B132: Thalheim a.d.Th. | C132: 104 | D132: 116 | E132: 117 | F132: 118
A133: 141 | B133: Thalwil | C133: 85 | D133: 95 | E133: 95 | F133: 99
A134: 40 | B134: Trüllikon | C134: 114 | D134: 128 | E134: 128 | F134: 128
A135: 41 | B135: Truttikon | C135: 115 | D135: 129 | E135: 129 | F135: 129
A136: 228 | B136: Turbenthal | C136: 124 | D136: 138 | E136: 137 | F136: 138
A137: 159 | B137: Uetikon a.S. | C137: 87 | D137: 98 | E137: 98 | F137: 101
A138: 248 | B138: Uitikon | C138: 80 | D138: 90 | E138: 91 | F138: 94
A139: 249 | B139: Unterengstringen | C139: 100 | D139: 111 | E139: 113 | F139: 114
A140: 250 | B140: Urdorf | C140: 118 | D140: 128 | E140: 129 | F140: 132
A141: 198 | B141: Uster | C141: 112 | D141: 123 | E141: 122 | F141: 126
A142: 43 | B142: Volken | C142: 111 | D142: 123 | E142: 124 | F142: 125
A143: 199 | B143: Volketswil | C143: 103 | D143: 112 | E143: 113 | F143: 117
A144: 293 | B144: Wädenswil | C144: 105 | D144: 116 | E144: 117 | F144: 119
A145: 120 | B145: Wald | C145: 122 | D145: 136 | E145: 138 | F145: 136
A146: 69 | B146: Wallisellen | C146: 97 | D146: 105 | E146: 105 | F146: 111
A147: 200 | B147: Wangen-Brüttisellen | C147: 101 | D147: 112 | E147: 109 | F147: 115
A148: 70 | B148: Wasterkingen | C148: 116 | D148: 130 | E148: 129 | F148: 130
A149: 102 | B149: Weiach | C149: 89 | D149: 100 | E149: 102 | F149: 103
A150: 251 | B150: Weiningen | C150: 103 | D150: 114 | E150: 112 | F150: 117
A151: 180 | B151: Weisslingen | C151: 116 | D151: 129 | E151: 128 | F151: 130
A152: 14 | B152: Wettswil a.A. | C152: 89 | D152: 97 | E152: 100 | F152: 103
A153: 121 | B153: Wetzikon | C153: 119 | D153: 133 | E153: 133 | F153: 133
A154: 298 | B154: Wiesendangen | C154: 90 | D154: 104 | E154: 103 | F154: 104
A155: 71 | B155: Wil | C155: 104 | D155: 118 | E155: 117 | F155: 118
A156: 181 | B156: Wila | C156: 129 | D156: 143 | E156: 142 | F156: 143
A157: 182 | B157: Wildberg | C157: 129 | D157: 143 | E157: 142 | F157: 143
A158: 72 | B158: Winkel | C158: 76 | D158: 86 | E158: 87 | F158: 90
A159: 230 | B159: Winterthur | C159: 125 | D159: 138 | E159: 142 | F159: 139
A160: 231 | B160: Zell | C160: 118 | D160: 132 | E160: 130 | F160: 132
A161: 161 | B161: Zollikon | C161: 82 | D161: 90 | E161: 91 | F161: 96
A162: 160 | B162: Zumikon | C162: 81 | D162: 89 | E162: 90 | F162: 95
A163: 261 | B163: Zürich | C163: 119 | D163: 129 | E163: 129 | F163: 133

Sheet Ideas_Information (hidden)
A1: Unterhaltsberechnungen als Funktionen schreiben
A2: Using ClassModules
A7: https://www.zh.ch/de/steuern-finanzen/steuern/steuerstatistiken/aktuelle-gemeinde-steuerfuesse.html#/
A8: https://amp.derbund.ch/ein-dorf-drei-steuerfuesse-694130473257
